BodyName,ServiceAreaCategorisation,ServiceDivisionCategorisation,ExpensesType,Date,TransactionNumber,Amount,CapitalorRevenue,SupplierName,MerchantCategory
Peterborough City Council,Education,PFI,Services,01/04/2016,30059753,-659.06,Revenue,IIC by Education (P'boro) Ltd,Service Charge
Peterborough City Council,Corporate Property,Office Accomodation,Repair & Maintenance of Buildings,01/04/2016,30061868,"10,819.09",Revenue,YMCA Cambridge & Peterborough,Service Charges - Premises
Peterborough City Council,Legal & Democratic,Legal Services,Services,01/04/2016,30061876,"1,200.00",Revenue,Mr Alasdair Wilson,Legal Costs
Peterborough City Council,Public Health,Business Management and Commercial Operations - Public Health,Third Party Payment,01/04/2016,30062034,"10,096.97",Revenue,NHS Cambs & P'boro CCG (Clinical Commissioning Group),Third Party Payments - Contract
Peterborough City Council,Adult Services & Communities - Adults,Mental Health,Third Party Payment,01/04/2016,30063695,"103,447.16",Revenue,Cambs & P'boro NHS Foundation Trust,Third Party Payments - Contract
Peterborough City Council,Public Health,Business Management and Commercial Operations - Public Health,Third Party Payment,01/04/2016,30063699,"8,833.33",Revenue,Cambs & P'boro NHS Foundation Trust,Third Party Payments - Contract
Peterborough City Council,Adult Services & Communities - Adults,Community Team,Agency Staff,01/04/2016,30064377,816,Revenue,Sanctuary Personnel Ltd,External Temporary Staff
Peterborough City Council,Adult Services & Communities - Adults,Community Team,Agency Staff,01/04/2016,30064378,510,Revenue,Sanctuary Personnel Ltd,External Temporary Staff
Peterborough City Council,Adult Services & Communities - Adults,Community Team,Agency Staff,01/04/2016,30064379,816,Revenue,Sanctuary Personnel Ltd,External Temporary Staff
Peterborough City Council,Children's & Safeguarding,Children's Social Care,Agency Staff,01/04/2016,30064795,"1,517.75",Revenue,Eden Brown Ltd,External Temporary Staff
Peterborough City Council,Children's & Safeguarding,Access to Resources & Specialist Commissioning,Services,01/04/2016,30065002,"2,237.35",Revenue,Foster Care Associates Ltd FCA,Boarding - Out Allowances
Peterborough City Council,Children's & Safeguarding,Children's Social Care,Agency Staff,01/04/2016,30065741,"1,406.00",Revenue,NonStop Recruitment Ltd,External Temporary Staff
Peterborough City Council,City Servs & Communications,Parking Services,Services,01/04/2016,30065784,"1,058.00",Revenue,BemroseBooth Ltd,Tickets
Peterborough City Council,Children's & Safeguarding,Access to Resources & Specialist Commissioning,Services,01/04/2016,30065825,"1,702.35",Revenue,Transition Care Peterborough Ltd,Boarding - Out Allowances
Peterborough City Council,Children's & Safeguarding,Access to Resources & Specialist Commissioning,Services,01/04/2016,30065829,937.35,Revenue,Transition Care Peterborough Ltd,Boarding - Out Allowances
Peterborough City Council,Children's & Safeguarding,Access to Resources & Specialist Commissioning,Services,01/04/2016,30065832,847.35,Revenue,Transition Care Peterborough Ltd,Boarding - Out Allowances
Peterborough City Council,City Servs & Communications,Regulatory Services,Services,01/04/2016,30066131,"1,104.00",Revenue,Northgate Public Services (UK) Ltd,Administration Expenses
Peterborough City Council,Legal & Democratic,Legal Services,Services,01/04/2016,30066225,613,Revenue,Freeth Cartwright LLP,Legal Costs
Peterborough City Council,Business Management and Commercial Operations,Clare Lodge,Agency Staff,01/04/2016,30066471,505.31,Revenue,Randstad Care Ltd,External Temporary Staff
Peterborough City Council,Children's & Safeguarding,Adult & Children Safeguarding Board,Services,01/04/2016,30066715,582.01,Revenue,Serco Ltd,Computer Hardware
Peterborough City Council,ICT,ICT,Services,01/04/2016,30066779,"1,131.51",Revenue,Serco Ltd,Computer Hardware
Peterborough City Council,Energy,Environment Capital,Services,01/04/2016,30066932,"3,470.71",Revenue,Deloitte LLP,Consultants Fees
Peterborough City Council,Corporate,Corporate,Non Revenue,01/04/2016,30066934,"38,847.80",Capital,Deloitte LLP,Consultants Fees
Peterborough City Council,Energy,Environment Capital,Services,01/04/2016,30066935,"6,699.63",Revenue,Deloitte LLP,Consultants Fees
Peterborough City Council,Adult Services & Communities - Adults,Block Contracts,Third Party Payment,01/04/2016,30067236,"1,821.88",Revenue,Park Vista Care Home,Third Party Payments - Contract
Peterborough City Council,Children's & Safeguarding,Access to Resources & Specialist Commissioning,Services,01/04/2016,30067585,808,Revenue,Transition Care Peterborough Ltd,Boarding - Out Allowances
Peterborough City Council,Adult Services & Communities - Adults,Independent Sector Placements,Services,01/04/2016,30067607,"3,400.00",Revenue,LESTER HALL APARTMENTS LTD,Residential Care
Peterborough City Council,Corporate,Corporate,Non Revenue,01/04/2016,30067750,"2,530.22",Capital,British Telecom PLC,Infrastructure
Peterborough City Council,Corporate,Corporate,Non Revenue,01/04/2016,30067977,"31,000.00",Capital,Pinsent Masons,Professional/Legal Fees
Peterborough City Council,Adults and Communities - Communities,Housing and Health,Services,01/04/2016,30067989,"1,156.00",Revenue,Nightingale Services,Contractors
Peterborough City Council,Children's & Safeguarding,Access to Resources & Specialist Commissioning,Services,01/04/2016,30068182,916,Revenue,Transition Care Peterborough Ltd,Boarding - Out Allowances
Peterborough City Council,Business Management and Commercial Operations,Clare Lodge,Agency Staff,01/04/2016,30068250,577.6,Revenue,Wrixon Care Services,External Temporary Staff
Peterborough City Council,Westcombe Engineering,Westcombe Engineering,Repair & Maintenance of Equipment,01/04/2016,30068398,"14,186.00",Revenue,RMS Engineers LTD,Equipment Maintenance
Peterborough City Council,Children's & Safeguarding,Children's Social Care,Agency Staff,01/04/2016,30068444,"1,070.32",Revenue,Sanctuary Personnel Ltd,External Temporary Staff
Peterborough City Council,Adult Services & Communities - Adults,Independent Sector Placements,Services,01/04/2016,30068445,619.24,Revenue,BUPA Care Homes,Residential Care
Peterborough City Council,Children's & Safeguarding,Children's Social Care,Agency Staff,01/04/2016,30068446,"1,787.10",Revenue,Sanctuary Personnel Ltd,External Temporary Staff
Peterborough City Council,Children's & Safeguarding,Children's Social Care,Agency Staff,01/04/2016,30068447,"1,787.10",Revenue,Sanctuary Personnel Ltd,External Temporary Staff
Peterborough City Council,Adult Services & Communities - Adults,Independent Sector Placements,Services,01/04/2016,30068448,"1,182.18",Revenue,BUPA Care Homes,Residential Care
Peterborough City Council,Children's & Safeguarding,Children's Social Care,Agency Staff,01/04/2016,30068449,"1,665.00",Revenue,Sanctuary Personnel Ltd,External Temporary Staff
Peterborough City Council,Children's & Safeguarding,Children's Social Care,Agency Staff,01/04/2016,30068450,535.16,Revenue,Sanctuary Personnel Ltd,External Temporary Staff
Peterborough City Council,Children's & Safeguarding,Children's Social Care,Agency Staff,01/04/2016,30068452,"1,500.00",Revenue,Sanctuary Personnel Ltd,External Temporary Staff
Peterborough City Council,Children's & Safeguarding,Children's Social Care,Agency Staff,01/04/2016,30068453,"1,500.00",Revenue,Sanctuary Personnel Ltd,External Temporary Staff
Peterborough City Council,Business Management and Commercial Operations,Business Management and Commercial Operations,Agency Staff,01/04/2016,30068456,700,Revenue,Sanctuary Personnel Ltd,External Temporary Staff
Peterborough City Council,Children's & Safeguarding,Children's Social Care,Agency Staff,01/04/2016,30068460,"2,500.00",Revenue,Sanctuary Personnel Ltd,External Temporary Staff
Peterborough City Council,Children's & Safeguarding,Children's Social Care,Agency Staff,01/04/2016,30068462,745.92,Revenue,Sanctuary Personnel Ltd,External Temporary Staff
Peterborough City Council,Children's & Safeguarding,Children's Social Care,Agency Staff,01/04/2016,30068468,802.74,Revenue,Sanctuary Personnel Ltd,External Temporary Staff
Peterborough City Council,Children's & Safeguarding,Children's Social Care,Agency Staff,01/04/2016,30068472,"1,740.00",Revenue,Sanctuary Personnel Ltd,External Temporary Staff
Peterborough City Council,Children's & Safeguarding,Children's Social Care,Agency Staff,01/04/2016,30068473,"1,395.20",Revenue,Sanctuary Personnel Ltd,External Temporary Staff
Peterborough City Council,Children's & Safeguarding,Children's Social Care,Agency Staff,01/04/2016,30068474,"1,748.25",Revenue,Sanctuary Personnel Ltd,External Temporary Staff
Peterborough City Council,Adult Services & Communities - Adults,Day Opportunities / In House,Agency Staff,01/04/2016,30068476,"1,250.00",Revenue,Sanctuary Personnel Ltd,External Temporary Staff
Peterborough City Council,Children's & Safeguarding,Children's Social Care,Agency Staff,01/04/2016,30068478,"1,606.85",Revenue,Sanctuary Personnel Ltd,External Temporary Staff
Peterborough City Council,Adult Services & Communities - Adults,Finance,Agency Staff,01/04/2016,30068479,"1,339.17",Revenue,Sanctuary Personnel Ltd,External Temporary Staff
Peterborough City Council,Adult Services & Communities - Adults,Day Opportunities / In House,Agency Staff,01/04/2016,30068480,"1,250.00",Revenue,Sanctuary Personnel Ltd,External Temporary Staff
Peterborough City Council,Business Management and Commercial Operations,Clare Lodge,Agency Staff,01/04/2016,30068483,965,Revenue,Wrixon Care Services,External Temporary Staff
Peterborough City Council,Business Management and Commercial Operations,Clare Lodge,Agency Staff,01/04/2016,30068484,515,Revenue,Wrixon Care Services,External Temporary Staff
Peterborough City Council,Business Management and Commercial Operations,Clare Lodge,Agency Staff,01/04/2016,30068486,935,Revenue,Wrixon Care Services,External Temporary Staff
Peterborough City Council,Business Management and Commercial Operations,Clare Lodge,Agency Staff,01/04/2016,30068489,890,Revenue,Wrixon Care Services,External Temporary Staff
Peterborough City Council,Business Management and Commercial Operations,Clare Lodge,Agency Staff,01/04/2016,30068492,950,Revenue,Wrixon Care Services,External Temporary Staff
Peterborough City Council,Business Management and Commercial Operations,Clare Lodge,Agency Staff,01/04/2016,30068493,"1,070.00",Revenue,Wrixon Care Services,External Temporary Staff
Peterborough City Council,Energy,Environment Capital,Agency Staff,01/04/2016,30068529,"3,982.50",Revenue,Athene Communications,External Temporary Staff
Peterborough City Council,Westcombe Engineering,Westcombe Engineering,Services,01/04/2016,30068579,"1,223.40",Revenue,A S C Metals Ltd,Items For Resale
Peterborough City Council,Business Management and Commercial Operations,Commissioning,Services,01/04/2016,30068583,875,Revenue,Capita Resourcing Ltd,Hired Services
Peterborough City Council,Adult Services & Communities - Adults,Independent Sector Placements,Services,01/04/2016,30068587,"1,172.68",Revenue,OAKHOUSE HOMECARE LTD,Residential Care
Peterborough City Council,Adult Services & Communities - Adults,Independent Sector Placements,Services,01/04/2016,30068634,"1,250.52",Revenue,OAKHOUSE HOMECARE LTD,Residential Care
Peterborough City Council,Adult Services & Communities - Adults,Independent Sector Placements,Services,01/04/2016,30068637,"1,037.44",Revenue,OAKHOUSE HOMECARE LTD,Residential Care
Peterborough City Council,Adult Services & Communities - Adults,Independent Sector Placements,Services,01/04/2016,30068638,"4,858.40",Revenue,Mencap,Residential Care
Peterborough City Council,Adult Services & Communities - Adults,Independent Sector Placements,Services,01/04/2016,30068639,"4,638.80",Revenue,Mencap,Residential Care
Peterborough City Council,Adult Services & Communities - Adults,Independent Sector Placements,Services,01/04/2016,30068640,"4,998.80",Revenue,Mencap,Residential Care
Peterborough City Council,Education,PFI,Services,01/04/2016,30068653,"18,494.68",Revenue,IIC by Education (P'boro) Ltd,Contract Services
Peterborough City Council,Education,PFI,Services,01/04/2016,30068727,"8,931.60",Revenue,IIC by Education (P'boro) Ltd,Service Charge
Peterborough City Council,Education,PFI,Employers Superannuation Contributions,01/04/2016,30068729,811.66,Revenue,IIC by Education (P'boro) Ltd,Pensions
Peterborough City Council,Education,Pupil Referral Unit,Contract Hire and Operating Leases,01/04/2016,30068760,"3,089.00",Revenue,A2B Euro Cars,Hired Transport
Peterborough City Council,Legal & Democratic,Legal Services,Services,01/04/2016,30068765,"1,085.00",Revenue,"Collins, Mr Peter",Legal Costs
Peterborough City Council,ICT,ICT,Services,01/04/2016,30068824,"4,757.00",Revenue,Pinsent Masons,Legal Costs
Peterborough City Council,Adult Services & Communities - Adults,Therapy/Reablement/Community Equipment,Agency Staff,01/04/2016,30068840,"1,321.60",Revenue,Sanctuary Personnel Ltd,External Temporary Staff
Peterborough City Council,Adult Services & Communities - Adults,Therapy/Reablement/Community Equipment,Agency Staff,01/04/2016,30068841,952,Revenue,Sanctuary Personnel Ltd,External Temporary Staff
Peterborough City Council,Adults and Communities - Communities,Early Help ASC/CSC,Agency Staff,01/04/2016,30068842,976.8,Revenue,Sanctuary Personnel Ltd,External Temporary Staff
Peterborough City Council,Children's & Safeguarding,Children's Social Care,Agency Staff,01/04/2016,30068850,949.05,Revenue,Sanctuary Personnel Ltd,External Temporary Staff
Peterborough City Council,Adults and Communities - Communities,Early Help ASC/CSC,Agency Staff,01/04/2016,30068857,976.8,Revenue,Sanctuary Personnel Ltd,External Temporary Staff
Peterborough City Council,Children's & Safeguarding,Children's Social Care,Agency Staff,01/04/2016,30068871,"1,748.25",Revenue,Sanctuary Personnel Ltd,External Temporary Staff
Peterborough City Council,Adult Services & Communities - Adults,Independent Sector Placements,Services,01/04/2016,30068972,"1,152.36",Revenue,FIELD HOUSE (EYE) LTD,Residential Care
Peterborough City Council,Adult Services & Communities - Adults,Independent Sector Placements,Services,01/04/2016,30068981,"1,821.88",Revenue,FIELD HOUSE (EYE) LTD,Residential Care
Peterborough City Council,Adult Services & Communities - Adults,Independent Sector Placements,Services,01/04/2016,30068987,"1,106.12",Revenue,FIELD HOUSE (EYE) LTD,Residential Care
Peterborough City Council,Adult Services & Communities - Adults,Independent Sector Placements,Services,01/04/2016,30068989,"1,005.80",Revenue,FIELD HOUSE (EYE) LTD,Residential Care
Peterborough City Council,Adult Services & Communities - Adults,Independent Sector Placements,Services,01/04/2016,30068991,996.92,Revenue,FIELD HOUSE (EYE) LTD,Residential Care
Peterborough City Council,Corporate Property,Office Accomodation,Repair & Maintenance of Buildings,01/04/2016,30069018,"14,506.78",Revenue,Alps Group Ltd,Service Charges - Premises
Peterborough City Council,Corporate Property,Office Accomodation,Rents,01/04/2016,30069019,"41,412.50",Revenue,Alps Group Ltd,Rent
Peterborough City Council,City Servs & Communications,Regulatory Services,Services,01/04/2016,30069102,875,Revenue,J J Tree & Landscape Services,Contractors
Peterborough City Council,Adult Services & Communities - Adults,Community Team,Catering,01/04/2016,30069213,873.6,Revenue,ICare GB Ltd,Catering Provisions
Peterborough City Council,Adult Services & Communities - Adults,Independent Sector Placements,Services,01/04/2016,30069214,"7,966.72",Revenue,NEW BOUNDARIES COMMUNITY SERVICES LTD,Residential Care
Peterborough City Council,Adult Services & Communities - Adults,Community Team,Catering,01/04/2016,30069221,"1,222.00",Revenue,ICare GB Ltd,Catering Provisions
Peterborough City Council,Adult Services & Communities - Adults,Independent Sector Placements,Services,01/04/2016,30069223,"2,045.88",Revenue,Barchester Newton House Care Home,Residential Care
Peterborough City Council,Adult Services & Communities - Adults,Independent Sector Placements,Services,01/04/2016,30069250,"1,474.16",Revenue,FIELD HOUSE (EYE) LTD,Residential Care
Peterborough City Council,Corporate Property,Strategic Projects,Agency Staff,01/04/2016,30069293,"1,658.25",Revenue,Eden Brown Ltd,External Temporary Staff
Peterborough City Council,Corporate Property,Strategic Projects,Agency Staff,01/04/2016,30069296,"1,658.25",Revenue,Eden Brown Ltd,External Temporary Staff
Peterborough City Council,Corporate Property,Strategic Projects,Agency Staff,01/04/2016,30069299,"1,575.34",Revenue,Eden Brown Ltd,External Temporary Staff
Peterborough City Council,Corporate Property,Strategic Projects,Agency Staff,01/04/2016,30069303,"1,658.25",Revenue,Eden Brown Ltd,External Temporary Staff
Peterborough City Council,Westcombe Engineering,Westcombe Engineering,"Tools, Equipment, Furniture & Materials",01/04/2016,30069476,"2,871.00",Revenue,Carillon Industrial Services Ltd,Small Tools
Peterborough City Council,Public Health,Business Management and Commercial Operations - Public Health,Third Party Payment,01/04/2016,30069526,"338,704.88",Revenue,Cambridgeshire Community Services,Third Party Payments - Contract
Peterborough City Council,Westcombe Engineering,Westcombe Engineering,Services,01/04/2016,30069684,511.98,Revenue,Barron Clark Castings Ltd,Items For Resale
Peterborough City Council,Corporate,Corporate,Non Revenue,01/04/2016,30069748,"6,526.00",Capital,Richard Masham Building Services,Building And Site Works
Peterborough City Council,Numerous,Numerous,Services,01/04/2016,30070002,"1,298.11",Revenue,Whistl London Ltd,Postage
Peterborough City Council,Adult Services & Communities - Adults,Finance,Agency Staff,01/04/2016,30070163,"2,375.00",Revenue,Number 10 Interim Ltd,External Temporary Staff
Peterborough City Council,Adult Services & Communities - Adults,Finance,Agency Staff,01/04/2016,30070164,"2,375.00",Revenue,Number 10 Interim Ltd,External Temporary Staff
Peterborough City Council,Adult Services & Communities - Adults,Finance,Agency Staff,01/04/2016,30070165,"2,375.00",Revenue,Number 10 Interim Ltd,External Temporary Staff
Peterborough City Council,Adult Services & Communities - Adults,Finance,Agency Staff,01/04/2016,30070166,"2,375.00",Revenue,Number 10 Interim Ltd,External Temporary Staff
Peterborough City Council,Education,School Infrastructure,"Other Grants, reimbursements and contributions",01/04/2016,30070188,510,Revenue,Friends of St George's Hydrotherapy Pool,Grant Payment
Peterborough City Council,Adult Services & Communities - Adults,Block Contracts,Third Party Payment,01/04/2016,30070331,"6,426.00",Revenue,Hales Group Ltd,Third Party Payments - Contract
Peterborough City Council,Adults and Communities - Communities,Housing and Health,Services,01/04/2016,30070346,850,Revenue,Peterborough City Letting (PCL),Financial Assistance
Peterborough City Council,Education,School Improvement,Services,01/04/2016,30070425,"5,000.00",Revenue,Blenheim Park County Primary School,Grant Payment
Peterborough City Council,Children's & Safeguarding,Children's Social Care,Agency Staff,01/04/2016,30070450,"1,591.00",Revenue,Sanctuary Personnel Ltd,External Temporary Staff
Peterborough City Council,Adult Services & Communities - Adults,Independent Sector Placements,Services,01/04/2016,30070500,"2,235.44",Revenue,Hales Group Ltd,Home Care
Peterborough City Council,Adult Services & Communities - Adults,Independent Sector Placements,Services,01/04/2016,30070502,627.98,Revenue,Hales Group Ltd,Home Care
Peterborough City Council,Adult Services & Communities - Adults,Independent Sector Placements,Services,01/04/2016,30070503,"1,272.63",Revenue,Hales Group Ltd,Home Care
Peterborough City Council,Adult Services & Communities - Adults,Independent Sector Placements,Services,01/04/2016,30070506,721.48,Revenue,Hales Group Ltd,Home Care
Peterborough City Council,Adult Services & Communities - Adults,Independent Sector Placements,Services,01/04/2016,30070507,"1,230.52",Revenue,Hales Group Ltd,Home Care
Peterborough City Council,Adult Services & Communities - Adults,Independent Sector Placements,Services,01/04/2016,30070508,601.93,Revenue,Betta Cars,Hired Transport
Peterborough City Council,Legal & Democratic,Legal Services,Services,01/04/2016,30070529,"1,411.20",Revenue,Psychology Clinic of East Anglia,Jurors/Expert Witnesses
Peterborough City Council,Education,Service Director Education,Pensions,01/04/2016,30070530,"25,947.73",Revenue,Teachers Pensions,Pensions
Peterborough City Council,Business Management and Commercial Operations,Clare Lodge,Agency Staff,01/04/2016,30070542,756.95,Revenue,Blue Arrow Ltd,External Temporary Staff
Peterborough City Council,Children's & Safeguarding,Access to Resources & Specialist Commissioning,Services,01/04/2016,30070548,"11,993.57",Revenue,ABC Care and Education Ltd,Boarding - Out Allowances
Peterborough City Council,Children's & Safeguarding,Access to Resources & Specialist Commissioning,Services,01/04/2016,30070549,"11,993.57",Revenue,ABC Care and Education Ltd,Boarding - Out Allowances
Peterborough City Council,Adult Services & Communities - Adults,Day Opportunities / In House,Agency Staff,01/04/2016,30070552,"1,287.75",Revenue,Pulse,External Temporary Staff
Peterborough City Council,City Servs & Communications,Regulatory Services,Services,01/04/2016,30070555,"1,749.84",Revenue,Local Government Association,Legal Costs
Peterborough City Council,Children's & Safeguarding,Access to Resources & Specialist Commissioning,Services,01/04/2016,30070556,"2,829.57",Revenue,London Borough of Barnet,Boarding - Out Allowances
Peterborough City Council,Corporate,Corporate,Non Revenue,01/04/2016,30070563,"12,882.43",Capital,Garfield Builders Ltd,Building And Site Works
Peterborough City Council,Adult Services & Communities - Adults,Independent Sector Placements,Services,01/04/2016,30070579,825.93,Revenue,Hales Group Ltd,Home Care
Peterborough City Council,Business Management and Commercial Operations,Clare Lodge,Services,01/04/2016,30070620,"2,667.04",Revenue,The K A Wing Group Ltd,Computer Hardware
Peterborough City Council,Business Management and Commercial Operations,Clare Lodge,Repair & Maintenance of Buildings,01/04/2016,30070622,"1,246.19",Revenue,The K A Wing Group Ltd,Premises Repairs
Peterborough City Council,Corporate,Corporate,Non Revenue,01/04/2016,30070623,"4,932.00",Capital,A W Morley T/A Morley Building Services,Grant Payment
Peterborough City Council,Children's & Safeguarding,Access to Resources & Specialist Commissioning,Services,01/04/2016,30070638,"7,404.57",Revenue,Ethelbert Childrens Services,Boarding - Out Allowances
Peterborough City Council,Children's & Safeguarding,Access to Resources & Specialist Commissioning,Services,01/04/2016,30070641,531.42,Revenue,Elite Care Provider,Boarding - Out Allowances
Peterborough City Council,Business Management and Commercial Operations,Early Years & Quality Improvement,Services,01/04/2016,30070647,"4,026.00",Revenue,Little Bees Pre-School,Education Pre School
Peterborough City Council,Business Management and Commercial Operations,Clare Lodge,Services,01/04/2016,30070669,"4,500.00",Revenue,M Caton Associates Ltd,Purchased Social Care Services
Peterborough City Council,Business Management and Commercial Operations,Early Years & Quality Improvement,Services,01/04/2016,30070672,"37,131.51",Revenue,Manor House Nursery (Peterborough) Ltd,Grant Payment
Peterborough City Council,Adults and Communities - Communities,Housing and Health,Services,01/04/2016,30070725,600,Revenue,Axiom Housing Association,Financial Assistance
Peterborough City Council,Education,PFI,Services,01/04/2016,30070736,"705,620.10",Revenue,IIC by Education (P'boro) Ltd,Contract Services
Peterborough City Council,Adult Services & Communities - Adults,Independent Sector Placements,Services,01/04/2016,30070774,"1,393.20",Revenue,Fins Care Ltd t/a St Margarets Rest Home,Residential Care
Peterborough City Council,Adult Services & Communities - Adults,Independent Sector Placements,Services,01/04/2016,30070777,"1,981.88",Revenue,Fins Care Ltd t/a St Margarets Rest Home,Residential Care
Peterborough City Council,Adult Services & Communities - Adults,Independent Sector Placements,Services,01/04/2016,30070781,"2,667.75",Revenue,Park Vista Care Home,Residential Care
Peterborough City Council,Adult Services & Communities - Adults,Independent Sector Placements,Services,01/04/2016,30070791,976.01,Revenue,Park Vista Care Home,Residential Care
Peterborough City Council,Children's & Safeguarding,Access to Resources & Specialist Commissioning,Services,01/04/2016,30070794,"-1,397.48",Revenue,Heath Farm Family Services Ltd,Boarding - Out Allowances
Peterborough City Council,Children's & Safeguarding,Access to Resources & Specialist Commissioning,Services,01/04/2016,30070795,"6,120.33",Revenue,Heath Farm Family Services Ltd,Boarding - Out Allowances
Peterborough City Council,Children's & Safeguarding,Access to Resources & Specialist Commissioning,Services,01/04/2016,30070798,"-1,352.40",Revenue,Heath Farm Family Services Ltd,Boarding - Out Allowances
Peterborough City Council,Adult Services & Communities - Adults,Independent Sector Placements,Services,01/04/2016,30070828,"2,656.60",Revenue,HEREWARD CARE SERVICES LIMITED,Residential Care
Peterborough City Council,Adult Services & Communities - Adults,Independent Sector Placements,Services,01/04/2016,30070834,"2,841.24",Revenue,HEREWARD CARE SERVICES LIMITED,Residential Care
Peterborough City Council,Adult Services & Communities - Adults,Independent Sector Placements,Services,01/04/2016,30070836,"1,006.64",Revenue,HEREWARD CARE SERVICES LIMITED,Residential Care
Peterborough City Council,Adult Services & Communities - Adults,Independent Sector Placements,Services,01/04/2016,30070838,"3,187.48",Revenue,HEREWARD CARE SERVICES LIMITED,Residential Care
Peterborough City Council,Adult Services & Communities - Adults,Independent Sector Placements,Services,01/04/2016,30070839,"2,759.04",Revenue,HEREWARD CARE SERVICES LIMITED,Residential Care
Peterborough City Council,Adult Services & Communities - Adults,Independent Sector Placements,Services,01/04/2016,30070840,"2,214.80",Revenue,HEREWARD CARE SERVICES LIMITED,Residential Care
Peterborough City Council,Adult Services & Communities - Adults,Independent Sector Placements,Services,01/04/2016,30070841,"1,795.36",Revenue,HEREWARD CARE SERVICES LIMITED,Residential Care
Peterborough City Council,Adult Services & Communities - Adults,Independent Sector Placements,Services,01/04/2016,30070843,"2,427.60",Revenue,HEREWARD CARE SERVICES LIMITED,Residential Care
Peterborough City Council,Corporate Property,Office Accomodation,Services,01/04/2016,30070852,"1,991.80",Revenue,PHS Group Plc,Confidential Waste Disposal
Peterborough City Council,Adult Services & Communities - Adults,Finance,Agency Staff,04/04/2016,30061177,"3,250.00",Revenue,Sanctuary Personnel Ltd,External Temporary Staff
Peterborough City Council,Corporate,Corporate,Non Revenue,04/04/2016,30065277,"47,000.00",Capital,Display Energy Solutions Ltd,Building And Site Works
Peterborough City Council,Children's & Safeguarding,Access to Resources & Specialist Commissioning,Services,04/04/2016,30065422,"1,509.85",Revenue,PC Homes,Boarding - Out Allowances
Peterborough City Council,Children's & Safeguarding,Access to Resources & Specialist Commissioning,Services,04/04/2016,30067356,"2,654.08",Revenue,Key2,Boarding - Out Allowances
Peterborough City Council,Children's & Safeguarding,Access to Resources & Specialist Commissioning,Services,04/04/2016,30068340,"1,509.85",Revenue,PC Homes,Boarding - Out Allowances
Peterborough City Council,Peterborough Highway Services,Highway & Drainage Control,Services,04/04/2016,30068428,"1,000.00",Revenue,North Level Dist.  Int. Drainage Board,Surveys
Peterborough City Council,Adults and Communities - Communities,Housing and Health,Services,04/04/2016,30068698,510,Revenue,B S Builders & Carpenters,Contractors
Peterborough City Council,Peterborough Highway Services,Network and Traffic Management,Services,04/04/2016,30068773,"1,684.90",Revenue,Telent Technology Services Ltd,Contractors
Peterborough City Council,Children's & Safeguarding,Children's Social Care,Agency Staff,04/04/2016,30068774,"1,121.00",Revenue,NonStop Recruitment Ltd,External Temporary Staff
Peterborough City Council,Children's & Safeguarding,Children's Social Care,Agency Staff,04/04/2016,30068775,"1,602.85",Revenue,Pulse,External Temporary Staff
Peterborough City Council,Peterborough Highway Services,Highway & Drainage Control,Services,04/04/2016,30068833,"2,026.46",Revenue,Peterborough Environment City Trust,Special Projects
Peterborough City Council,Peterborough Highway Services,Highway & Drainage Control,Services,04/04/2016,30068835,"1,378.92",Revenue,Peterborough Environment City Trust,Special Projects
Peterborough City Council,Peterborough Highway Services,Highway & Drainage Control,Services,04/04/2016,30068836,"1,378.92",Revenue,Peterborough Environment City Trust,Special Projects
Peterborough City Council,Education,School Improvement,"Tools, Equipment, Furniture & Materials",04/04/2016,30069021,650,Revenue,Edge Hill University,Educational Equipment
Peterborough City Council,Director,Director,Agency Staff,04/04/2016,30069069,"4,323.78",Revenue,Terry Reynolds,External Temporary Staff
Peterborough City Council,Adults and Communities - Communities,Housing and Health,Services,04/04/2016,30069106,722.5,Revenue,Home and Garden Mann,Contractors
Peterborough City Council,Adult Services & Communities - Adults,Mental Capacity Act & DoLs,Third Party Payment,04/04/2016,30069219,"1,134.00",Revenue,Raj Medical Consultancy Limited,Third Party Payments - Contract
Peterborough City Council,Westcombe Engineering,Westcombe Engineering,Services,04/04/2016,30069688,684,Revenue,Barron Clark Castings Ltd,Items For Resale
Peterborough City Council,Corporate,Corporate,Non Revenue,04/04/2016,30069694,"1,000.00",Capital,Wittering Parish Council,Grant Payment
Peterborough City Council,Corporate,Corporate,Non Revenue,04/04/2016,30069702,"4,455.11",Capital,Gaswise Services Ltd,Grant Payment
Peterborough City Council,Numerous,Numerous,Services,04/04/2016,30070003,"1,592.06",Revenue,Whistl London Ltd,Postage
Peterborough City Council,Corporate,Corporate,Non Revenue,04/04/2016,30070122,"15,617.50",Capital,A W Morley T/A Morley Building Services,Grant Payment
Peterborough City Council,Adult Services & Communities - Adults,Other Services,Third Party Payment,04/04/2016,30070187,"4,000.00",Revenue,Samaritans,Grant-Third Party
Peterborough City Council,Vivacity/Cultural Services,Cultural Services,Services,04/04/2016,30070288,"2,086.80",Revenue,Redacted Personal Data,Hired Services
Peterborough City Council,Business Management and Commercial Operations,Clare Lodge,Agency Staff,04/04/2016,30070368,"1,190.00",Revenue,Wrixon Care Services,External Temporary Staff
Peterborough City Council,Peterborough Highway Services,Network and Traffic Management,Services,04/04/2016,30070407,516.62,Revenue,O2 (UK) Ltd,Mobile Telephones
Peterborough City Council,Corporate,Corporate,Non Revenue,04/04/2016,30070457,"172,072.00",Capital,Carillion Building,Building And Site Works
Peterborough City Council,Adult Services & Communities - Adults,Finance,Agency Staff,04/04/2016,30070464,"37,375.00",Revenue,Patten Resource Management,External Temporary Staff
Peterborough City Council,Adult Services & Communities - Adults,Day Opportunities / In House,Agency Staff,04/04/2016,30070553,"1,287.75",Revenue,Pulse,External Temporary Staff
Peterborough City Council,Director,Director,Services,04/04/2016,30070562,"1,567.50",Revenue,The ADCS Ltd,Subscriptions
Peterborough City Council,Business Management and Commercial Operations,Commissioning,Services,04/04/2016,30070646,742.5,Revenue,Flying Start Pre-School & Day Care Centre,Grant Payment
Peterborough City Council,Public Health,Business Management and Commercial Operations - Public Health,Third Party Payment,04/04/2016,30070713,"7,500.00",Revenue,National Childbirth Trust,Third Party Payments - Contract
Peterborough City Council,Vivacity/Cultural Services,Cultural Services,Energy Costs,04/04/2016,30070765,"1,225.00",Revenue,Flogas UK Ltd,Electricity
Peterborough City Council,Amey Peterborough & Waste Management,Waste & Operational Svs Mgmt,Water Services,04/04/2016,30070766,629.02,Revenue,Anglian Water,Water
Peterborough City Council,Vivacity/Cultural Services,Cultural Services,Water Services,04/04/2016,30070766,"1,514.78",Revenue,Anglian Water,Water
Peterborough City Council,City Servs & Communications,"Markets, Tourism & Events",Water Services,04/04/2016,30070768,"2,156.23",Revenue,Anglian Water,Water
Peterborough City Council,Vivacity/Cultural Services,Cultural Services,Water Services,04/04/2016,30070768,"5,560.21",Revenue,Anglian Water,Water
Peterborough City Council,Education,PFI,Water Services,04/04/2016,30070768,"1,473.53",Revenue,Anglian Water,Water
Peterborough City Council,Adults and Communities - Communities,Housing and Health,Water Services,04/04/2016,30070768,"1,089.95",Revenue,Anglian Water,Water
Peterborough City Council,Education,PFI,Water Services,04/04/2016,30070768,713.68,Revenue,Anglian Water,Water
Peterborough City Council,Vivacity/Cultural Services,Cultural Services,Water Services,04/04/2016,30070768,"1,098.75",Revenue,Anglian Water,Water
Peterborough City Council,Adult Services & Communities - Adults,Independent Sector Placements,Services,04/04/2016,30070769,"1,068.84",Revenue,Fins Care Ltd t/a St Margarets Rest Home,Residential Care
Peterborough City Council,Adult Services & Communities - Adults,Independent Sector Placements,Services,04/04/2016,30070770,"1,288.36",Revenue,Fins Care Ltd t/a St Margarets Rest Home,Residential Care
Peterborough City Council,Adult Services & Communities - Adults,Independent Sector Placements,Services,04/04/2016,30070771,"1,316.72",Revenue,Fins Care Ltd t/a St Margarets Rest Home,Residential Care
Peterborough City Council,Adult Services & Communities - Adults,Independent Sector Placements,Services,04/04/2016,30070772,"1,306.40",Revenue,Fins Care Ltd t/a St Margarets Rest Home,Residential Care
Peterborough City Council,Adult Services & Communities - Adults,Independent Sector Placements,Services,04/04/2016,30070773,"1,505.56",Revenue,Fins Care Ltd t/a St Margarets Rest Home,Residential Care
Peterborough City Council,Adult Services & Communities - Adults,Independent Sector Placements,Services,04/04/2016,30070775,"1,576.24",Revenue,Fins Care Ltd t/a St Margarets Rest Home,Residential Care
Peterborough City Council,Adult Services & Communities - Adults,Independent Sector Placements,Services,04/04/2016,30070776,"1,231.04",Revenue,Fins Care Ltd t/a St Margarets Rest Home,Residential Care
Peterborough City Council,Education,PFI,Water Services,04/04/2016,30070779,"1,394.23",Revenue,Anglian Water,Water
Peterborough City Council,Amey Peterborough & Waste Management,Waste & Operational Svs Mgmt,Water Services,04/04/2016,30070779,625.67,Revenue,Anglian Water,Water
Peterborough City Council,City Servs & Communications,Parking Services,Water Services,04/04/2016,30070780,"1,041.68",Revenue,Anglian Water,Water
Peterborough City Council,Corporate,Corporate,Non Revenue,04/04/2016,30070932,"650,707.93",Capital,Carillion Building,Building And Site Works
Peterborough City Council,Corporate,Corporate,Non Revenue,04/04/2016,30070934,"131,453.44",Capital,Kier Eastern,Building And Site Works
Peterborough City Council,Corporate,Corporate,Non Revenue,04/04/2016,30070937,"835,209.73",Balance Sheet,Teachers Pensions,Pensions
Peterborough City Council,Adults and Communities - Communities,Housing and Health,Services,04/04/2016,30070947,600,Revenue,Redacted Personal Data,Financial Assistance
Peterborough City Council,Adults and Communities - Communities,Housing and Health,Services,04/04/2016,30070949,850,Revenue,Redacted Personal Data,Financial Assistance
Peterborough City Council,Adults and Communities - Communities,Youth / Youth Offending,Services,04/04/2016,30070953,862.5,Revenue,The Award Scheme Ltd,Programmes
Peterborough City Council,Adults and Communities - Communities,Service Director - Adults & Communities,Third Party Payment,04/04/2016,30070959,525,Revenue,Peterborough Citizens Advice Bureau,Grant-Third Party
Peterborough City Council,Children's & Safeguarding,Access to Resources & Specialist Commissioning,Services,06/04/2016,30059943,"-3,399.97",Revenue,Broadwood Residential Limited,Boarding - Out Allowances
Peterborough City Council,Adult Services & Communities - Adults,Community Team,Agency Staff,06/04/2016,30059951,"-1,702.00",Revenue,Caritas Recruitment,External Temporary Staff
Peterborough City Council,Adult Services & Communities - Adults,Community Team,Agency Staff,06/04/2016,30059952,"-1,311.00",Revenue,Caritas Recruitment,External Temporary Staff
Peterborough City Council,Adult Services & Communities - Adults,Community Team,Agency Staff,06/04/2016,30059954,"-1,702.00",Revenue,Caritas Recruitment,External Temporary Staff
Peterborough City Council,Adult Services & Communities - Adults,Independent Sector Placements,Services,06/04/2016,30061486,"-2,193.00",Revenue,Augusta Care Ltd,Home Care
Peterborough City Council,Adult Services & Communities - Adults,OP/PD/SI,Third Party Payment,06/04/2016,30061792,"18,689.00",Revenue,Dial Peterborough,Third Party Payments - Contract
Peterborough City Council,Corporate,Corporate,Non Revenue,06/04/2016,30062354,"10,875.00",Capital,Enterprise Managed Services Limited,Building And Site Works
Peterborough City Council,Children's & Safeguarding,Access to Resources & Specialist Commissioning,Services,06/04/2016,30063645,-785.71,Revenue,Trax Care Ltd,Boarding - Out Allowances
Peterborough City Council,Public Health,Business Management and Commercial Operations - Public Health,Third Party Payment,06/04/2016,30063652,"63,252.00",Revenue,Cambs & P'boro NHS Foundation Trust,Third Party Payments - Contract
Peterborough City Council,Business Management and Commercial Operations,Early Years & Quality Improvement,Services,06/04/2016,30063791,"3,683.37",Revenue,Family Action,Grant Payment
Peterborough City Council,Children's & Safeguarding,Access to Resources & Specialist Commissioning,Services,06/04/2016,30065421,"1,311.00",Revenue,PC Homes,Boarding - Out Allowances
Peterborough City Council,Children's & Safeguarding,Access to Resources & Specialist Commissioning,Services,06/04/2016,30065429,"1,410.43",Revenue,PC Homes,Boarding - Out Allowances
Peterborough City Council,Children's & Safeguarding,Access to Resources & Specialist Commissioning,Services,06/04/2016,30066092,"21,750.00",Revenue,Trax Care Ltd,Boarding - Out Allowances
Peterborough City Council,Adult Services & Communities - Adults,Day Opportunities / In House,Agency Staff,06/04/2016,30066221,"-1,295.00",Revenue,Caritas Recruitment,External Temporary Staff
Peterborough City Council,Children's & Safeguarding,Access to Resources & Specialist Commissioning,Services,06/04/2016,30066243,"24,357.14",Revenue,Trax Care Ltd,Boarding - Out Allowances
Peterborough City Council,Children's & Safeguarding,Access to Resources & Specialist Commissioning,Services,06/04/2016,30068203,"1,625.56",Revenue,PC Homes,Boarding - Out Allowances
Peterborough City Council,Children's & Safeguarding,Access to Resources & Specialist Commissioning,Services,06/04/2016,30068229,"1,625.56",Revenue,PC Homes,Boarding - Out Allowances
Peterborough City Council,Children's & Safeguarding,Access to Resources & Specialist Commissioning,Services,06/04/2016,30068231,"1,413.00",Revenue,PC Homes,Boarding - Out Allowances
Peterborough City Council,Children's & Safeguarding,Access to Resources & Specialist Commissioning,Services,06/04/2016,30068387,"15,057.01",Revenue,Broadwood Residential Limited,Boarding - Out Allowances
Peterborough City Council,ICT,ICT,Services,06/04/2016,30068405,"109,283.86",Revenue,Capita Business Services Ltd,Computer Software
Peterborough City Council,Corporate,Corporate,Non Revenue,06/04/2016,30068406,"42,021.06",Capital,Capita Business Services Ltd,Computer Software
Peterborough City Council,Corporate Property,Commercial Propety,Services,06/04/2016,30068542,"5,500.00",Revenue,Serco Ltd,Hired Services
Peterborough City Council,Adult Services & Communities - Adults,Independent Sector Placements,Services,06/04/2016,30068590,714.15,Revenue,LESTER HALL APARTMENTS LTD,Residential Care
Peterborough City Council,Adults and Communities - Communities,Community Safety,Services,06/04/2016,30068598,"1,300.00",Revenue,Cambridgeshire Constabulary,Road Safety
Peterborough City Council,Corporate,Corporate,Non Revenue,06/04/2016,30068599,812.52,Capital,British Telecom PLC,Infrastructure
Peterborough City Council,Adult Services & Communities - Adults,Community Team,Agency Staff,06/04/2016,30068701,"1,295.00",Revenue,Caritas Recruitment,External Temporary Staff
Peterborough City Council,Adult Services & Communities - Adults,Day Opportunities / In House,Agency Staff,06/04/2016,30068702,"1,050.00",Revenue,Caritas Recruitment,External Temporary Staff
Peterborough City Council,Adult Services & Communities - Adults,Day Opportunities / In House,Agency Staff,06/04/2016,30068705,752.5,Revenue,Caritas Recruitment,External Temporary Staff
Peterborough City Council,Adult Services & Communities - Adults,Day Opportunities / In House,Agency Staff,06/04/2016,30068708,700,Revenue,Caritas Recruitment,External Temporary Staff
Peterborough City Council,Adult Services & Communities - Adults,Day Opportunities / In House,Agency Staff,06/04/2016,30068709,"1,050.00",Revenue,Caritas Recruitment,External Temporary Staff
Peterborough City Council,Adult Services & Communities - Adults,Day Opportunities / In House,Agency Staff,06/04/2016,30068711,"1,295.00",Revenue,Caritas Recruitment,External Temporary Staff
Peterborough City Council,Adult Services & Communities - Adults,Day Opportunities / In House,Agency Staff,06/04/2016,30068712,"1,233.40",Revenue,Caritas Recruitment,External Temporary Staff
Peterborough City Council,Adult Services & Communities - Adults,Day Opportunities / In House,Agency Staff,06/04/2016,30068713,"1,091.20",Revenue,Caritas Recruitment,External Temporary Staff
Peterborough City Council,Adult Services & Communities - Adults,Day Opportunities / In House,Agency Staff,06/04/2016,30068714,"1,295.00",Revenue,Caritas Recruitment,External Temporary Staff
Peterborough City Council,Business Management and Commercial Operations,Commissioning,Services,06/04/2016,30068740,"2,500.00",Revenue,Clive Atkins Consultancy Ltd,Education Expenses
Peterborough City Council,Children's & Safeguarding,Access to Resources & Specialist Commissioning,Services,06/04/2016,30068805,"1,573.20",Revenue,Kites Childrens Services Limited,Boarding - Out Allowances
Peterborough City Council,Children's & Safeguarding,Children's Social Care,Agency Staff,06/04/2016,30068808,"1,400.00",Revenue,Medicare First,External Temporary Staff
Peterborough City Council,Adult Services & Communities - Adults,Day Opportunities / In House,Agency Staff,06/04/2016,30068809,710.4,Revenue,Medicare First,External Temporary Staff
Peterborough City Council,Corporate Property,Strategic Projects,Agency Staff,06/04/2016,30068846,"1,953.05",Revenue,Eden Brown Ltd,External Temporary Staff
Peterborough City Council,Children's & Safeguarding,Children's Social Care,Agency Staff,06/04/2016,30068849,"1,417.50",Revenue,Eden Brown Ltd,External Temporary Staff
Peterborough City Council,Children's & Safeguarding,Children's Social Care,Agency Staff,06/04/2016,30068853,"1,702.00",Revenue,Eden Brown Ltd,External Temporary Staff
Peterborough City Council,Children's & Safeguarding,Children's Social Care,Agency Staff,06/04/2016,30068859,"1,337.90",Revenue,Eden Brown Ltd,External Temporary Staff
Peterborough City Council,Corporate Items,Corporate Services,Services,06/04/2016,30068958,882,Revenue,PricewaterhouseCoopers LLP,Audit Fees
Peterborough City Council,Vivacity/Cultural Services,Cultural Services,Services,06/04/2016,30068964,"1,612.00",Revenue,Normans,Equipment Purchase
Peterborough City Council,Public Health,Business Management and Commercial Operations - Public Health,Third Party Payment,06/04/2016,30069046,543.5,Revenue,Boots Queensgate,Third Party Payments - Contract
Peterborough City Council,City Servs & Communications,Marketing & Communications,Services,06/04/2016,30069115,"2,280.00",Revenue,"Lane, Mr Chris (Artinfusion)",Printing
Peterborough City Council,Children's & Safeguarding,Access to Resources & Specialist Commissioning,Services,06/04/2016,30069128,"1,815.25",Revenue,BDP Social Care Ltd,Hired Services
Peterborough City Council,Corporate,Corporate,Non Revenue,06/04/2016,30069160,816.98,Capital,British Telecom PLC,Infrastructure
Peterborough City Council,Corporate,Corporate,Non Revenue,06/04/2016,30069161,"1,663.53",Capital,British Telecom PLC,Infrastructure
Peterborough City Council,Business Management and Commercial Operations,Commissioning,Services,06/04/2016,30069162,594,Revenue,Cellmark,Hired Services
Peterborough City Council,HR,HR Not P&C,Interview & Training Expenses,06/04/2016,30069164,625,Revenue,Do the Write Thing Ltd,Training
Peterborough City Council,Peterborough Highway Services,Network and Traffic Management,Services,06/04/2016,30069176,"1,123.47",Revenue,Johnston Press Midlands Division,Advertising
Peterborough City Council,Peterborough Highway Services,Transport & Infrastructure Commissioning,Services,06/04/2016,30069195,961,Revenue,Room 9 Media,Road Safety
Peterborough City Council,Business Management and Commercial Operations,Clare Lodge,Services,06/04/2016,30069196,585,Revenue,SLB Securing School Improvement Ltd,Education Expenses
Peterborough City Council,Children's & Safeguarding,Children's Social Care,Contract Hire and Operating Leases,06/04/2016,30069202,"1,400.00",Revenue,Stagecoach in Peterborough,Hired Transport
Peterborough City Council,Adults and Communities - Communities,Service Director - Adults & Communities,Interview & Training Expenses,06/04/2016,30069233,827,Revenue,Allia Ltd,Training
Peterborough City Council,Adult Services & Communities - Adults,Independent Sector Placements,Services,06/04/2016,30069260,"1,004.48",Revenue,ABBEYGATE REST HOME,Residential Care
Peterborough City Council,Adult Services & Communities - Adults,Independent Sector Placements,Services,06/04/2016,30069261,"1,004.48",Revenue,ABBEYGATE REST HOME,Residential Care
Peterborough City Council,Adult Services & Communities - Adults,Independent Sector Placements,Services,06/04/2016,30069262,"1,004.48",Revenue,ABBEYGATE REST HOME,Residential Care
Peterborough City Council,Adult Services & Communities - Adults,Independent Sector Placements,Services,06/04/2016,30069263,"2,354.00",Revenue,"Care in the Community, (Hogganfield Loch)",Residential Care
Peterborough City Council,Corporate Property,Strategic Projects,Agency Staff,06/04/2016,30069292,"1,658.25",Revenue,Eden Brown Ltd,External Temporary Staff
Peterborough City Council,Corporate Property,Strategic Projects,Agency Staff,06/04/2016,30069307,"1,520.06",Revenue,Eden Brown Ltd,External Temporary Staff
Peterborough City Council,Education,Pupil Referral Unit,Agency Staff,06/04/2016,30069363,"3,695.40",Revenue,Vision for Education Ltd,Supply Teachers
Peterborough City Council,Education,Pupil Referral Unit,Agency Staff,06/04/2016,30069364,"2,278.50",Revenue,Vision for Education Ltd,Supply Teachers
Peterborough City Council,Adults and Communities - Communities,Service Director - Adults & Communities,Third Party Payment,06/04/2016,30069517,"1,268.00",Revenue,Enterprise Managed Services Limited,Grant-Third Party
Peterborough City Council,Performance & Information,Performance & Information,Agency Staff,06/04/2016,30069615,618.26,Revenue,Reed Specialist Recruitment,External Temporary Staff
Peterborough City Council,Financial Services,Finance,Agency Staff,06/04/2016,30069616,534.49,Revenue,Reed Specialist Recruitment,External Temporary Staff
Peterborough City Council,Adult Services & Communities - Adults,Independent Sector Placements,Services,06/04/2016,30069663,760.4,Revenue,SOCIAL CARE SOLUTIONS LTD,Home Care
Peterborough City Council,Adult Services & Communities - Adults,Independent Sector Placements,Services,06/04/2016,30069664,645,Revenue,SOCIAL CARE SOLUTIONS LTD,Home Care
Peterborough City Council,Corporate,Corporate,Non Revenue,06/04/2016,30069699,"4,546.00",Capital,Dolphin Mobility East Midlands Ltd,Grant Payment
Peterborough City Council,Corporate,Corporate,Non Revenue,06/04/2016,30069703,"5,231.54",Capital,Trevor Benton Construction Ltd,Grant Payment
Peterborough City Council,Corporate,Corporate,Non Revenue,06/04/2016,30069704,"4,271.10",Capital,Casbon Building Services,Grant Payment
Peterborough City Council,Corporate,Corporate,Non Revenue,06/04/2016,30069705,"6,487.58",Capital,Dolphin Mobility East Midlands Ltd,Grant Payment
Peterborough City Council,Corporate,Corporate,Non Revenue,06/04/2016,30069706,"3,463.27",Capital,Obam Domestic Lift Services Ltd,Grant Payment
Peterborough City Council,Adult Services & Communities - Adults,Strategic Commissioning - Management,Agency Staff,06/04/2016,30069713,950,Revenue,ReThink Recruitment,External Temporary Staff
Peterborough City Council,Business Management and Commercial Operations,Clare Lodge,Services,06/04/2016,30069784,"1,747.00",Revenue,Textbook Teachers Ltd,Education Expenses
Peterborough City Council,Adult Services & Communities - Adults,Independent Sector Placements,Services,06/04/2016,30070270,583.38,Revenue,Sagecare,Home Care
Peterborough City Council,Adult Services & Communities - Adults,Independent Sector Placements,Services,06/04/2016,30070271,669.31,Revenue,Sagecare,Home Care
Peterborough City Council,Adult Services & Communities - Adults,Independent Sector Placements,Services,06/04/2016,30070275,"6,337.32",Revenue,NORTH EAST AUTISM SOCIETY,Residential Care
Peterborough City Council,HR,HR,Services,06/04/2016,30070278,"1,464.50",Revenue,Luke Clements Training,Course Instructors Fees
Peterborough City Council,Business Management and Commercial Operations,Clare Lodge,Services,06/04/2016,30070279,585,Revenue,SLB Securing School Improvement Ltd,Education Expenses
Peterborough City Council,Westcombe Engineering,Westcombe Engineering,Services,06/04/2016,30070285,"1,032.35",Revenue,Durham Foundry (Sheffield) LTD,Items For Resale
Peterborough City Council,Adults and Communities - Communities,Housing and Health,Services,06/04/2016,30070286,"1,236.75",Revenue,Handyman Steve,Contractors
Peterborough City Council,Vivacity/Cultural Services,Cultural Services,Services,06/04/2016,30070291,"1,575.40",Revenue,Redacted Personal Data,Hired Services
Peterborough City Council,Business Management and Commercial Operations,Clare Lodge,Agency Staff,06/04/2016,30070365,980,Revenue,Wrixon Care Services,External Temporary Staff
Peterborough City Council,Business Management and Commercial Operations,Clare Lodge,Agency Staff,06/04/2016,30070366,"1,010.00",Revenue,Wrixon Care Services,External Temporary Staff
Peterborough City Council,Business Management and Commercial Operations,Clare Lodge,Agency Staff,06/04/2016,30070367,"1,012.50",Revenue,Wrixon Care Services,External Temporary Staff
Peterborough City Council,Business Management and Commercial Operations,Clare Lodge,Agency Staff,06/04/2016,30070369,920,Revenue,Wrixon Care Services,External Temporary Staff
Peterborough City Council,Business Management and Commercial Operations,Clare Lodge,Agency Staff,06/04/2016,30070372,860,Revenue,Wrixon Care Services,External Temporary Staff
Peterborough City Council,Business Management and Commercial Operations,Clare Lodge,Agency Staff,06/04/2016,30070373,875,Revenue,Wrixon Care Services,External Temporary Staff
Peterborough City Council,Legal & Democratic,Legal Services,Services,06/04/2016,30070403,"1,000.00",Revenue,"White, Ms Elizabeth",Legal Costs
Peterborough City Council,Children's & Safeguarding,Access to Resources & Specialist Commissioning,Services,06/04/2016,30070527,790,Revenue,Transition Care Peterborough Ltd,Boarding - Out Allowances
Peterborough City Council,Adult Services & Communities - Adults,Day Opportunities / In House,Agency Staff,06/04/2016,30070533,"1,287.75",Revenue,Pulse,External Temporary Staff
Peterborough City Council,Children's & Safeguarding,Access to Resources & Specialist Commissioning,Services,06/04/2016,30070557,"3,024.71",Revenue,London Borough of Barnet,Boarding - Out Allowances
Peterborough City Council,Public Health,Business Management and Commercial Operations - Public Health,Third Party Payment,06/04/2016,30070651,"63,251.99",Revenue,Cambs & P'boro NHS Foundation Trust,Third Party Payments - Contract
Peterborough City Council,Children's & Safeguarding,Children's Social Care,Agency Staff,06/04/2016,30070800,"1,361.60",Revenue,Eden Brown Ltd,External Temporary Staff
Peterborough City Council,Adult Services & Communities - Adults,Independent Sector Placements,Services,06/04/2016,30070851,"1,821.88",Revenue,Park Vista Care Home,Residential Care
Peterborough City Council,Adult Services & Communities - Adults,Independent Sector Placements,Services,06/04/2016,30070854,"1,302.32",Revenue,ABOUT ME CARE AND SUPPORT LTD,Home Care
Peterborough City Council,Adult Services & Communities - Adults,Independent Sector Placements,Services,06/04/2016,30070856,"1,825.83",Revenue,ABOUT ME CARE AND SUPPORT LTD,Home Care
Peterborough City Council,Adult Services & Communities - Adults,Independent Sector Placements,Services,06/04/2016,30070858,"1,886.95",Revenue,Park Vista Care Home,Residential Care
Peterborough City Council,Adult Services & Communities - Adults,Independent Sector Placements,Services,06/04/2016,30070859,"1,576.24",Revenue,Park Vista Care Home,Residential Care
Peterborough City Council,Adult Services & Communities - Adults,Independent Sector Placements,Services,06/04/2016,30070860,"1,821.88",Revenue,Park Vista Care Home,Residential Care
Peterborough City Council,Adult Services & Communities - Adults,Independent Sector Placements,Services,06/04/2016,30070861,827.58,Revenue,Park Vista Care Home,Residential Care
Peterborough City Council,Adult Services & Communities - Adults,Independent Sector Placements,Services,06/04/2016,30070862,610,Revenue,The Regard Partnership Limited,Residential Care
Peterborough City Council,Adult Services & Communities - Adults,Independent Sector Placements,Services,06/04/2016,30070885,"2,677.32",Revenue,HEREWARD CARE SERVICES LIMITED,Residential Care
Peterborough City Council,Corporate,Corporate,Non Revenue,06/04/2016,30070889,"1,879.50",Capital,Gasway Services Ltd,Grant Payment
Peterborough City Council,Adult Services & Communities - Adults,Independent Sector Placements,Services,06/04/2016,30070890,"2,128.92",Revenue,Alysia Caring Ltd T/a Cherry Blossom care Home,Residential Care
Peterborough City Council,Adult Services & Communities - Adults,Independent Sector Placements,Services,06/04/2016,30070895,"3,371.25",Revenue,Augusta Care Ltd,Home Care
Peterborough City Council,Adult Services & Communities - Adults,Independent Sector Placements,Services,06/04/2016,30070896,"1,952.01",Revenue,Park Vista Care Home,Older People
Peterborough City Council,Adult Services & Communities - Adults,Independent Sector Placements,Services,06/04/2016,30070897,"1,852.67",Revenue,ABOUT ME CARE AND SUPPORT LTD,Home Care
Peterborough City Council,Adult Services & Communities - Adults,Independent Sector Placements,Services,06/04/2016,30070902,"3,244.00",Revenue,The Richmond Fellowship,Residential Care
Peterborough City Council,Adult Services & Communities - Adults,Independent Sector Placements,Services,06/04/2016,30070915,"1,806.20",Revenue,THE LODGE TRUST,Residential Care
Peterborough City Council,Adult Services & Communities - Adults,Independent Sector Placements,Services,06/04/2016,30070924,"1,809.01",Revenue,THE LODGE TRUST,Residential Care
Peterborough City Council,Corporate,Corporate,Non Revenue,06/04/2016,30070935,"16,148.80",Capital,Kier Eastern,Building And Site Works
Peterborough City Council,HR,HR,Services,06/04/2016,30070939,"9,269.00",Revenue,Dartington Hall Trust,Publications
Peterborough City Council,Children's & Safeguarding,Access to Resources & Specialist Commissioning,Services,06/04/2016,30070983,560.45,Revenue,McKinley Residential,Course Fees
Peterborough City Council,Children's & Safeguarding,Access to Resources & Specialist Commissioning,Services,06/04/2016,30070985,"10,033.74",Revenue,Leicestershire County Council,Out Of Area Education Costs
Peterborough City Council,Children's & Safeguarding,Access to Resources & Specialist Commissioning,Services,06/04/2016,30070986,675,Revenue,Campus Living Village BED,Course Fees
Peterborough City Council,Adult Services & Communities - Adults,Independent Sector Placements,Services,06/04/2016,30070987,"1,821.88",Revenue,Park Vista Care Home,Residential Care
Peterborough City Council,Corporate,Corporate,Non Revenue,06/04/2016,30070992,"62,368.78",Capital,Ringway Infrastructure Services,Infrastructure
Peterborough City Council,Corporate Property,Office Accomodation,Services,06/04/2016,30070995,570,Revenue,CardDispenser UK Ltd,Security
Peterborough City Council,"Cemeteries, Cremation & Registrars",Bereavement Service,Repair & Maintenance of Buildings,06/04/2016,30070996,863.7,Revenue,Facultatieve Technologies Ltd,Cremators
Peterborough City Council,Business Management and Commercial Operations,Commissioning,Services,06/04/2016,30070998,742.5,Revenue,Bundles Pre School,Grant Payment
Peterborough City Council,Business Management and Commercial Operations,Commissioning,Services,06/04/2016,30070999,742.5,Revenue,Anna-Ca-Soo Day Nursery,Grant Payment
Peterborough City Council,Business Management and Commercial Operations,Early Years & Quality Improvement,Services,06/04/2016,30071000,"1,275.15",Revenue,Acorn Academy Day Nursery,Grant Payment
Peterborough City Council,Business Management and Commercial Operations,Early Years & Quality Improvement,Services,06/04/2016,30071001,764,Revenue,Redacted Personal Data,Grant Payment
Peterborough City Council,Business Management and Commercial Operations,Early Years & Quality Improvement,Services,06/04/2016,30071002,"2,849.54",Revenue,Alpha Big Sky Ltd,Grant Payment
Peterborough City Council,Business Management and Commercial Operations,Early Years & Quality Improvement,Services,06/04/2016,30071005,942.76,Revenue,Leapfrog Day Nurseries,Grant Payment
Peterborough City Council,Business Management and Commercial Operations,Early Years & Quality Improvement,Services,06/04/2016,30071007,510.05,Revenue,Blackberry House Day Nursery,Grant Payment
Peterborough City Council,Business Management and Commercial Operations,Early Years & Quality Improvement,Services,06/04/2016,30071008,584.5,Revenue,Manor House Nursery (Peterborough) Ltd,Grant Payment
Peterborough City Council,Business Management and Commercial Operations,Early Years & Quality Improvement,Services,06/04/2016,30071013,693.59,Revenue,Longthorpe Playgroup,Grant Payment
Peterborough City Council,Business Management and Commercial Operations,Early Years & Quality Improvement,Services,06/04/2016,30071014,629.95,Revenue,Little Stars Day Nursery,Grant Payment
Peterborough City Council,Business Management and Commercial Operations,Early Years & Quality Improvement,Services,06/04/2016,30071015,"1,267.25",Revenue,Pakistan Comm Ass of PBoro Pre- School,Grant Payment
Peterborough City Council,Business Management and Commercial Operations,Early Years & Quality Improvement,Services,06/04/2016,30071020,530.25,Revenue,Little Poppets Day Nursery,Grant Payment
Peterborough City Council,Business Management and Commercial Operations,Early Years & Quality Improvement,Services,06/04/2016,30071021,"1,414.00",Revenue,Young Generation Playgroup,Grant Payment
Peterborough City Council,Business Management and Commercial Operations,Early Years & Quality Improvement,Services,06/04/2016,30071022,974.5,Revenue,St Thomas More Catholic Nursery,Grant Payment
Peterborough City Council,Business Management and Commercial Operations,Early Years & Quality Improvement,Services,06/04/2016,30071023,833.25,Revenue,Step One Day Care,Grant Payment
Peterborough City Council,Business Management and Commercial Operations,Early Years & Quality Improvement,Services,06/04/2016,30071024,606,Revenue,Family Action,Grant Payment
Peterborough City Council,Business Management and Commercial Operations,Early Years & Quality Improvement,Services,06/04/2016,30071027,623.75,Revenue,Stars Pre-School Ravensthorpe,Grant Payment
Peterborough City Council,Business Management and Commercial Operations,Early Years & Quality Improvement,Services,06/04/2016,30071029,765.54,Revenue,Smart Start Nursery Peterborough Ltd,Grant Payment
Peterborough City Council,Business Management and Commercial Operations,Early Years & Quality Improvement,Services,06/04/2016,30071030,"2,776.43",Revenue,South Bretton Pre School,Grant Payment
Peterborough City Council,Business Management and Commercial Operations,Commissioning,Services,06/04/2016,30071031,742.5,Revenue,Busy Bunnies Nursery,Grant Payment
Peterborough City Council,Business Management and Commercial Operations,Commissioning,Services,06/04/2016,30071032,"1,113.75",Revenue,Vale Community Pre-School,Grant Payment
Peterborough City Council,Children's & Safeguarding,Children's Social Care,Agency Staff,06/04/2016,30071043,"1,744.00",Revenue,Sanctuary Personnel Ltd,External Temporary Staff
Peterborough City Council,Children's & Safeguarding,Children's Social Care,Agency Staff,06/04/2016,30071044,"1,744.00",Revenue,Sanctuary Personnel Ltd,External Temporary Staff
Peterborough City Council,Amey Peterborough & Waste Management,Waste Management,Services,06/04/2016,30071070,"13,827.20",Revenue,H W Martin Waste Ltd,Recycling
Peterborough City Council,Children's & Safeguarding,Access to Resources & Specialist Commissioning,Services,06/04/2016,30071107,"1,110.62",Revenue,Lincolnshire County Council,Boarding - Out Allowances
Peterborough City Council,Performance & Information,Performance & Information,Services,06/04/2016,30071108,500,Revenue,University of Leicester,Post Mortem Charges
Peterborough City Council,Adult Services & Communities - Adults,Independent Sector Placements,Services,06/04/2016,30071138,"8,940.60",Revenue,Sense,Residential Care
Peterborough City Council,Business Management and Commercial Operations,Commissioning,Services,06/04/2016,30071157,"200,290.72",Revenue,Barnardo Services Limited,Hired Services
Peterborough City Council,Adult Services & Communities - Adults,Independent Sector Placements,Services,06/04/2016,30071158,873.8,Revenue,THE TUDORS,Residential Care
Peterborough City Council,Adult Services & Communities - Adults,Independent Sector Placements,Services,06/04/2016,30071159,873.8,Revenue,THE TUDORS,Residential Care
Peterborough City Council,Adult Services & Communities - Adults,Independent Sector Placements,Services,06/04/2016,30071160,-983.28,Revenue,Augusta Care Ltd,Home Care
Peterborough City Council,Adult Services & Communities - Adults,Independent Sector Placements,Services,06/04/2016,30071161,"2,310.00",Revenue,Augusta Care Ltd,Home Care
Peterborough City Council,Adult Services & Communities - Adults,Independent Sector Placements,Services,06/04/2016,30071162,"1,848.00",Revenue,Augusta Care Ltd,Home Care
Peterborough City Council,Business Management and Commercial Operations,Clare Lodge,Agency Staff,06/04/2016,30071231,739.5,Revenue,Taskmaster Resources Ltd,External Temporary Staff
Peterborough City Council,Business Management and Commercial Operations,Clare Lodge,Agency Staff,06/04/2016,30071233,740.83,Revenue,Taskmaster Resources Ltd,External Temporary Staff
Peterborough City Council,Business Management and Commercial Operations,Clare Lodge,Agency Staff,06/04/2016,30071235,717.66,Revenue,Taskmaster Resources Ltd,External Temporary Staff
Peterborough City Council,Business Management and Commercial Operations,Clare Lodge,Agency Staff,06/04/2016,30071237,889.72,Revenue,Taskmaster Resources Ltd,External Temporary Staff
Peterborough City Council,Business Management and Commercial Operations,Clare Lodge,Agency Staff,06/04/2016,30071238,777.89,Revenue,Taskmaster Resources Ltd,External Temporary Staff
Peterborough City Council,Business Management and Commercial Operations,Clare Lodge,Agency Staff,06/04/2016,30071239,686.36,Revenue,Taskmaster Resources Ltd,External Temporary Staff
Peterborough City Council,Business Management and Commercial Operations,Clare Lodge,Agency Staff,06/04/2016,30071242,533.24,Revenue,Taskmaster Resources Ltd,External Temporary Staff
Peterborough City Council,Public Health,Public Health,Agency Staff,06/04/2016,30071243,"58,006.60",Revenue,Cambridgeshire County Council,External Temporary Staff
Peterborough City Council,Children's & Safeguarding,Children's Social Care,Agency Staff,06/04/2016,30071254,"1,500.00",Revenue,Sanctuary Personnel Ltd,External Temporary Staff
Peterborough City Council,Children's & Safeguarding,Children's Social Care,Agency Staff,06/04/2016,30071255,"1,500.00",Revenue,Sanctuary Personnel Ltd,External Temporary Staff
Peterborough City Council,Children's & Safeguarding,Children's Social Care,Agency Staff,06/04/2016,30071256,714.84,Revenue,Sanctuary Personnel Ltd,External Temporary Staff
Peterborough City Council,Adult Services & Communities - Adults,Independent Sector Placements,Services,06/04/2016,8000058613,687.45,Revenue,Sagecare,Home Care
Peterborough City Council,Adult Services & Communities - Adults,Independent Sector Placements,Services,06/04/2016,8000058620,512.44,Revenue,Sagecare,Home Care
Peterborough City Council,Adult Services & Communities - Adults,Independent Sector Placements,Services,06/04/2016,8000058626,613.5,Revenue,Sagecare,Home Care
Peterborough City Council,Adult Services & Communities - Adults,Independent Sector Placements,Services,06/04/2016,8000058631,"1,564.92",Revenue,Sagecare,Home Care
Peterborough City Council,Adult Services & Communities - Adults,Independent Sector Placements,Services,06/04/2016,8000058648,794.42,Revenue,Sagecare,Home Care
Peterborough City Council,Adult Services & Communities - Adults,Independent Sector Placements,Services,06/04/2016,8000058652,"1,262.02",Revenue,Sagecare,Home Care
Peterborough City Council,Adult Services & Communities - Adults,Independent Sector Placements,Services,06/04/2016,8000058653,"1,561.24",Revenue,Sagecare,Home Care
Peterborough City Council,Adult Services & Communities - Adults,Independent Sector Placements,Services,06/04/2016,8000058654,521.77,Revenue,Sagecare,Home Care
Peterborough City Council,Adult Services & Communities - Adults,Independent Sector Placements,Services,06/04/2016,8000058655,"1,095.69",Revenue,Sagecare,Home Care
Peterborough City Council,Adult Services & Communities - Adults,Independent Sector Placements,Services,06/04/2016,8000058656,638.69,Revenue,Sagecare,Home Care
Peterborough City Council,Adult Services & Communities - Adults,Independent Sector Placements,Services,06/04/2016,8000058659,656.73,Revenue,Sagecare,Home Care
Peterborough City Council,Adult Services & Communities - Adults,Independent Sector Placements,Services,06/04/2016,8000058660,613.73,Revenue,Sagecare,Home Care
Peterborough City Council,Adult Services & Communities - Adults,Independent Sector Placements,Services,06/04/2016,8000058663,511.56,Revenue,Sagecare,Home Care
Peterborough City Council,Adult Services & Communities - Adults,Independent Sector Placements,Services,06/04/2016,8000058665,762.8,Revenue,Sagecare,Home Care
Peterborough City Council,Adult Services & Communities - Adults,Independent Sector Placements,Services,06/04/2016,8000058672,565.74,Revenue,Sagecare,Home Care
Peterborough City Council,Adult Services & Communities - Adults,Independent Sector Placements,Services,06/04/2016,8000058676,686.58,Revenue,Sagecare,Home Care
Peterborough City Council,Adult Services & Communities - Adults,Independent Sector Placements,Services,06/04/2016,8000058677,794.72,Revenue,Sagecare,Home Care
Peterborough City Council,Adult Services & Communities - Adults,Independent Sector Placements,Services,06/04/2016,8000058681,702.83,Revenue,Sagecare,Home Care
Peterborough City Council,Adult Services & Communities - Adults,Independent Sector Placements,Services,06/04/2016,8000058682,587.79,Revenue,Sagecare,Home Care
Peterborough City Council,Adult Services & Communities - Adults,Independent Sector Placements,Services,06/04/2016,8000058685,628.99,Revenue,Sagecare,Home Care
Peterborough City Council,Adult Services & Communities - Adults,Independent Sector Placements,Services,06/04/2016,8000058688,"1,233.08",Revenue,Sagecare,Home Care
Peterborough City Council,Adult Services & Communities - Adults,Independent Sector Placements,Services,06/04/2016,8000058693,736.21,Revenue,Sagecare,Home Care
Peterborough City Council,Adult Services & Communities - Adults,Independent Sector Placements,Services,06/04/2016,8000058706,700.69,Revenue,Sagecare,Home Care
Peterborough City Council,Adult Services & Communities - Adults,Independent Sector Placements,Services,06/04/2016,8000058708,654.19,Revenue,Sagecare,Home Care
Peterborough City Council,Adult Services & Communities - Adults,Independent Sector Placements,Services,06/04/2016,8000058710,"1,390.33",Revenue,Sagecare,Home Care
Peterborough City Council,Adult Services & Communities - Adults,Independent Sector Placements,Services,06/04/2016,8000058711,637.69,Revenue,Sagecare,Home Care
Peterborough City Council,Adult Services & Communities - Adults,Independent Sector Placements,Services,06/04/2016,8000058715,516.35,Revenue,Sagecare,Home Care
Peterborough City Council,Adult Services & Communities - Adults,Independent Sector Placements,Services,06/04/2016,8000058719,696.28,Revenue,Sagecare,Home Care
Peterborough City Council,Adult Services & Communities - Adults,Independent Sector Placements,Services,06/04/2016,8000058720,"1,788.47",Revenue,Sagecare,Home Care
Peterborough City Council,Adult Services & Communities - Adults,Independent Sector Placements,Services,06/04/2016,8000058721,"1,033.20",Revenue,Sagecare,Home Care
Peterborough City Council,Adult Services & Communities - Adults,Independent Sector Placements,Services,06/04/2016,8000058723,673.73,Revenue,Sagecare,Home Care
Peterborough City Council,Adult Services & Communities - Adults,Independent Sector Placements,Services,06/04/2016,8000058725,596.36,Revenue,Sagecare,Home Care
Peterborough City Council,Adult Services & Communities - Adults,Independent Sector Placements,Services,06/04/2016,8000058727,587.93,Revenue,Sagecare,Home Care
Peterborough City Council,Adult Services & Communities - Adults,Independent Sector Placements,Services,06/04/2016,8000058729,912.49,Revenue,Sagecare,Home Care
Peterborough City Council,Adult Services & Communities - Adults,Independent Sector Placements,Services,06/04/2016,8000058732,522.4,Revenue,Sagecare,Home Care
Peterborough City Council,Adult Services & Communities - Adults,Independent Sector Placements,Services,06/04/2016,8000058741,506.52,Revenue,Sagecare,Home Care
Peterborough City Council,Adult Services & Communities - Adults,Independent Sector Placements,Services,06/04/2016,8000058745,"1,484.42",Revenue,Sagecare,Home Care
Peterborough City Council,Adult Services & Communities - Adults,Independent Sector Placements,Services,06/04/2016,8000058751,"1,562.27",Revenue,Sagecare,Home Care
Peterborough City Council,Adult Services & Communities - Adults,Independent Sector Placements,Services,06/04/2016,8000058753,"1,789.37",Revenue,Sagecare,Home Care
Peterborough City Council,Adult Services & Communities - Adults,Independent Sector Placements,Services,06/04/2016,8000058757,595.3,Revenue,Sagecare,Home Care
Peterborough City Council,Adult Services & Communities - Adults,Independent Sector Placements,Services,06/04/2016,8000058759,720.59,Revenue,Sagecare,Home Care
Peterborough City Council,Adult Services & Communities - Adults,Independent Sector Placements,Services,06/04/2016,8000058760,"1,598.53",Revenue,Sagecare,Home Care
Peterborough City Council,Adult Services & Communities - Adults,Independent Sector Placements,Services,06/04/2016,8000058761,663.16,Revenue,Sagecare,Home Care
Peterborough City Council,Adult Services & Communities - Adults,Independent Sector Placements,Services,06/04/2016,8000058763,566.25,Revenue,Sagecare,Home Care
Peterborough City Council,Adult Services & Communities - Adults,Independent Sector Placements,Services,06/04/2016,8000058764,758.63,Revenue,Sagecare,Home Care
Peterborough City Council,Adult Services & Communities - Adults,Independent Sector Placements,Services,06/04/2016,8000058765,809.41,Revenue,Sagecare,Home Care
Peterborough City Council,Adult Services & Communities - Adults,Independent Sector Placements,Services,06/04/2016,8000058768,668.31,Revenue,Sagecare,Home Care
Peterborough City Council,Adult Services & Communities - Adults,Independent Sector Placements,Services,06/04/2016,8000058770,"1,415.87",Revenue,Sagecare,Home Care
Peterborough City Council,Adult Services & Communities - Adults,Independent Sector Placements,Services,06/04/2016,8000058777,"1,858.62",Revenue,Sagecare,Home Care
Peterborough City Council,Adult Services & Communities - Adults,Independent Sector Placements,Services,06/04/2016,8000058779,525.8,Revenue,Sagecare,Home Care
Peterborough City Council,Adult Services & Communities - Adults,Independent Sector Placements,Services,06/04/2016,8000058780,"1,155.00",Revenue,Sagecare,Home Care
Peterborough City Council,Adult Services & Communities - Adults,Independent Sector Placements,Services,06/04/2016,8000058782,"1,730.00",Revenue,Sagecare,Home Care
Peterborough City Council,Adult Services & Communities - Adults,Independent Sector Placements,Services,06/04/2016,8000058783,708.5,Revenue,Sagecare,Home Care
Peterborough City Council,Adult Services & Communities - Adults,Independent Sector Placements,Services,06/04/2016,8000058784,554.69,Revenue,Sagecare,Home Care
Peterborough City Council,Education,Home to School Transport,Contract Hire and Operating Leases,06/04/2016,8000059024,726.4,Revenue,A2B Euro Cars,Hired Transport
Peterborough City Council,Education,Home to School Transport,Contract Hire and Operating Leases,06/04/2016,8000059025,810.6,Revenue,A2B Euro Cars,Hired Transport
Peterborough City Council,Education,Home to School Transport,Services,06/04/2016,8000059026,"1,450.40",Revenue,A2B Euro Cars,Hired Transport
Peterborough City Council,Education,Home to School Transport,Contract Hire and Operating Leases,06/04/2016,8000059027,512,Revenue,A2B Euro Cars,Hired Transport
Peterborough City Council,Education,Home to School Transport,Contract Hire and Operating Leases,06/04/2016,8000059028,896,Revenue,A2B Euro Cars,Hired Transport
Peterborough City Council,Education,Home to School Transport,Contract Hire and Operating Leases,06/04/2016,8000059029,621.44,Revenue,A2B Euro Cars,Hired Transport
Peterborough City Council,Education,Home to School Transport,Contract Hire and Operating Leases,06/04/2016,8000059031,"1,184.00",Revenue,A2B Euro Cars,Hired Transport
Peterborough City Council,Education,Home to School Transport,Contract Hire and Operating Leases,06/04/2016,8000059032,"1,120.00",Revenue,A2B Euro Cars,Hired Transport
Peterborough City Council,Education,Home to School Transport,Contract Hire and Operating Leases,06/04/2016,8000059033,800,Revenue,A2B Euro Cars,Hired Transport
Peterborough City Council,Education,Home to School Transport,Contract Hire and Operating Leases,06/04/2016,8000059034,672,Revenue,A2B Euro Cars,Hired Transport
Peterborough City Council,Education,Home to School Transport,Contract Hire and Operating Leases,06/04/2016,8000059035,"1,604.50",Revenue,A2B Euro Cars,Hired Transport
Peterborough City Council,Education,Home to School Transport,Contract Hire and Operating Leases,06/04/2016,8000059036,506,Revenue,A2B Euro Cars,Hired Transport
Peterborough City Council,Education,Home to School Transport,Contract Hire and Operating Leases,06/04/2016,8000059037,"1,427.70",Revenue,A2B Euro Cars,Hired Transport
Peterborough City Council,Education,Home to School Transport,Contract Hire and Operating Leases,06/04/2016,8000059038,"1,960.00",Revenue,A2B Euro Cars,Hired Transport
Peterborough City Council,Education,Home to School Transport,Contract Hire and Operating Leases,06/04/2016,8000059039,"1,952.00",Revenue,A2B Euro Cars,Hired Transport
Peterborough City Council,Education,Home to School Transport,Contract Hire and Operating Leases,06/04/2016,8000059040,"1,094.70",Revenue,A2B Euro Cars,Hired Transport
Peterborough City Council,Education,Home to School Transport,Contract Hire and Operating Leases,06/04/2016,8000059041,"2,240.00",Revenue,A2B Euro Cars,Hired Transport
Peterborough City Council,Education,Home to School Transport,Contract Hire and Operating Leases,06/04/2016,8000059042,"1,976.00",Revenue,A2B Euro Cars,Hired Transport
Peterborough City Council,Education,Home to School Transport,Contract Hire and Operating Leases,06/04/2016,8000059043,"1,928.00",Revenue,A2B Euro Cars,Hired Transport
Peterborough City Council,Education,Home to School Transport,Contract Hire and Operating Leases,06/04/2016,8000059044,832,Revenue,A2B Euro Cars,Hired Transport
Peterborough City Council,Education,Home to School Transport,Contract Hire and Operating Leases,06/04/2016,8000059045,799.99,Revenue,A2B Euro Cars,Hired Transport
Peterborough City Council,Education,Home to School Transport,Contract Hire and Operating Leases,06/04/2016,8000059046,707.2,Revenue,A2B Euro Cars,Hired Transport
Peterborough City Council,Education,Home to School Transport,Contract Hire and Operating Leases,06/04/2016,8000059048,"1,254.40",Revenue,Eames Minibuses Ltd,Hired Transport
Peterborough City Council,Education,Home to School Transport,Contract Hire and Operating Leases,06/04/2016,8000059050,"1,020.00",Revenue,A2B Euro Cars,Hired Transport
Peterborough City Council,Education,Home to School Transport,Contract Hire and Operating Leases,06/04/2016,8000059053,510,Revenue,City Cabs Pboro Ltd,Hired Transport
Peterborough City Council,Adult Services & Communities - Adults,Independent Sector Placements,Services,06/04/2016,8000059095,"14,541.16",Revenue,Atlas Care Services Ltd,Home Care
Peterborough City Council,Adult Services & Communities - Adults,Independent Sector Placements,Services,06/04/2016,8000059096,751.08,Revenue,Atlas Care Services Ltd,Home Care
Peterborough City Council,Adult Services & Communities - Adults,Independent Sector Placements,Services,06/04/2016,8000059100,569.36,Revenue,Atlas Care Services Ltd,Home Care
Peterborough City Council,Adult Services & Communities - Adults,Independent Sector Placements,Services,06/04/2016,8000059101,"1,430.00",Revenue,Atlas Care Services Ltd,Home Care
Peterborough City Council,Adult Services & Communities - Adults,Independent Sector Placements,Services,06/04/2016,8000059102,568.92,Revenue,Atlas Care Services Ltd,Home Care
Peterborough City Council,Adult Services & Communities - Adults,Independent Sector Placements,Services,06/04/2016,8000059105,957.88,Revenue,Atlas Care Services Ltd,Home Care
Peterborough City Council,Adult Services & Communities - Adults,Independent Sector Placements,Services,06/04/2016,8000059106,"2,033.68",Revenue,Atlas Care Services Ltd,Home Care
Peterborough City Council,Adult Services & Communities - Adults,Independent Sector Placements,Services,06/04/2016,8000059108,752.12,Revenue,Atlas Care Services Ltd,Home Care
Peterborough City Council,Adult Services & Communities - Adults,Independent Sector Placements,Services,06/04/2016,8000059115,792.88,Revenue,Atlas Care Services Ltd,Home Care
Peterborough City Council,Adult Services & Communities - Adults,Independent Sector Placements,Services,06/04/2016,8000059118,"2,383.92",Revenue,Atlas Care Services Ltd,Home Care
Peterborough City Council,Adult Services & Communities - Adults,Independent Sector Placements,Services,06/04/2016,8000059127,551.54,Revenue,Atlas Care Services Ltd,Home Care
Peterborough City Council,Adult Services & Communities - Adults,Independent Sector Placements,Services,06/04/2016,8000059130,553.52,Revenue,Atlas Care Services Ltd,Home Care
Peterborough City Council,Adult Services & Communities - Adults,Independent Sector Placements,Services,06/04/2016,8000059131,755.04,Revenue,Atlas Care Services Ltd,Home Care
Peterborough City Council,Adult Services & Communities - Adults,Independent Sector Placements,Services,06/04/2016,8000059132,810.48,Revenue,Atlas Care Services Ltd,Home Care
Peterborough City Council,Adult Services & Communities - Adults,Independent Sector Placements,Services,06/04/2016,8000059135,545.6,Revenue,Atlas Care Services Ltd,Home Care
Peterborough City Council,Adult Services & Communities - Adults,Independent Sector Placements,Services,06/04/2016,8000059139,732.16,Revenue,Atlas Care Services Ltd,Home Care
Peterborough City Council,Adult Services & Communities - Adults,Independent Sector Placements,Services,06/04/2016,8000059142,575.74,Revenue,Atlas Care Services Ltd,Home Care
Peterborough City Council,Adult Services & Communities - Adults,Independent Sector Placements,Services,06/04/2016,8000059143,516.56,Revenue,Atlas Care Services Ltd,Home Care
Peterborough City Council,Adult Services & Communities - Adults,Independent Sector Placements,Services,06/04/2016,8000059145,"1,303.94",Revenue,Atlas Care Services Ltd,Home Care
Peterborough City Council,Adult Services & Communities - Adults,Independent Sector Placements,Services,06/04/2016,8000059146,626.78,Revenue,Atlas Care Services Ltd,Home Care
Peterborough City Council,Adult Services & Communities - Adults,Independent Sector Placements,Services,06/04/2016,8000059147,759.22,Revenue,Atlas Care Services Ltd,Home Care
Peterborough City Council,Adult Services & Communities - Adults,Independent Sector Placements,Services,06/04/2016,8000059148,795.52,Revenue,Atlas Care Services Ltd,Home Care
Peterborough City Council,Adult Services & Communities - Adults,Independent Sector Placements,Services,06/04/2016,8000059153,"2,809.18",Revenue,Atlas Care Services Ltd,Home Care
Peterborough City Council,Adult Services & Communities - Adults,Independent Sector Placements,Services,06/04/2016,8000059204,755.38,Revenue,Hales Group Ltd,Home Care
Peterborough City Council,Adult Services & Communities - Adults,Independent Sector Placements,Services,06/04/2016,8000059434,831.6,Revenue,Cozy Care,Home Care
Peterborough City Council,Adult Services & Communities - Adults,Independent Sector Placements,Services,06/04/2016,8000059435,821.7,Revenue,Cozy Care,Home Care
Peterborough City Council,Adult Services & Communities - Adults,Independent Sector Placements,Services,06/04/2016,8000059436,924,Revenue,Cozy Care,Home Care
Peterborough City Council,Adult Services & Communities - Adults,Independent Sector Placements,Services,06/04/2016,8000059439,633.6,Revenue,Cozy Care,Home Care
Peterborough City Council,Adult Services & Communities - Adults,Independent Sector Placements,Services,06/04/2016,8000059441,"1,821.60",Revenue,Cozy Care,Home Care
Peterborough City Council,Adult Services & Communities - Adults,Independent Sector Placements,Services,06/04/2016,8000059445,"1,656.60",Revenue,Cozy Care,Home Care
Peterborough City Council,Adult Services & Communities - Adults,Independent Sector Placements,Services,06/04/2016,8000059447,640.2,Revenue,Cozy Care,Home Care
Peterborough City Council,Adult Services & Communities - Adults,Independent Sector Placements,Services,06/04/2016,8000059453,547.8,Revenue,Cozy Care,Home Care
Peterborough City Council,Adult Services & Communities - Adults,Independent Sector Placements,Services,06/04/2016,8000059457,501.6,Revenue,Cozy Care,Home Care
Peterborough City Council,Adult Services & Communities - Adults,Independent Sector Placements,Services,06/04/2016,8000059470,554.4,Revenue,Cozy Care,Home Care
Peterborough City Council,Adult Services & Communities - Adults,Independent Sector Placements,Services,06/04/2016,8000059472,792,Revenue,Cozy Care,Home Care
Peterborough City Council,Adult Services & Communities - Adults,Independent Sector Placements,Services,06/04/2016,8000059474,541.2,Revenue,Cozy Care,Home Care
Peterborough City Council,Adult Services & Communities - Adults,Independent Sector Placements,Services,06/04/2016,8000059476,"1,016.40",Revenue,Cozy Care,Home Care
Peterborough City Council,Adult Services & Communities - Adults,Independent Sector Placements,Services,06/04/2016,8000059481,554.4,Revenue,Cozy Care,Home Care
Peterborough City Council,Adult Services & Communities - Adults,Independent Sector Placements,Services,06/04/2016,8000059486,712.8,Revenue,Cozy Care,Home Care
Peterborough City Council,Adult Services & Communities - Adults,Independent Sector Placements,Services,06/04/2016,8000059488,"1,012.77",Revenue,Hales Group Ltd,Home Care
Peterborough City Council,Adult Services & Communities - Adults,Independent Sector Placements,Services,06/04/2016,8000059490,"4,698.65",Revenue,Hales Group Ltd,Home Care
Peterborough City Council,Adult Services & Communities - Adults,Independent Sector Placements,Services,06/04/2016,8000059493,"1,479.26",Revenue,Hales Group Ltd,Home Care
Peterborough City Council,Adult Services & Communities - Adults,Independent Sector Placements,Services,06/04/2016,8000059495,541.68,Revenue,Hales Group Ltd,Home Care
Peterborough City Council,Adult Services & Communities - Adults,Independent Sector Placements,Services,06/04/2016,8000059496,813.71,Revenue,Hales Group Ltd,Home Care
Peterborough City Council,Adult Services & Communities - Adults,Independent Sector Placements,Services,06/04/2016,8000059500,649.4,Revenue,Hales Group Ltd,Home Care
Peterborough City Council,Adult Services & Communities - Adults,Independent Sector Placements,Services,06/04/2016,8000059508,"2,813.71",Revenue,Hales Group Ltd,Home Care
Peterborough City Council,Adult Services & Communities - Adults,Independent Sector Placements,Services,06/04/2016,8000059512,"1,346.93",Revenue,Hales Group Ltd,Home Care
Peterborough City Council,Adult Services & Communities - Adults,Independent Sector Placements,Services,06/04/2016,8000059515,650.28,Revenue,Hales Group Ltd,Home Care
Peterborough City Council,Adult Services & Communities - Adults,Independent Sector Placements,Services,06/04/2016,8000059516,645.38,Revenue,Hales Group Ltd,Home Care
Peterborough City Council,Adult Services & Communities - Adults,Independent Sector Placements,Services,06/04/2016,8000059519,"1,586.58",Revenue,Hales Group Ltd,Home Care
Peterborough City Council,Adult Services & Communities - Adults,Independent Sector Placements,Services,06/04/2016,8000059521,703.69,Revenue,Hales Group Ltd,Home Care
Peterborough City Council,Adult Services & Communities - Adults,Independent Sector Placements,Services,06/04/2016,8000059523,"1,675.29",Revenue,Hales Group Ltd,Home Care
Peterborough City Council,Adult Services & Communities - Adults,Independent Sector Placements,Services,06/04/2016,8000059643,"2,827.44",Revenue,Sagecare,Home Care
Peterborough City Council,Adult Services & Communities - Adults,Independent Sector Placements,Services,06/04/2016,8000059644,574.6,Revenue,Sagecare,Home Care
Peterborough City Council,Adult Services & Communities - Adults,Independent Sector Placements,Services,06/04/2016,8000059646,552.94,Revenue,Sagecare,Home Care
Peterborough City Council,Adult Services & Communities - Adults,Independent Sector Placements,Services,06/04/2016,8000059649,"1,037.66",Revenue,Sagecare,Home Care
Peterborough City Council,Adult Services & Communities - Adults,Independent Sector Placements,Services,06/04/2016,8000059650,"1,885.22",Revenue,Sagecare,Home Care
Peterborough City Council,Adult Services & Communities - Adults,Independent Sector Placements,Services,06/04/2016,8000059651,"1,697.64",Revenue,Sagecare,Home Care
Peterborough City Council,Education,Home to School Transport,Contract Hire and Operating Leases,06/04/2016,8000059656,"1,234.17",Revenue,A2B Euro Cars,Hired Transport
Peterborough City Council,Education,Home to School Transport,Contract Hire and Operating Leases,06/04/2016,8000059659,960,Revenue,A2B Euro Cars,Hired Transport
Peterborough City Council,Education,Home to School Transport,Contract Hire and Operating Leases,06/04/2016,8000059660,928,Revenue,A2B Euro Cars,Hired Transport
Peterborough City Council,Education,Home to School Transport,Contract Hire and Operating Leases,06/04/2016,8000059661,"1,780.00",Revenue,A2B Euro Cars,Hired Transport
Peterborough City Council,Education,Home to School Transport,Contract Hire and Operating Leases,06/04/2016,8000059665,682.88,Revenue,A2B Euro Cars,Hired Transport
Peterborough City Council,Education,Home to School Transport,Contract Hire and Operating Leases,06/04/2016,8000059666,612,Revenue,R T Enterprises Ltd T/A Royal Taxis,Hired Transport
Peterborough City Council,Education,Home to School Transport,Contract Hire and Operating Leases,06/04/2016,8000059673,625.5,Revenue,Goldstar Cabs Ltd,Hired Transport
Peterborough City Council,Education,Home to School Transport,Contract Hire and Operating Leases,06/04/2016,8000059674,"1,815.25",Revenue,Goldstar Cabs Ltd,Hired Transport
Peterborough City Council,Education,Home to School Transport,Contract Hire and Operating Leases,06/04/2016,8000059675,"1,365.00",Revenue,Goldstar Cabs Ltd,Hired Transport
Peterborough City Council,Education,Home to School Transport,Contract Hire and Operating Leases,06/04/2016,8000059676,"1,380.00",Revenue,Goldstar Cabs Ltd,Hired Transport
Peterborough City Council,Education,Home to School Transport,Contract Hire and Operating Leases,06/04/2016,8000059677,824.8,Revenue,King Cabz,Free Prim Sch Trans Mains
Peterborough City Council,Education,Home to School Transport,Contract Hire and Operating Leases,06/04/2016,8000059679,832,Revenue,Redacted Personal Data,Hired Transport
Peterborough City Council,Children's & Safeguarding,Access to Resources & Specialist Commissioning,Services,06/04/2016,8000059712,600,Revenue,Redacted Personal Data,Boarding - Out Allowances
Peterborough City Council,Children's & Safeguarding,Access to Resources & Specialist Commissioning,Services,06/04/2016,8000059712,613.6,Revenue,Redacted Personal Data,Boarding - Out Allowances
Peterborough City Council,Children's & Safeguarding,Access to Resources & Specialist Commissioning,Services,06/04/2016,8000059712,517.56,Revenue,Redacted Personal Data,Boarding - Out Allowances
Peterborough City Council,Children's & Safeguarding,Access to Resources & Specialist Commissioning,Services,06/04/2016,8000059712,622.16,Revenue,Redacted Personal Data,Boarding - Out Allowances
Peterborough City Council,Children's & Safeguarding,Access to Resources & Specialist Commissioning,Services,06/04/2016,8000059712,826.42,Revenue,Redacted Personal Data,Boarding - Out Allowances
Peterborough City Council,Children's & Safeguarding,Access to Resources & Specialist Commissioning,Services,06/04/2016,8000059712,580.02,Revenue,Redacted Personal Data,Boarding - Out Allowances
Peterborough City Council,Children's & Safeguarding,Access to Resources & Specialist Commissioning,Services,06/04/2016,8000059712,622.16,Revenue,Redacted Personal Data,Boarding - Out Allowances
Peterborough City Council,Children's & Safeguarding,Access to Resources & Specialist Commissioning,Services,06/04/2016,8000059712,580.02,Revenue,Redacted Personal Data,Boarding - Out Allowances
Peterborough City Council,Children's & Safeguarding,Access to Resources & Specialist Commissioning,Services,06/04/2016,8000059712,580.02,Revenue,Redacted Personal Data,Boarding - Out Allowances
Peterborough City Council,Children's & Safeguarding,Access to Resources & Specialist Commissioning,Services,06/04/2016,8000059712,580.02,Revenue,Redacted Personal Data,Boarding - Out Allowances
Peterborough City Council,Children's & Safeguarding,Access to Resources & Specialist Commissioning,Services,06/04/2016,8000059712,524.16,Revenue,Redacted Personal Data,Boarding - Out Allowances
Peterborough City Council,Children's & Safeguarding,Access to Resources & Specialist Commissioning,Services,06/04/2016,8000059712,580.02,Revenue,Redacted Personal Data,Boarding - Out Allowances
Peterborough City Council,Children's & Safeguarding,Access to Resources & Specialist Commissioning,Services,06/04/2016,8000059712,580.02,Revenue,Redacted Personal Data,Boarding - Out Allowances
Peterborough City Council,Children's & Safeguarding,Access to Resources & Specialist Commissioning,Services,06/04/2016,8000059712,885.08,Revenue,Redacted Personal Data,Boarding - Out Allowances
Peterborough City Council,Children's & Safeguarding,Access to Resources & Specialist Commissioning,Services,06/04/2016,8000059712,524.16,Revenue,Redacted Personal Data,Boarding - Out Allowances
Peterborough City Council,Children's & Safeguarding,Access to Resources & Specialist Commissioning,Services,06/04/2016,8000059712,580.02,Revenue,Redacted Personal Data,Boarding - Out Allowances
Peterborough City Council,Children's & Safeguarding,Access to Resources & Specialist Commissioning,Services,06/04/2016,8000059712,580.02,Revenue,Redacted Personal Data,Boarding - Out Allowances
Peterborough City Council,Children's & Safeguarding,Access to Resources & Specialist Commissioning,Services,06/04/2016,8000059712,580.02,Revenue,Redacted Personal Data,Boarding - Out Allowances
Peterborough City Council,Children's & Safeguarding,Access to Resources & Specialist Commissioning,Services,06/04/2016,8000059712,580.02,Revenue,Redacted Personal Data,Boarding - Out Allowances
Peterborough City Council,Children's & Safeguarding,Access to Resources & Specialist Commissioning,Services,06/04/2016,8000059712,885.08,Revenue,Redacted Personal Data,Boarding - Out Allowances
Peterborough City Council,Children's & Safeguarding,Access to Resources & Specialist Commissioning,Services,06/04/2016,8000059712,524.16,Revenue,Redacted Personal Data,Boarding - Out Allowances
Peterborough City Council,Children's & Safeguarding,Access to Resources & Specialist Commissioning,Services,06/04/2016,8000059712,524.16,Revenue,Redacted Personal Data,Boarding - Out Allowances
Peterborough City Council,Children's & Safeguarding,Access to Resources & Specialist Commissioning,Services,06/04/2016,8000059712,622.16,Revenue,Redacted Personal Data,Boarding - Out Allowances
Peterborough City Council,Children's & Safeguarding,Access to Resources & Specialist Commissioning,Services,06/04/2016,8000059712,580.02,Revenue,Redacted Personal Data,Boarding - Out Allowances
Peterborough City Council,Children's & Safeguarding,Access to Resources & Specialist Commissioning,Services,06/04/2016,8000059712,524.16,Revenue,Redacted Personal Data,Boarding - Out Allowances
Peterborough City Council,Children's & Safeguarding,Access to Resources & Specialist Commissioning,Services,06/04/2016,8000059712,524.16,Revenue,Redacted Personal Data,Boarding - Out Allowances
Peterborough City Council,Children's & Safeguarding,Access to Resources & Specialist Commissioning,Services,06/04/2016,8000059712,524.16,Revenue,Redacted Personal Data,Boarding - Out Allowances
Peterborough City Council,Children's & Safeguarding,Access to Resources & Specialist Commissioning,Services,06/04/2016,8000059712,542.55,Revenue,Redacted Personal Data,Boarding - Out Allowances
Peterborough City Council,Children's & Safeguarding,Access to Resources & Specialist Commissioning,Services,06/04/2016,8000059712,622.16,Revenue,Redacted Personal Data,Boarding - Out Allowances
Peterborough City Council,Children's & Safeguarding,Access to Resources & Specialist Commissioning,Services,06/04/2016,8000059712,524.16,Revenue,Redacted Personal Data,Boarding - Out Allowances
Peterborough City Council,Children's & Safeguarding,Access to Resources & Specialist Commissioning,Services,06/04/2016,8000059712,580.02,Revenue,Redacted Personal Data,Boarding - Out Allowances
Peterborough City Council,Children's & Safeguarding,Access to Resources & Specialist Commissioning,Services,06/04/2016,8000059712,900.9,Revenue,Redacted Personal Data,Boarding - Out Allowances
Peterborough City Council,Children's & Safeguarding,Access to Resources & Specialist Commissioning,Services,06/04/2016,8000059712,622.16,Revenue,Redacted Personal Data,Boarding - Out Allowances
Peterborough City Council,Children's & Safeguarding,Access to Resources & Specialist Commissioning,Services,06/04/2016,8000059712,622.16,Revenue,Redacted Personal Data,Boarding - Out Allowances
Peterborough City Council,Children's & Safeguarding,Access to Resources & Specialist Commissioning,Services,06/04/2016,8000059712,646.15,Revenue,Redacted Personal Data,Boarding - Out Allowances
Peterborough City Council,Children's & Safeguarding,Access to Resources & Specialist Commissioning,Services,06/04/2016,8000059712,646.15,Revenue,Redacted Personal Data,Boarding - Out Allowances
Peterborough City Council,Children's & Safeguarding,Access to Resources & Specialist Commissioning,Services,06/04/2016,8000059712,632.38,Revenue,Redacted Personal Data,Boarding - Out Allowances
Peterborough City Council,Children's & Safeguarding,Access to Resources & Specialist Commissioning,Services,06/04/2016,8000059712,632.38,Revenue,Redacted Personal Data,Boarding - Out Allowances
Peterborough City Council,Children's & Safeguarding,Access to Resources & Specialist Commissioning,Services,06/04/2016,8000059712,792,Revenue,Redacted Personal Data,Boarding - Out Allowances
Peterborough City Council,Children's & Safeguarding,Access to Resources & Specialist Commissioning,Services,06/04/2016,8000059712,792,Revenue,Redacted Personal Data,Boarding - Out Allowances
Peterborough City Council,Children's & Safeguarding,Access to Resources & Specialist Commissioning,Services,06/04/2016,8000059712,844.48,Revenue,Redacted Personal Data,Boarding - Out Allowances
Peterborough City Council,Children's & Safeguarding,Access to Resources & Specialist Commissioning,Services,06/04/2016,8000059712,524.16,Revenue,Redacted Personal Data,Boarding - Out Allowances
Peterborough City Council,Children's & Safeguarding,Access to Resources & Specialist Commissioning,Services,06/04/2016,8000059712,686.91,Revenue,Redacted Personal Data,Boarding - Out Allowances
Peterborough City Council,Children's & Safeguarding,Access to Resources & Specialist Commissioning,Services,06/04/2016,8000059712,580.02,Revenue,Redacted Personal Data,Boarding - Out Allowances
Peterborough City Council,Children's & Safeguarding,Access to Resources & Specialist Commissioning,Services,06/04/2016,8000059712,538.68,Revenue,Redacted Personal Data,Boarding - Out Allowances
Peterborough City Council,Children's & Safeguarding,Access to Resources & Specialist Commissioning,Services,06/04/2016,8000059712,580.02,Revenue,Redacted Personal Data,Boarding - Out Allowances
Peterborough City Council,Children's & Safeguarding,Access to Resources & Specialist Commissioning,Services,06/04/2016,8000059712,524.16,Revenue,Redacted Personal Data,Boarding - Out Allowances
Peterborough City Council,Children's & Safeguarding,Access to Resources & Specialist Commissioning,Services,06/04/2016,8000059712,580.02,Revenue,Redacted Personal Data,Boarding - Out Allowances
Peterborough City Council,Children's & Safeguarding,Access to Resources & Specialist Commissioning,Services,06/04/2016,8000059712,580.02,Revenue,Redacted Personal Data,Boarding - Out Allowances
Peterborough City Council,Children's & Safeguarding,Access to Resources & Specialist Commissioning,Services,06/04/2016,8000059712,524.16,Revenue,Redacted Personal Data,Boarding - Out Allowances
Peterborough City Council,Children's & Safeguarding,Access to Resources & Specialist Commissioning,Services,06/04/2016,8000059712,580.02,Revenue,Redacted Personal Data,Boarding - Out Allowances
Peterborough City Council,Children's & Safeguarding,Access to Resources & Specialist Commissioning,Services,06/04/2016,8000059712,622.16,Revenue,Redacted Personal Data,Boarding - Out Allowances
Peterborough City Council,Children's & Safeguarding,Access to Resources & Specialist Commissioning,Services,06/04/2016,8000059712,900.9,Revenue,Redacted Personal Data,Boarding - Out Allowances
Peterborough City Council,Children's & Safeguarding,Access to Resources & Specialist Commissioning,Services,06/04/2016,8000059712,622.16,Revenue,Redacted Personal Data,Boarding - Out Allowances
Peterborough City Council,Children's & Safeguarding,Access to Resources & Specialist Commissioning,Services,06/04/2016,8000059712,531.88,Revenue,Redacted Personal Data,Boarding - Out Allowances
Peterborough City Council,Children's & Safeguarding,Access to Resources & Specialist Commissioning,Services,06/04/2016,8000059712,545.88,Revenue,Redacted Personal Data,Boarding - Out Allowances
Peterborough City Council,Children's & Safeguarding,Access to Resources & Specialist Commissioning,Services,06/04/2016,8000059712,545.88,Revenue,Redacted Personal Data,Boarding - Out Allowances
Peterborough City Council,Children's & Safeguarding,Access to Resources & Specialist Commissioning,Services,06/04/2016,8000059712,545.88,Revenue,Redacted Personal Data,Boarding - Out Allowances
Peterborough City Council,Children's & Safeguarding,Access to Resources & Specialist Commissioning,Services,06/04/2016,8000059712,545.88,Revenue,Redacted Personal Data,Boarding - Out Allowances
Peterborough City Council,Children's & Safeguarding,Access to Resources & Specialist Commissioning,Services,06/04/2016,8000059712,689.92,Revenue,Redacted Personal Data,Boarding - Out Allowances
Peterborough City Council,Children's & Safeguarding,Access to Resources & Specialist Commissioning,Services,06/04/2016,8000059712,831.74,Revenue,Redacted Personal Data,Boarding - Out Allowances
Peterborough City Council,Children's & Safeguarding,Access to Resources & Specialist Commissioning,Services,06/04/2016,8000059712,664.72,Revenue,Redacted Personal Data,Boarding - Out Allowances
Peterborough City Council,Children's & Safeguarding,Access to Resources & Specialist Commissioning,Services,06/04/2016,8000059712,985.72,Revenue,Redacted Personal Data,Boarding - Out Allowances
Peterborough City Council,Children's & Safeguarding,Access to Resources & Specialist Commissioning,Services,06/04/2016,8000059712,680.72,Revenue,Redacted Personal Data,Boarding - Out Allowances
Peterborough City Council,Children's & Safeguarding,Access to Resources & Specialist Commissioning,Services,06/04/2016,8000059712,680.72,Revenue,Redacted Personal Data,Boarding - Out Allowances
Peterborough City Council,Children's & Safeguarding,Access to Resources & Specialist Commissioning,Services,06/04/2016,8000059712,928.5,Revenue,Redacted Personal Data,Boarding - Out Allowances
Peterborough City Council,Children's & Safeguarding,Access to Resources & Specialist Commissioning,Services,06/04/2016,8000059712,928.5,Revenue,Redacted Personal Data,Boarding - Out Allowances
Peterborough City Council,Children's & Safeguarding,Access to Resources & Specialist Commissioning,Services,06/04/2016,8000059712,723.52,Revenue,Redacted Personal Data,Boarding - Out Allowances
Peterborough City Council,Children's & Safeguarding,Access to Resources & Specialist Commissioning,Services,06/04/2016,8000059712,524.16,Revenue,Redacted Personal Data,Boarding - Out Allowances
Peterborough City Council,Children's & Safeguarding,Access to Resources & Specialist Commissioning,Services,06/04/2016,8000059712,622.16,Revenue,Redacted Personal Data,Boarding - Out Allowances
Peterborough City Council,Children's & Safeguarding,Access to Resources & Specialist Commissioning,Services,06/04/2016,8000059712,580.02,Revenue,Redacted Personal Data,Boarding - Out Allowances
Peterborough City Council,Children's & Safeguarding,Access to Resources & Specialist Commissioning,Services,06/04/2016,8000059712,900.9,Revenue,Redacted Personal Data,Boarding - Out Allowances
Peterborough City Council,Children's & Safeguarding,Access to Resources & Specialist Commissioning,Services,06/04/2016,8000059712,723.52,Revenue,Redacted Personal Data,Boarding - Out Allowances
Peterborough City Council,Children's & Safeguarding,Access to Resources & Specialist Commissioning,Services,06/04/2016,8000059712,533.28,Revenue,Redacted Personal Data,Boarding - Out Allowances
Peterborough City Council,Children's & Safeguarding,Access to Resources & Specialist Commissioning,Services,06/04/2016,8000059712,673.12,Revenue,Redacted Personal Data,Boarding - Out Allowances
Peterborough City Council,Children's & Safeguarding,Access to Resources & Specialist Commissioning,Services,06/04/2016,8000059712,673.12,Revenue,Redacted Personal Data,Boarding - Out Allowances
Peterborough City Council,Children's & Safeguarding,Access to Resources & Specialist Commissioning,Services,06/04/2016,8000059712,851.48,Revenue,Redacted Personal Data,Boarding - Out Allowances
Peterborough City Council,Children's & Safeguarding,Access to Resources & Specialist Commissioning,Services,06/04/2016,8000059712,840,Revenue,Redacted Personal Data,Boarding - Out Allowances
Peterborough City Council,Children's & Safeguarding,Access to Resources & Specialist Commissioning,Services,06/04/2016,8000059712,524.16,Revenue,Redacted Personal Data,Boarding - Out Allowances
Peterborough City Council,Children's & Safeguarding,Access to Resources & Specialist Commissioning,Services,06/04/2016,8000059712,580.02,Revenue,Redacted Personal Data,Boarding - Out Allowances
Peterborough City Council,Children's & Safeguarding,Access to Resources & Specialist Commissioning,Services,06/04/2016,8000059712,793.94,Revenue,Redacted Personal Data,Boarding - Out Allowances
Peterborough City Council,Children's & Safeguarding,Access to Resources & Specialist Commissioning,Services,06/04/2016,8000059712,"1,988.00",Revenue,Redacted Personal Data,Boarding - Out Allowances
Peterborough City Council,Children's & Safeguarding,Access to Resources & Specialist Commissioning,Services,06/04/2016,8000059712,622.16,Revenue,Redacted Personal Data,Boarding - Out Allowances
Peterborough City Council,Children's & Safeguarding,Access to Resources & Specialist Commissioning,Services,06/04/2016,8000059712,524.16,Revenue,Redacted Personal Data,Boarding - Out Allowances
Peterborough City Council,Children's & Safeguarding,Access to Resources & Specialist Commissioning,Services,06/04/2016,8000059712,664.72,Revenue,Redacted Personal Data,Boarding - Out Allowances
Peterborough City Council,Children's & Safeguarding,Access to Resources & Specialist Commissioning,Services,06/04/2016,8000059712,664.72,Revenue,Redacted Personal Data,Boarding - Out Allowances
Peterborough City Council,Children's & Safeguarding,Access to Resources & Specialist Commissioning,Services,06/04/2016,8000059712,524.16,Revenue,Redacted Personal Data,Boarding - Out Allowances
Peterborough City Council,Children's & Safeguarding,Access to Resources & Specialist Commissioning,Services,06/04/2016,8000059712,580.02,Revenue,Redacted Personal Data,Boarding - Out Allowances
Peterborough City Council,Children's & Safeguarding,Access to Resources & Specialist Commissioning,Services,06/04/2016,8000059712,552.61,Revenue,Redacted Personal Data,Boarding - Out Allowances
Peterborough City Council,Children's & Safeguarding,Access to Resources & Specialist Commissioning,Services,06/04/2016,8000059712,552.61,Revenue,Redacted Personal Data,Boarding - Out Allowances
Peterborough City Council,Children's & Safeguarding,Access to Resources & Specialist Commissioning,Services,06/04/2016,8000059712,901.02,Revenue,Redacted Personal Data,Boarding - Out Allowances
Peterborough City Council,Children's & Safeguarding,Access to Resources & Specialist Commissioning,Services,06/04/2016,8000059712,901.02,Revenue,Redacted Personal Data,Boarding - Out Allowances
Peterborough City Council,Children's & Safeguarding,Access to Resources & Specialist Commissioning,Services,06/04/2016,8000059712,645.72,Revenue,Redacted Personal Data,Boarding - Out Allowances
Peterborough City Council,Children's & Safeguarding,Access to Resources & Specialist Commissioning,Services,06/04/2016,8000059712,769,Revenue,Redacted Personal Data,Boarding - Out Allowances
Peterborough City Council,Children's & Safeguarding,Access to Resources & Specialist Commissioning,Services,06/04/2016,8000059712,788.9,Revenue,Redacted Personal Data,Boarding - Out Allowances
Peterborough City Council,Children's & Safeguarding,Access to Resources & Specialist Commissioning,Services,06/04/2016,8000059712,788.9,Revenue,Redacted Personal Data,Boarding - Out Allowances
Peterborough City Council,Children's & Safeguarding,Access to Resources & Specialist Commissioning,Services,06/04/2016,8000059712,"1,077.60",Revenue,Redacted Personal Data,Boarding - Out Allowances
Peterborough City Council,Children's & Safeguarding,Access to Resources & Specialist Commissioning,Services,06/04/2016,8000059712,840,Revenue,Redacted Personal Data,Boarding - Out Allowances
Peterborough City Council,Children's & Safeguarding,Access to Resources & Specialist Commissioning,Services,06/04/2016,8000059712,855.96,Revenue,Redacted Personal Data,Boarding - Out Allowances
Peterborough City Council,Children's & Safeguarding,Access to Resources & Specialist Commissioning,Services,06/04/2016,8000059712,683.2,Revenue,Redacted Personal Data,Boarding - Out Allowances
Peterborough City Council,Children's & Safeguarding,Access to Resources & Specialist Commissioning,Services,06/04/2016,8000059712,580.02,Revenue,Redacted Personal Data,Boarding - Out Allowances
Peterborough City Council,Children's & Safeguarding,Access to Resources & Specialist Commissioning,Services,06/04/2016,8000059712,580.02,Revenue,Redacted Personal Data,Boarding - Out Allowances
Peterborough City Council,Children's & Safeguarding,Access to Resources & Specialist Commissioning,Services,06/04/2016,8000059712,831.74,Revenue,Redacted Personal Data,Boarding - Out Allowances
Peterborough City Council,Children's & Safeguarding,Access to Resources & Specialist Commissioning,Services,06/04/2016,8000059712,868.56,Revenue,Redacted Personal Data,Boarding - Out Allowances
Peterborough City Council,Children's & Safeguarding,Access to Resources & Specialist Commissioning,Services,06/04/2016,8000059712,580.02,Revenue,Redacted Personal Data,Boarding - Out Allowances
Peterborough City Council,Children's & Safeguarding,Access to Resources & Specialist Commissioning,Services,06/04/2016,8000059712,855.96,Revenue,Redacted Personal Data,Boarding - Out Allowances
Peterborough City Council,Children's & Safeguarding,Access to Resources & Specialist Commissioning,Services,06/04/2016,8000059712,524.16,Revenue,Redacted Personal Data,Boarding - Out Allowances
Peterborough City Council,Children's & Safeguarding,Access to Resources & Specialist Commissioning,Services,06/04/2016,8000059712,524.16,Revenue,Redacted Personal Data,Boarding - Out Allowances
Peterborough City Council,Children's & Safeguarding,Access to Resources & Specialist Commissioning,Services,06/04/2016,8000059712,590,Revenue,Redacted Personal Data,Boarding - Out Allowances
Peterborough City Council,Children's & Safeguarding,Access to Resources & Specialist Commissioning,Services,06/04/2016,8000059712,673.12,Revenue,Redacted Personal Data,Boarding - Out Allowances
Peterborough City Council,Children's & Safeguarding,Access to Resources & Specialist Commissioning,Services,06/04/2016,8000059712,686.91,Revenue,Redacted Personal Data,Boarding - Out Allowances
Peterborough City Council,Children's & Safeguarding,Access to Resources & Specialist Commissioning,Services,06/04/2016,8000059712,622.16,Revenue,Redacted Personal Data,Boarding - Out Allowances
Peterborough City Council,Children's & Safeguarding,Access to Resources & Specialist Commissioning,Services,06/04/2016,8000059712,806.72,Revenue,Redacted Personal Data,Boarding - Out Allowances
Peterborough City Council,Children's & Safeguarding,Access to Resources & Specialist Commissioning,Services,06/04/2016,8000059712,"1,306.72",Revenue,Redacted Personal Data,Boarding - Out Allowances
Peterborough City Council,Children's & Safeguarding,Access to Resources & Specialist Commissioning,Services,06/04/2016,8000059712,580.02,Revenue,Redacted Personal Data,Boarding - Out Allowances
Peterborough City Council,Children's & Safeguarding,Access to Resources & Specialist Commissioning,Services,06/04/2016,8000059712,564.06,Revenue,Redacted Personal Data,Boarding - Out Allowances
Peterborough City Council,Children's & Safeguarding,Access to Resources & Specialist Commissioning,Services,06/04/2016,8000059712,580.02,Revenue,Redacted Personal Data,Boarding - Out Allowances
Peterborough City Council,Children's & Safeguarding,Access to Resources & Specialist Commissioning,Services,06/04/2016,8000059712,524.16,Revenue,Redacted Personal Data,Boarding - Out Allowances
Peterborough City Council,Children's & Safeguarding,Access to Resources & Specialist Commissioning,Services,06/04/2016,8000059712,689.92,Revenue,Redacted Personal Data,Boarding - Out Allowances
Peterborough City Council,Children's & Safeguarding,Access to Resources & Specialist Commissioning,Services,06/04/2016,8000059712,580.02,Revenue,Redacted Personal Data,Boarding - Out Allowances
Peterborough City Council,Children's & Safeguarding,Access to Resources & Specialist Commissioning,Services,06/04/2016,8000059712,580.02,Revenue,Redacted Personal Data,Boarding - Out Allowances
Peterborough City Council,Children's & Safeguarding,Access to Resources & Specialist Commissioning,Services,06/04/2016,8000059712,524.16,Revenue,Redacted Personal Data,Boarding - Out Allowances
Peterborough City Council,Children's & Safeguarding,Access to Resources & Specialist Commissioning,Services,06/04/2016,8000059712,580.02,Revenue,Redacted Personal Data,Boarding - Out Allowances
Peterborough City Council,Children's & Safeguarding,Access to Resources & Specialist Commissioning,Services,06/04/2016,8000059712,580.02,Revenue,Redacted Personal Data,Boarding - Out Allowances
Peterborough City Council,Children's & Safeguarding,Access to Resources & Specialist Commissioning,Services,06/04/2016,8000059712,580.02,Revenue,Redacted Personal Data,Boarding - Out Allowances
Peterborough City Council,Children's & Safeguarding,Access to Resources & Specialist Commissioning,Services,06/04/2016,8000059712,524.16,Revenue,Redacted Personal Data,Boarding - Out Allowances
Peterborough City Council,Children's & Safeguarding,Access to Resources & Specialist Commissioning,Services,06/04/2016,8000059712,794.46,Revenue,Redacted Personal Data,Boarding - Out Allowances
Peterborough City Council,Children's & Safeguarding,Access to Resources & Specialist Commissioning,Services,06/04/2016,8000059712,794.46,Revenue,Redacted Personal Data,Boarding - Out Allowances
Peterborough City Council,Children's & Safeguarding,Access to Resources & Specialist Commissioning,Services,06/04/2016,8000059712,524.16,Revenue,Redacted Personal Data,Boarding - Out Allowances
Peterborough City Council,Children's & Safeguarding,Access to Resources & Specialist Commissioning,Services,06/04/2016,8000059712,524.16,Revenue,Redacted Personal Data,Boarding - Out Allowances
Peterborough City Council,Children's & Safeguarding,Access to Resources & Specialist Commissioning,Services,06/04/2016,8000059712,580.12,Revenue,Redacted Personal Data,Boarding - Out Allowances
Peterborough City Council,Children's & Safeguarding,Access to Resources & Specialist Commissioning,Services,06/04/2016,8000059712,"1,816.49",Revenue,Redacted Personal Data,Boarding - Out Allowances
Peterborough City Council,Children's & Safeguarding,Access to Resources & Specialist Commissioning,Services,06/04/2016,8000059712,"2,140.53",Revenue,Redacted Personal Data,Boarding - Out Allowances
Peterborough City Council,Children's & Safeguarding,Access to Resources & Specialist Commissioning,Services,06/04/2016,8000059712,873.01,Revenue,Redacted Personal Data,Boarding - Out Allowances
Peterborough City Council,Children's & Safeguarding,Access to Resources & Specialist Commissioning,Services,06/04/2016,8000059712,"2,274.44",Revenue,Redacted Personal Data,Boarding - Out Allowances
Peterborough City Council,Children's & Safeguarding,Access to Resources & Specialist Commissioning,Services,08/04/2016,30057493,"2,391.65",Revenue,Foster Care Associates Ltd FCA,Boarding - Out Allowances
Peterborough City Council,Children's & Safeguarding,Access to Resources & Specialist Commissioning,Services,08/04/2016,30060274,"4,292.69",Revenue,Foster Care Associates Ltd FCA,Boarding - Out Allowances
Peterborough City Council,Children's & Safeguarding,Access to Resources & Specialist Commissioning,Services,08/04/2016,30061203,"4,292.69",Revenue,Foster Care Associates Ltd FCA,Boarding - Out Allowances
Peterborough City Council,Children's & Safeguarding,Children's Social Care,Agency Staff,08/04/2016,30064048,"2,500.00",Revenue,Sanctuary Personnel Ltd,External Temporary Staff
Peterborough City Council,Adult Services & Communities - Adults,Therapy/Reablement/Community Equipment,Services,08/04/2016,30065384,780.27,Revenue,Action on Hearing Loss,Equipment Purchase
Peterborough City Council,Adult Services & Communities - Adults,Therapy/Reablement/Community Equipment,Services,08/04/2016,30065385,762.97,Revenue,Action on Hearing Loss,Equipment Purchase
Peterborough City Council,Adult Services & Communities - Adults,Therapy/Reablement/Community Equipment,Services,08/04/2016,30065387,813.32,Revenue,Action on Hearing Loss,Equipment Purchase
Peterborough City Council,Children's & Safeguarding,Child Health,Services,08/04/2016,30065751,537.9,Revenue,K2 CARE LTD,Hired Services
Peterborough City Council,Children's & Safeguarding,Child Health,Services,08/04/2016,30065752,961.19,Revenue,K2 CARE LTD,Purchased Social Care Services
Peterborough City Council,Children's & Safeguarding,CSC Quality Assurance,Services,08/04/2016,30066159,755.9,Revenue,Redacted Personal Data,Consultants Fees
Peterborough City Council,Business Management and Commercial Operations,Commissioning,Services,08/04/2016,30066405,"1,626.88",Revenue,CAPITA Translation and Interpreting,Interpretation Expenses
Peterborough City Council,Business Management and Commercial Operations,Commissioning,Services,08/04/2016,30066408,673.67,Revenue,CAPITA Translation and Interpreting,Interpretation Expenses
Peterborough City Council,Corporate Property,Office Accomodation,Repair & Maintenance of Buildings,08/04/2016,30066587,"4,814.54",Revenue,Baker Perkins Ltd,Service Charges - Premises
Peterborough City Council,Director of Governance,Gov HOS,Services,08/04/2016,30066746,"9,758.00",Revenue,Penna Plc,Consultants Fees
Peterborough City Council,Public Health,Housing and Health - Public Health,Third Party Payment,08/04/2016,30066852,579,Revenue,West Town Chemist,Third Party Payments - Contract
Peterborough City Council,Public Health,Housing and Health - Public Health,Third Party Payment,08/04/2016,30066854,600,Revenue,Bretton Medical Practice,Third Party Payments - Contract
Peterborough City Council,Public Health,Housing and Health - Public Health,Third Party Payment,08/04/2016,30066857,986.69,Revenue,Graham Young Pharmacy,Third Party Payments - Contract
Peterborough City Council,Public Health,Housing and Health - Public Health,Third Party Payment,08/04/2016,30066864,568.54,Revenue,Boots Queensgate,Third Party Payments - Contract
Peterborough City Council,Public Health,Housing and Health - Public Health,Third Party Payment,08/04/2016,30066865,834.41,Revenue,Mi Pharmacy Ltd - Werrington Branch,Third Party Payments - Contract
Peterborough City Council,Adult Services & Communities - Adults,Day Opportunities / In House,Agency Staff,08/04/2016,30067431,"1,096.80",Revenue,Caritas Recruitment,External Temporary Staff
Peterborough City Council,Adult Services & Communities - Adults,Day Opportunities / In House,Agency Staff,08/04/2016,30067433,"1,050.00",Revenue,Caritas Recruitment,External Temporary Staff
Peterborough City Council,Children's & Safeguarding,Access to Resources & Specialist Commissioning,Services,08/04/2016,30067557,"4,411.43",Revenue,By The Bridge,Boarding - Out Allowances
Peterborough City Council,Adult Services & Communities - Adults,Day Opportunities / In House,Agency Staff,08/04/2016,30067882,"-1,120.00",Revenue,Caritas Recruitment,External Temporary Staff
Peterborough City Council,Children's & Safeguarding,Access to Resources & Specialist Commissioning,Services,08/04/2016,30067942,883.5,Revenue,Axiom Housing Association,Boarding - Out Allowances
Peterborough City Council,Children's & Safeguarding,Access to Resources & Specialist Commissioning,Services,08/04/2016,30067945,764.65,Revenue,Axiom Housing Association,Boarding - Out Allowances
Peterborough City Council,Adult Services & Communities - Adults,Therapy/Reablement/Community Equipment,"Tools, Equipment, Furniture & Materials",08/04/2016,30068057,"1,287.80",Revenue,Movement 2 - Prism Medical UK,Occupational Therapy Equipment
Peterborough City Council,Children's & Safeguarding,Access to Resources & Specialist Commissioning,Services,08/04/2016,30068202,"1,413.00",Revenue,PC Homes,Boarding - Out Allowances
Peterborough City Council,Children's & Safeguarding,Child Health,Services,08/04/2016,30068235,699.43,Revenue,Sahara Community Care Services,Hired Services
Peterborough City Council,Children's & Safeguarding,Children's Social Care,Agency Staff,08/04/2016,30068816,840,Revenue,Medicare First,External Temporary Staff
Peterborough City Council,Children's & Safeguarding,Children's Social Care,Agency Staff,08/04/2016,30068921,"1,221.00",Revenue,SWP Consulting,External Temporary Staff
Peterborough City Council,Corporate,Corporate,Non Revenue,08/04/2016,30068936,"2,250.84",Capital,Honeywell Control Systems Ltd,Building And Site Works
Peterborough City Council,Corporate,Corporate,Non Revenue,08/04/2016,30068938,"1,100.16",Capital,Honeywell Control Systems Ltd,Building And Site Works
Peterborough City Council,Corporate,Corporate,Non Revenue,08/04/2016,30068940,"10,266.05",Capital,Honeywell Control Systems Ltd,Building And Site Works
Peterborough City Council,Corporate,Corporate,Non Revenue,08/04/2016,30068942,"2,070.90",Capital,Honeywell Control Systems Ltd,Building And Site Works
Peterborough City Council,Corporate,Corporate,Non Revenue,08/04/2016,30068944,"17,901.21",Capital,Honeywell Control Systems Ltd,Building And Site Works
Peterborough City Council,Adult Services & Communities - Adults,Independent Sector Placements,Services,08/04/2016,30069118,867.28,Revenue,BUPA Care Homes,Residential Care
Peterborough City Council,Adult Services & Communities - Adults,Independent Sector Placements,Services,08/04/2016,30069120,"1,550.32",Revenue,BUPA Care Homes,Residential Care
Peterborough City Council,Adult Services & Communities - Adults,Independent Sector Placements,Services,08/04/2016,30069121,"1,277.88",Revenue,BUPA Care Homes,Residential Care
Peterborough City Council,Adult Services & Communities - Adults,Independent Sector Placements,Services,08/04/2016,30069124,"1,475.36",Revenue,BUPA Care Homes,Residential Care
Peterborough City Council,Adult Services & Communities - Adults,Independent Sector Placements,Services,08/04/2016,30069125,"1,680.92",Revenue,BUPA Care Homes,Residential Care
Peterborough City Council,Adult Services & Communities - Adults,Independent Sector Placements,Services,08/04/2016,30069126,"1,267.00",Revenue,BUPA Care Homes,Residential Care
Peterborough City Council,Adult Services & Communities - Adults,Independent Sector Placements,Services,08/04/2016,30069127,"1,607.76",Revenue,BUPA Care Homes,Residential Care
Peterborough City Council,Children's & Safeguarding,Access to Resources & Specialist Commissioning,Services,08/04/2016,30069129,"3,512.30",Revenue,Archway Care Ltd,Boarding - Out Allowances
Peterborough City Council,Children's & Safeguarding,Access to Resources & Specialist Commissioning,Services,08/04/2016,30069130,"3,620.80",Revenue,Archway Care Ltd,Boarding - Out Allowances
Peterborough City Council,Children's & Safeguarding,Access to Resources & Specialist Commissioning,Services,08/04/2016,30069131,"3,620.80",Revenue,Archway Care Ltd,Boarding - Out Allowances
Peterborough City Council,Children's & Safeguarding,Access to Resources & Specialist Commissioning,Services,08/04/2016,30069132,"3,620.80",Revenue,Archway Care Ltd,Boarding - Out Allowances
Peterborough City Council,Children's & Safeguarding,Access to Resources & Specialist Commissioning,Services,08/04/2016,30069133,"3,548.26",Revenue,Archway Care Ltd,Boarding - Out Allowances
Peterborough City Council,Adult Services & Communities - Adults,Independent Sector Placements,Services,08/04/2016,30069140,"1,564.36",Revenue,BUPA Care Homes,Residential Care
Peterborough City Council,Adult Services & Communities - Adults,Independent Sector Placements,Services,08/04/2016,30069141,"1,008.56",Revenue,BUPA Care Homes,Residential Care
Peterborough City Council,Adult Services & Communities - Adults,Independent Sector Placements,Services,08/04/2016,30069142,704.84,Revenue,BUPA Care Homes,Residential Care
Peterborough City Council,Adult Services & Communities - Adults,Independent Sector Placements,Services,08/04/2016,30069143,"1,623.72",Revenue,BUPA Care Homes,Residential Care
Peterborough City Council,Adult Services & Communities - Adults,Independent Sector Placements,Services,08/04/2016,30069144,"1,821.88",Revenue,BUPA Care Homes,Residential Care
Peterborough City Council,Adult Services & Communities - Adults,Independent Sector Placements,Services,08/04/2016,30069145,"1,545.56",Revenue,BUPA Care Homes,Residential Care
Peterborough City Council,Adult Services & Communities - Adults,Independent Sector Placements,Services,08/04/2016,30069146,"1,821.88",Revenue,BUPA Care Homes,Residential Care
Peterborough City Council,Adult Services & Communities - Adults,Independent Sector Placements,Services,08/04/2016,30069147,773.12,Revenue,BUPA Care Homes,Residential Care
Peterborough City Council,Adult Services & Communities - Adults,Independent Sector Placements,Services,08/04/2016,30069148,"1,238.72",Revenue,BUPA Care Homes,Residential Care
Peterborough City Council,Adult Services & Communities - Adults,Independent Sector Placements,Services,08/04/2016,30069149,757.92,Revenue,BUPA Care Homes,Residential Care
Peterborough City Council,Adult Services & Communities - Adults,Independent Sector Placements,Services,08/04/2016,30069150,"1,623.72",Revenue,BUPA Care Homes,Residential Care
Peterborough City Council,Adult Services & Communities - Adults,Independent Sector Placements,Services,08/04/2016,30069151,"2,460.00",Revenue,BUPA Care Homes,Residential Care
Peterborough City Council,Adult Services & Communities - Adults,Independent Sector Placements,Services,08/04/2016,30069152,"2,128.92",Revenue,BUPA Care Homes,Residential Care
Peterborough City Council,Adult Services & Communities - Adults,Independent Sector Placements,Services,08/04/2016,30069153,"1,055.08",Revenue,BUPA Care Homes,Residential Care
Peterborough City Council,Adult Services & Communities - Adults,Independent Sector Placements,Services,08/04/2016,30069154,"1,001.92",Revenue,BUPA Care Homes,Residential Care
Peterborough City Council,Adult Services & Communities - Adults,Independent Sector Placements,Services,08/04/2016,30069155,"1,316.68",Revenue,BUPA Care Homes,Residential Care
Peterborough City Council,Adult Services & Communities - Adults,Independent Sector Placements,Services,08/04/2016,30069156,"1,623.72",Revenue,BUPA Care Homes,Residential Care
Peterborough City Council,Adult Services & Communities - Adults,Independent Sector Placements,Services,08/04/2016,30069157,"1,485.68",Revenue,BUPA Care Homes,Residential Care
Peterborough City Council,Adult Services & Communities - Adults,Independent Sector Placements,Services,08/04/2016,30069158,"1,821.88",Revenue,BUPA Care Homes,Residential Care
Peterborough City Council,Adult Services & Communities - Adults,Independent Sector Placements,Services,08/04/2016,30069167,"1,595.20",Revenue,BUPA Care Homes,Residential Care
Peterborough City Council,Adult Services & Communities - Adults,Independent Sector Placements,Services,08/04/2016,30069170,"1,821.88",Revenue,BUPA Care Homes,Residential Care
Peterborough City Council,Adult Services & Communities - Adults,Independent Sector Placements,Services,08/04/2016,30069171,"1,180.52",Revenue,BUPA Care Homes,Residential Care
Peterborough City Council,Adult Services & Communities - Adults,Independent Sector Placements,Services,08/04/2016,30069173,"1,378.48",Revenue,BUPA Care Homes,Residential Care
Peterborough City Council,Adult Services & Communities - Adults,Independent Sector Placements,Services,08/04/2016,30069175,"1,454.76",Revenue,BUPA Care Homes,Residential Care
Peterborough City Council,Adult Services & Communities - Adults,Independent Sector Placements,Services,08/04/2016,30069178,973.72,Revenue,BUPA Care Homes,Residential Care
Peterborough City Council,Adult Services & Communities - Adults,Independent Sector Placements,Services,08/04/2016,30069179,724.12,Revenue,BUPA Care Homes,Residential Care
Peterborough City Council,Adult Services & Communities - Adults,Independent Sector Placements,Services,08/04/2016,30069180,"3,158.20",Revenue,BUPA Care Homes,Residential Care
Peterborough City Council,Adult Services & Communities - Adults,Independent Sector Placements,Services,08/04/2016,30069182,"1,440.32",Revenue,BUPA Care Homes,Residential Care
Peterborough City Council,Adult Services & Communities - Adults,Independent Sector Placements,Services,08/04/2016,30069184,842.2,Revenue,BUPA Care Homes,Residential Care
Peterborough City Council,Adult Services & Communities - Adults,Independent Sector Placements,Services,08/04/2016,30069185,"1,587.36",Revenue,BUPA Care Homes,Residential Care
Peterborough City Council,Adult Services & Communities - Adults,Independent Sector Placements,Services,08/04/2016,30069186,"1,131.04",Revenue,BUPA Care Homes,Residential Care
Peterborough City Council,Adult Services & Communities - Adults,Independent Sector Placements,Services,08/04/2016,30069187,"1,623.72",Revenue,BUPA Care Homes,Residential Care
Peterborough City Council,Children's & Safeguarding,Children's Social Care,Agency Staff,08/04/2016,30069198,"1,406.00",Revenue,NonStop Recruitment Ltd,External Temporary Staff
Peterborough City Council,Adult Services & Communities - Adults,Independent Sector Placements,Services,08/04/2016,30069201,"14,729.52",Revenue,WESTWARD CARE HOMES LTD (Westward Healthcare),Residential Care
Peterborough City Council,Adult Services & Communities - Adults,Independent Sector Placements,Services,08/04/2016,30069207,"2,047.40",Revenue,LINK HOUSE,Residential Care
Peterborough City Council,Adult Services & Communities - Adults,Independent Sector Placements,Services,08/04/2016,30069209,"1,267.48",Revenue,St Georges Glatton Hall,Residential Care
Peterborough City Council,Children's & Safeguarding,Children's Social Care,Agency Staff,08/04/2016,30069337,"1,744.00",Revenue,Sanctuary Personnel Ltd,External Temporary Staff
Peterborough City Council,Children's & Safeguarding,Children's Social Care,Agency Staff,08/04/2016,30069340,"2,500.00",Revenue,Sanctuary Personnel Ltd,External Temporary Staff
Peterborough City Council,Children's & Safeguarding,Children's Social Care,Agency Staff,08/04/2016,30069341,"1,406.00",Revenue,Sanctuary Personnel Ltd,External Temporary Staff
Peterborough City Council,Children's & Safeguarding,Children's Social Care,Agency Staff,08/04/2016,30069344,"1,787.10",Revenue,Sanctuary Personnel Ltd,External Temporary Staff
Peterborough City Council,Children's & Safeguarding,Children's Social Care,Agency Staff,08/04/2016,30069350,"1,285.48",Revenue,Sanctuary Personnel Ltd,External Temporary Staff
Peterborough City Council,Adult Services & Communities - Adults,Finance,Agency Staff,08/04/2016,30069373,"1,147.86",Revenue,Sanctuary Personnel Ltd,External Temporary Staff
Peterborough City Council,Children's & Safeguarding,Children's Social Care,Agency Staff,08/04/2016,30069377,"1,757.50",Revenue,Sanctuary Personnel Ltd,External Temporary Staff
Peterborough City Council,Children's & Safeguarding,Children's Social Care,Agency Staff,08/04/2016,30069378,"1,748.25",Revenue,Sanctuary Personnel Ltd,External Temporary Staff
Peterborough City Council,Children's & Safeguarding,Children's Social Care,Agency Staff,08/04/2016,30069381,"1,680.00",Revenue,Sanctuary Personnel Ltd,External Temporary Staff
Peterborough City Council,Children's & Safeguarding,Children's Social Care,Agency Staff,08/04/2016,30069382,522,Revenue,Sanctuary Personnel Ltd,External Temporary Staff
Peterborough City Council,Children's & Safeguarding,Children's Social Care,Agency Staff,08/04/2016,30069383,994.56,Revenue,Sanctuary Personnel Ltd,External Temporary Staff
Peterborough City Council,Children's & Safeguarding,Children's Social Care,Agency Staff,08/04/2016,30069384,"1,680.00",Revenue,Sanctuary Personnel Ltd,External Temporary Staff
Peterborough City Council,Children's & Safeguarding,Children's Social Care,Agency Staff,08/04/2016,30069388,"1,757.50",Revenue,Sanctuary Personnel Ltd,External Temporary Staff
Peterborough City Council,Education,Special Educational Needs / Inclusion,Services,08/04/2016,30069546,840,Revenue,Top Class Tutors,Education Expenses
Peterborough City Council,Education,Special Educational Needs / Inclusion,Services,08/04/2016,30069547,"1,200.00",Revenue,Top Class Tutors,Education Expenses
Peterborough City Council,Vivacity/Cultural Services,Cultural Services,Services,08/04/2016,30069710,"2,000.00",Revenue,Redacted Personal Data,Hired Services
Peterborough City Council,Vivacity/Cultural Services,Cultural Services,Services,08/04/2016,30069711,"1,529.60",Revenue,Redacted Personal Data,Hired Services
Peterborough City Council,Peterborough Highway Services,Highway Services - HoS,Services,08/04/2016,30069718,"3,600.00",Revenue,The Wildlife Trust BCN,Professional Services
Peterborough City Council,Children's & Safeguarding,Child Health,Services,08/04/2016,30069719,"19,100.00",Revenue,Family Voice Peterborough,Conferences/Events
Peterborough City Council,Business Management and Commercial Operations,Clare Lodge,Repair & Maintenance of Buildings,08/04/2016,30069750,736.07,Revenue,Adcock Refrig/air Conditioning Ltd,Premises Repairs
Peterborough City Council,Sustainable Growth Strategy,Natural & Historic Environment,Services,08/04/2016,30069754,"2,100.00",Revenue,The Wildlife Trust BCN,Conservation And Bio Diversity Projects
Peterborough City Council,Children's & Safeguarding,Access to Resources & Specialist Commissioning,Services,08/04/2016,30069763,"13,330.00",Revenue,MJ Childrens Services,Boarding - Out Allowances
Peterborough City Council,"Cemeteries, Cremation & Registrars",Bereavement Service,Repair & Maintenance of Buildings,08/04/2016,30069769,"2,125.00",Revenue,Chris Groome Decorating,Premises Maintenance
Peterborough City Council,Children's & Safeguarding,Access to Resources & Specialist Commissioning,Services,08/04/2016,30069775,"4,845.33",Revenue,Copthill School Ltd,Out Of Area Education Costs
Peterborough City Council,Corporate,Corporate,Non Revenue,08/04/2016,30069798,"5,862.79",Capital,A.F.Construction Services Ltd,Grant Payment
Peterborough City Council,Corporate,Corporate,Non Revenue,08/04/2016,30069821,"6,615.90",Capital,A.F.Construction Services Ltd,Grant Payment
Peterborough City Council,Corporate,Corporate,Non Revenue,08/04/2016,30069822,"7,388.85",Capital,A.F.Construction Services Ltd,Grant Payment
Peterborough City Council,Peterborough Highway Services,Network and Traffic Management,Services,08/04/2016,30069966,"1,500.00",Revenue,Wothorpe Parish Council,Contractors
Peterborough City Council,Adult Services & Communities - Adults,Independent Sector Placements,Services,08/04/2016,30070029,"2,015.00",Revenue,Klair House Residential Care Homes,Residential Care
Peterborough City Council,Education,School Improvement,Rents,08/04/2016,30070091,"1,734.00",Revenue,Kingsgate Trading Ltd,Hire Of Premises
Peterborough City Council,Business Management and Commercial Operations,Early Years & Quality Improvement,Services,08/04/2016,30070106,"28,596.16",Revenue,Stars Pre-School Ravensthorpe,Grant Payment
Peterborough City Council,Adult Services & Communities - Adults,Finance,Agency Staff,08/04/2016,30070162,"2,375.00",Revenue,Number 10 Interim Ltd,External Temporary Staff
Peterborough City Council,Education,Pupil Referral Unit,Services,08/04/2016,30070191,"2,800.00",Revenue,Stagecoach in Peterborough,Passes
Peterborough City Council,Westcombe Engineering,Westcombe Engineering,Services,08/04/2016,30070234,720,Revenue,Barron Clark Castings Ltd,Items For Resale
Peterborough City Council,Westcombe Engineering,Westcombe Engineering,Services,08/04/2016,30070236,627,Revenue,Barron Clark Castings Ltd,Items For Resale
Peterborough City Council,Westcombe Engineering,Westcombe Engineering,Services,08/04/2016,30070242,713.62,Revenue,Barron Clark Castings Ltd,Items For Resale
Peterborough City Council,Education,Special Educational Needs / Inclusion,"Tools, Equipment, Furniture & Materials",08/04/2016,30070315,516.75,Revenue,Pearson Publishers Oxford Ltd,Educational Equipment
Peterborough City Council,Adult Services & Communities - Adults,Independent Sector Placements,Services,08/04/2016,30070343,604.5,Revenue,Select Support Partnerships Limited,Home Care
Peterborough City Council,Business Management and Commercial Operations,Clare Lodge,Agency Staff,08/04/2016,30070376,"1,250.00",Revenue,Wrixon Care Services,External Temporary Staff
Peterborough City Council,Business Management and Commercial Operations,Clare Lodge,Agency Staff,08/04/2016,30070377,832.5,Revenue,Wrixon Care Services,External Temporary Staff
Peterborough City Council,Business Management and Commercial Operations,Clare Lodge,Agency Staff,08/04/2016,30070380,961,Revenue,Wrixon Care Services,External Temporary Staff
Peterborough City Council,Business Management and Commercial Operations,Clare Lodge,Agency Staff,08/04/2016,30070382,905,Revenue,Wrixon Care Services,External Temporary Staff
Peterborough City Council,Business Management and Commercial Operations,Clare Lodge,Agency Staff,08/04/2016,30070387,860,Revenue,Wrixon Care Services,External Temporary Staff
Peterborough City Council,Adult Services & Communities - Adults,Therapy/Reablement/Community Equipment,Services,08/04/2016,30070388,"5,447.08",Revenue,COMFORCARE SENIOR SERVICES,Home Care
Peterborough City Council,Education,Pupil Referral Unit,Services,08/04/2016,30070436,759.29,Revenue,Danwood Group Limited,Photocopier
Peterborough City Council,Commercial Group,Strategic Client Services,Services,08/04/2016,30070441,"25,180.81",Revenue,Danwood Group Limited,Photocopier
Peterborough City Council,Commercial Group,Strategic Client Services,Services,08/04/2016,30070446,517.35,Revenue,Danwood Group Limited,Photocopier
Peterborough City Council,Legal & Democratic,Legal Services,Services,08/04/2016,30070609,"2,055.00",Revenue,Peterborough City Council Legal Imprest,Administration Expenses
Peterborough City Council,Legal & Democratic,Legal Services,Services,08/04/2016,30070609,"2,055.00",Revenue,Peterborough City Council Legal Imprest,Administration Expenses
Peterborough City Council,Legal & Democratic,Legal Services,Services,08/04/2016,30070609,"2,055.00",Revenue,Peterborough City Council Legal Imprest,Administration Expenses
Peterborough City Council,Legal & Democratic,Legal Services,Services,08/04/2016,30070609,"2,055.00",Revenue,Peterborough City Council Legal Imprest,Administration Expenses
Peterborough City Council,Corporate,Corporate,Non Revenue,08/04/2016,30070627,"7,477.05",Capital,A.F.Construction Services Ltd,Grant Payment
Peterborough City Council,Corporate,Corporate,Non Revenue,08/04/2016,30070628,"8,870.40",Capital,A.F.Construction Services Ltd,Grant Payment
Peterborough City Council,Corporate,Corporate,Non Revenue,08/04/2016,30070640,"7,846.15",Capital,A.F.Construction Services Ltd,Grant Payment
Peterborough City Council,Westcombe Engineering,Westcombe Engineering,Services,08/04/2016,30070693,585,Revenue,Acenta,Items For Resale
Peterborough City Council,Peterborough Highway Services,Transport & Infrastructure Commissioning,Services,08/04/2016,30070731,"15,384.62",Revenue,Stagecoach in Peterborough,Contractors
Peterborough City Council,Adult Services & Communities - Adults,Mental Capacity Act & DoLs,Third Party Payment,08/04/2016,30070740,"1,158.00",Revenue,Raj Medical Consultancy Limited,Third Party Payments - Contract
Peterborough City Council,Corporate,Corporate,Non Revenue,08/04/2016,30070942,978.15,Capital,Garfield Builders Ltd,Building And Site Works
Peterborough City Council,Vivacity/Cultural Services,Cultural Services,Services,08/04/2016,30070960,"1,363.00",Revenue,Redacted Personal Data,Hired Services
Peterborough City Council,Corporate Property,Commercial Propety,Repair & Maintenance of Buildings,08/04/2016,30070976,800,Revenue,Barker Storey Matthews,Service Charges - Premises
Peterborough City Council,Education,Service Director Education,Services,08/04/2016,30071034,"12,480.00",Revenue,Differentia Consulting,Special Projects
Peterborough City Council,Children's & Safeguarding,Children's Social Care,Agency Staff,08/04/2016,30071035,"1,315.55",Revenue,Resolution Ltd,External Temporary Staff
Peterborough City Council,Adult Services & Communities - Adults,Day Opportunities / In House,Agency Staff,08/04/2016,30071036,"1,313.50",Revenue,Resolution Ltd,External Temporary Staff
Peterborough City Council,Children's & Safeguarding,Children's Social Care,Agency Staff,08/04/2016,30071037,"1,675.00",Revenue,Resolution Ltd,External Temporary Staff
Peterborough City Council,Adults and Communities - Communities,Early Help ASC/CSC,Agency Staff,08/04/2016,30071038,832.5,Revenue,Resolution Ltd,External Temporary Staff
Peterborough City Council,Children's & Safeguarding,Children's Social Care,Agency Staff,08/04/2016,30071039,"1,052.44",Revenue,Resolution Ltd,External Temporary Staff
Peterborough City Council,Children's & Safeguarding,Children's Social Care,Agency Staff,08/04/2016,30071040,"1,315.55",Revenue,Resolution Ltd,External Temporary Staff
Peterborough City Council,Children's & Safeguarding,Children's Social Care,Agency Staff,08/04/2016,30071041,"1,675.00",Revenue,Resolution Ltd,External Temporary Staff
Peterborough City Council,Corporate,Corporate,Non Revenue,08/04/2016,30071168,744,Balance Sheet,"Harris, Mr Paul",Professional Services
Peterborough City Council,Financial Services,Insurance,Premises Insurances,08/04/2016,30071174,709.61,Revenue,Zurich Insurance Company,Insurance Premiums
Peterborough City Council,Corporate,Corporate,Non Revenue,08/04/2016,30071213,"2,500.00",Capital,NPS Group,Consultants Fees
Peterborough City Council,Corporate,Corporate,Non Revenue,08/04/2016,30071214,"1,000.00",Capital,NPS Group,Consultants Fees
Peterborough City Council,Business Management and Commercial Operations,Clare Lodge,Agency Staff,08/04/2016,30071236,769.48,Revenue,Taskmaster Resources Ltd,External Temporary Staff
Peterborough City Council,Adult Services & Communities - Adults,Independent Sector Placements,Services,08/04/2016,30071268,"4,061.83",Revenue,LEONARD CHESHIRE DISABILITY,Residential Care
Peterborough City Council,Adult Services & Communities - Adults,Independent Sector Placements,Services,08/04/2016,30071269,"3,918.76",Revenue,LEONARD CHESHIRE DISABILITY,Residential Care
Peterborough City Council,Business Management and Commercial Operations,Clare Lodge,Services,08/04/2016,30071270,"1,047.00",Revenue,Engage Education,Education Expenses
Peterborough City Council,Business Management and Commercial Operations,Clare Lodge,Services,08/04/2016,30071271,570,Revenue,Engage Education,Education Expenses
Peterborough City Council,Adult Services & Communities - Adults,Independent Sector Placements,Services,08/04/2016,30071275,"1,174.90",Revenue,Select Support Partnerships Limited,Home Care
Peterborough City Council,Adult Services & Communities - Adults,Independent Sector Placements,Services,08/04/2016,30071277,771.9,Revenue,Select Support Partnerships Limited,Home Care
Peterborough City Council,Adult Services & Communities - Adults,Independent Sector Placements,Services,08/04/2016,30071278,886.6,Revenue,Select Support Partnerships Limited,Home Care
Peterborough City Council,Adult Services & Communities - Adults,Mental Health,Services,08/04/2016,30071295,"13,807.68",Revenue,Adult Social Care Consultancy Ltd,Consultants Fees
Peterborough City Council,Children's & Safeguarding,Access to Resources & Specialist Commissioning,Services,08/04/2016,30071319,536.56,Revenue,PC Homes,Boarding - Out Allowances
Peterborough City Council,Legal & Democratic,Elections,Services,08/04/2016,30071373,"2,000.00",Revenue,Intelligence Led Solutions Ltd,Licences
Peterborough City Council,Adults and Communities - Communities,Housing and Health,Services,08/04/2016,30071388,764.47,Revenue,DA Rosalia Hotel,Homelessness Bed & Breakfast
Peterborough City Council,Vivacity/Cultural Services,Cultural Services,Services,08/04/2016,30071409,"1,819.55",Revenue,Redacted Personal Data,Hired Services
Peterborough City Council,"Cemeteries, Cremation & Registrars",Bereavement Service,Services,08/04/2016,30071425,"2,541.00",Revenue,Chris Groome Decorating,Special Projects
Peterborough City Council,Adults and Communities - Communities,Housing and Health,Services,08/04/2016,30071450,764.47,Revenue,DA Rosalia Hotel,Homelessness Bed & Breakfast
Peterborough City Council,Adult Services & Communities - Adults,Independent Sector Placements,Services,08/04/2016,8000058031,742.5,Revenue,COMFORCARE SENIOR SERVICES,Home Care
Peterborough City Council,Adult Services & Communities - Adults,Independent Sector Placements,Services,08/04/2016,8000058033,626.56,Revenue,COMFORCARE SENIOR SERVICES,Home Care
Peterborough City Council,Adult Services & Communities - Adults,Independent Sector Placements,Services,08/04/2016,8000058036,"1,305.92",Revenue,COMFORCARE SENIOR SERVICES,Home Care
Peterborough City Council,Adult Services & Communities - Adults,Independent Sector Placements,Services,08/04/2016,8000058037,747.78,Revenue,COMFORCARE SENIOR SERVICES,Home Care
Peterborough City Council,Adult Services & Communities - Adults,Independent Sector Placements,Services,08/04/2016,8000058039,646.8,Revenue,COMFORCARE SENIOR SERVICES,Home Care
Peterborough City Council,Adult Services & Communities - Adults,Independent Sector Placements,Services,08/04/2016,8000058040,"1,279.30",Revenue,COMFORCARE SENIOR SERVICES,Home Care
Peterborough City Council,Adult Services & Communities - Adults,Independent Sector Placements,Services,08/04/2016,8000058041,"1,560.02",Revenue,COMFORCARE SENIOR SERVICES,Home Care
Peterborough City Council,Adult Services & Communities - Adults,Independent Sector Placements,Services,08/04/2016,8000058045,554.84,Revenue,COMFORCARE SENIOR SERVICES,Home Care
Peterborough City Council,Adult Services & Communities - Adults,Independent Sector Placements,Services,08/04/2016,8000058046,825,Revenue,COMFORCARE SENIOR SERVICES,Home Care
Peterborough City Council,Adult Services & Communities - Adults,Independent Sector Placements,Services,08/04/2016,8000058047,"1,343.89",Revenue,COMFORCARE SENIOR SERVICES,Home Care
Peterborough City Council,Adult Services & Communities - Adults,Independent Sector Placements,Services,08/04/2016,8000058051,693.22,Revenue,COMFORCARE SENIOR SERVICES,Home Care
Peterborough City Council,Adult Services & Communities - Adults,Independent Sector Placements,Services,08/04/2016,8000058053,"1,131.24",Revenue,COMFORCARE SENIOR SERVICES,Home Care
Peterborough City Council,Adult Services & Communities - Adults,Independent Sector Placements,Services,08/04/2016,8000058055,"2,052.60",Revenue,COMFORCARE SENIOR SERVICES,Home Care
Peterborough City Council,Adult Services & Communities - Adults,Independent Sector Placements,Services,08/04/2016,8000058057,744.7,Revenue,COMFORCARE SENIOR SERVICES,Home Care
Peterborough City Council,Adult Services & Communities - Adults,Independent Sector Placements,Services,08/04/2016,8000058059,964.04,Revenue,COMFORCARE SENIOR SERVICES,Home Care
Peterborough City Council,Adult Services & Communities - Adults,Independent Sector Placements,Services,08/04/2016,8000058062,553.3,Revenue,COMFORCARE SENIOR SERVICES,Home Care
Peterborough City Council,Adult Services & Communities - Adults,Independent Sector Placements,Services,08/04/2016,8000058063,545.38,Revenue,COMFORCARE SENIOR SERVICES,Home Care
Peterborough City Council,Adult Services & Communities - Adults,Independent Sector Placements,Services,08/04/2016,8000058064,857.34,Revenue,COMFORCARE SENIOR SERVICES,Home Care
Peterborough City Council,Adult Services & Communities - Adults,Independent Sector Placements,Services,08/04/2016,8000058068,552.86,Revenue,COMFORCARE SENIOR SERVICES,Home Care
Peterborough City Council,Adult Services & Communities - Adults,Independent Sector Placements,Services,08/04/2016,8000058069,909.04,Revenue,COMFORCARE SENIOR SERVICES,Home Care
Peterborough City Council,Adult Services & Communities - Adults,Independent Sector Placements,Services,08/04/2016,8000058078,543.84,Revenue,COMFORCARE SENIOR SERVICES,Home Care
Peterborough City Council,Adult Services & Communities - Adults,Independent Sector Placements,Services,08/04/2016,8000058080,656.11,Revenue,COMFORCARE SENIOR SERVICES,Home Care
Peterborough City Council,Adult Services & Communities - Adults,Independent Sector Placements,Services,08/04/2016,8000058081,679.4,Revenue,Carers Trust Cambridgeshire,Home Care
Peterborough City Council,Adult Services & Communities - Adults,Independent Sector Placements,Services,08/04/2016,8000058082,680.21,Revenue,Carers Trust Cambridgeshire,Home Care
Peterborough City Council,Children's & Safeguarding,Access to Resources & Specialist Commissioning,Services,11/04/2016,30058607,"3,210.71",Revenue,Pride Fostering,Boarding - Out Allowances
Peterborough City Council,Children's & Safeguarding,Access to Resources & Specialist Commissioning,Services,11/04/2016,30060237,"3,159.21",Revenue,Fostering Options Ltd,Boarding - Out Allowances
Peterborough City Council,Children's & Safeguarding,Access to Resources & Specialist Commissioning,Services,11/04/2016,30061351,"4,011.97",Revenue,Fostering Solutions,Boarding - Out Allowances
Peterborough City Council,Children's & Safeguarding,Access to Resources & Specialist Commissioning,Services,11/04/2016,30063486,"3,210.71",Revenue,Pride Fostering,Boarding - Out Allowances
Peterborough City Council,Children's & Safeguarding,Access to Resources & Specialist Commissioning,Services,11/04/2016,30063487,"3,210.71",Revenue,Pride Fostering,Boarding - Out Allowances
Peterborough City Council,Children's & Safeguarding,Access to Resources & Specialist Commissioning,Services,11/04/2016,30064324,"3,210.71",Revenue,Sunbeam Fostering,Boarding - Out Allowances
Peterborough City Council,Children's & Safeguarding,Access to Resources & Specialist Commissioning,Services,11/04/2016,30065426,"1,311.00",Revenue,PC Homes,Boarding - Out Allowances
Peterborough City Council,City Servs & Communications,"Markets, Tourism & Events",Services,11/04/2016,30066962,593.46,Revenue,GTR (Govia Thameslink Railway Ltd),Contractors
Peterborough City Council,Children's & Safeguarding,Child Health,Services,11/04/2016,30068656,550,Revenue,K2 CARE LTD,Hired Services
Peterborough City Council,Adult Services & Communities - Adults,Independent Sector Placements,Services,11/04/2016,30068681,"2,476.24",Revenue,Avery House (Peterborough) t/a Brighterkind,Residential Care
Peterborough City Council,Amey Peterborough & Waste Management,Waste Management,Services,11/04/2016,30068693,"14,309.28",Revenue,H W Martin Waste Ltd,Recycling
Peterborough City Council,Adult Services & Communities - Adults,Day Opportunities / In House,Agency Staff,11/04/2016,30068707,"1,295.00",Revenue,Caritas Recruitment,External Temporary Staff
Peterborough City Council,Adult Services & Communities - Adults,Day Opportunities / In House,Agency Staff,11/04/2016,30068715,"1,295.00",Revenue,Caritas Recruitment,External Temporary Staff
Peterborough City Council,Peterborough Highway Services,Transport & Infrastructure Commissioning,Services,11/04/2016,30068876,837,Revenue,Outspoken Cycles,Conferences/Events
Peterborough City Council,Children's & Safeguarding,Access to Resources & Specialist Commissioning,Services,11/04/2016,30068890,"3,484.89",Revenue,Foster Care Associates Ltd FCA,Boarding - Out Allowances
Peterborough City Council,Children's & Safeguarding,Access to Resources & Specialist Commissioning,Services,11/04/2016,30068891,"3,556.01",Revenue,Foster Care Associates Ltd FCA,Boarding - Out Allowances
Peterborough City Council,Children's & Safeguarding,Access to Resources & Specialist Commissioning,Services,11/04/2016,30068892,"4,096.34",Revenue,Foster Care Associates Ltd FCA,Boarding - Out Allowances
Peterborough City Council,Education,Pupil Referral Unit,Agency Staff,11/04/2016,30068894,715.5,Revenue,Vision for Education Ltd,Supply Teachers
Peterborough City Council,Education,Pupil Referral Unit,Agency Staff,11/04/2016,30068895,795,Revenue,Vision for Education Ltd,Supply Teachers
Peterborough City Council,Children's & Safeguarding,Access to Resources & Specialist Commissioning,Services,11/04/2016,30068896,"4,248.55",Revenue,Foster Care Associates Ltd FCA,Boarding - Out Allowances
Peterborough City Council,Children's & Safeguarding,Access to Resources & Specialist Commissioning,Services,11/04/2016,30068898,"3,556.01",Revenue,Foster Care Associates Ltd FCA,Boarding - Out Allowances
Peterborough City Council,Children's & Safeguarding,Access to Resources & Specialist Commissioning,Services,11/04/2016,30068899,"3,556.01",Revenue,Foster Care Associates Ltd FCA,Boarding - Out Allowances
Peterborough City Council,Children's & Safeguarding,Access to Resources & Specialist Commissioning,Services,11/04/2016,30068902,"3,556.01",Revenue,Foster Care Associates Ltd FCA,Boarding - Out Allowances
Peterborough City Council,Children's & Safeguarding,Access to Resources & Specialist Commissioning,Services,11/04/2016,30068903,"5,240.55",Revenue,Foster Care Associates Ltd FCA,Boarding - Out Allowances
Peterborough City Council,Children's & Safeguarding,Access to Resources & Specialist Commissioning,Services,11/04/2016,30068904,"4,379.99",Revenue,Foster Care Associates Ltd FCA,Boarding - Out Allowances
Peterborough City Council,Children's & Safeguarding,Access to Resources & Specialist Commissioning,Services,11/04/2016,30068905,"3,052.57",Revenue,Foster Care Associates Ltd FCA,Boarding - Out Allowances
Peterborough City Council,Children's & Safeguarding,Access to Resources & Specialist Commissioning,Services,11/04/2016,30068906,"3,052.57",Revenue,Foster Care Associates Ltd FCA,Boarding - Out Allowances
Peterborough City Council,Children's & Safeguarding,Access to Resources & Specialist Commissioning,Services,11/04/2016,30068907,"3,449.03",Revenue,Foster Care Associates Ltd FCA,Boarding - Out Allowances
Peterborough City Council,Children's & Safeguarding,Access to Resources & Specialist Commissioning,Services,11/04/2016,30068908,"2,960.99",Revenue,Foster Care Associates Ltd FCA,Boarding - Out Allowances
Peterborough City Council,Children's & Safeguarding,Access to Resources & Specialist Commissioning,Services,11/04/2016,30068909,"3,484.89",Revenue,Foster Care Associates Ltd FCA,Boarding - Out Allowances
Peterborough City Council,Children's & Safeguarding,Access to Resources & Specialist Commissioning,Services,11/04/2016,30068910,"4,096.34",Revenue,Foster Care Associates Ltd FCA,Boarding - Out Allowances
Peterborough City Council,Education,Pupil Referral Unit,Agency Staff,11/04/2016,30068912,715.5,Revenue,Vision for Education Ltd,Supply Teachers
Peterborough City Council,Education,Pupil Referral Unit,Agency Staff,11/04/2016,30068917,715.5,Revenue,Vision for Education Ltd,Supply Teachers
Peterborough City Council,Education,Pupil Referral Unit,Agency Staff,11/04/2016,30068918,715.5,Revenue,Vision for Education Ltd,Supply Teachers
Peterborough City Council,Children's & Safeguarding,Access to Resources & Specialist Commissioning,Services,11/04/2016,30068965,"4,292.69",Revenue,Foster Care Associates Ltd FCA,Boarding - Out Allowances
Peterborough City Council,Children's & Safeguarding,Access to Resources & Specialist Commissioning,Services,11/04/2016,30068967,"4,336.50",Revenue,Foster Care Associates Ltd FCA,Boarding - Out Allowances
Peterborough City Council,Corporate Property,Commercial Propety,Services,11/04/2016,30068983,500,Revenue,Wilks Head & Eve,Professional Services
Peterborough City Council,Children's & Safeguarding,Access to Resources & Specialist Commissioning,Services,11/04/2016,30069181,"3,556.01",Revenue,Foster Care Associates Ltd FCA,Boarding - Out Allowances
Peterborough City Council,Children's & Safeguarding,Access to Resources & Specialist Commissioning,Services,11/04/2016,30069273,"3,207.90",Revenue,Fostering Solutions,Boarding - Out Allowances
Peterborough City Council,Children's & Safeguarding,Access to Resources & Specialist Commissioning,Services,11/04/2016,30069274,"3,554.46",Revenue,Fostering Solutions,Boarding - Out Allowances
Peterborough City Council,Children's & Safeguarding,Access to Resources & Specialist Commissioning,Services,11/04/2016,30069275,"3,207.90",Revenue,Fostering Solutions,Boarding - Out Allowances
Peterborough City Council,Children's & Safeguarding,Access to Resources & Specialist Commissioning,Services,11/04/2016,30069276,"1,913.49",Revenue,Fostering Solutions,Boarding - Out Allowances
Peterborough City Council,Children's & Safeguarding,Access to Resources & Specialist Commissioning,Services,11/04/2016,30069277,"1,208.52",Revenue,Fostering Solutions,Boarding - Out Allowances
Peterborough City Council,Children's & Safeguarding,Access to Resources & Specialist Commissioning,Services,11/04/2016,30069278,"2,860.77",Revenue,Fostering Solutions,Boarding - Out Allowances
Peterborough City Council,Children's & Safeguarding,Access to Resources & Specialist Commissioning,Services,11/04/2016,30069280,"3,376.74",Revenue,Fostering Solutions,Boarding - Out Allowances
Peterborough City Council,Children's & Safeguarding,Access to Resources & Specialist Commissioning,Services,11/04/2016,30069281,"2,886.41",Revenue,Fostering Solutions,Boarding - Out Allowances
Peterborough City Council,Children's & Safeguarding,Access to Resources & Specialist Commissioning,Services,11/04/2016,30069282,"4,011.97",Revenue,Fostering Solutions,Boarding - Out Allowances
Peterborough City Council,Children's & Safeguarding,Access to Resources & Specialist Commissioning,Services,11/04/2016,30069283,"6,120.33",Revenue,Heath Farm Family Services Ltd,Boarding - Out Allowances
Peterborough City Council,Children's & Safeguarding,Access to Resources & Specialist Commissioning,Services,11/04/2016,30069284,"4,011.97",Revenue,Fostering Solutions,Boarding - Out Allowances
Peterborough City Council,Adult Services & Communities - Adults,Independent Sector Placements,Services,11/04/2016,30069312,"1,728.40",Revenue,GSE Residential Ltd,Residential Care
Peterborough City Council,Adult Services & Communities - Adults,Strategic Commissioning - Management,Agency Staff,11/04/2016,30069334,"2,375.00",Revenue,ReThink Recruitment,External Temporary Staff
Peterborough City Council,Children's & Safeguarding,Children's Social Care,Agency Staff,11/04/2016,30069343,925,Revenue,Sanctuary Personnel Ltd,External Temporary Staff
Peterborough City Council,Adult Services & Communities - Adults,Independent Sector Placements,Services,11/04/2016,30069404,"2,265.54",Revenue,GSE Residential Ltd,Residential Care
Peterborough City Council,Adult Services & Communities - Adults,Independent Sector Placements,Services,11/04/2016,30069405,"2,345.17",Revenue,GSE Residential Ltd,Residential Care
Peterborough City Council,Children's & Safeguarding,Child Health,Services,11/04/2016,30069510,760.44,Revenue,Sahara Community Care Services,Hired Services
Peterborough City Council,Business Management and Commercial Operations,Commissioning,Services,11/04/2016,30069532,"1,226.00",Revenue,Redacted Personal Data,Purchased Social Care Services
Peterborough City Council,Westcombe Engineering,Westcombe Engineering,Services,11/04/2016,30069534,720.4,Revenue,A S C Metals Ltd,Items For Resale
Peterborough City Council,Westcombe Engineering,Westcombe Engineering,Services,11/04/2016,30069541,"7,579.41",Revenue,BW Aluminium Ltd,Items For Resale
Peterborough City Council,Corporate,Corporate,Non Revenue,11/04/2016,30069560,"8,755.00",Capital,Casbon Building Services,Grant Payment
Peterborough City Council,Children's & Safeguarding,Access to Resources & Specialist Commissioning,Services,11/04/2016,30069626,"3,003.57",Revenue,Pride Fostering,Boarding - Out Allowances
Peterborough City Council,Adult Services & Communities - Adults,Independent Sector Placements,Services,11/04/2016,30069666,"3,740.12",Revenue,SOCIAL CARE SOLUTIONS LTD,Home Care
Peterborough City Council,Adult Services & Communities - Adults,Independent Sector Placements,Services,11/04/2016,30069667,"7,457.64",Revenue,SOCIAL CARE SOLUTIONS LTD,Home Care
Peterborough City Council,Adult Services & Communities - Adults,Independent Sector Placements,Services,11/04/2016,30069668,"3,223.20",Revenue,SOCIAL CARE SOLUTIONS LTD,Home Care
Peterborough City Council,Adult Services & Communities - Adults,Independent Sector Placements,Services,11/04/2016,30069669,"3,223.20",Revenue,SOCIAL CARE SOLUTIONS LTD,Home Care
Peterborough City Council,Adult Services & Communities - Adults,Independent Sector Placements,Services,11/04/2016,30069670,"3,211.20",Revenue,SOCIAL CARE SOLUTIONS LTD,Home Care
Peterborough City Council,Adult Services & Communities - Adults,Independent Sector Placements,Services,11/04/2016,30069671,"2,983.20",Revenue,SOCIAL CARE SOLUTIONS LTD,Home Care
Peterborough City Council,Adult Services & Communities - Adults,Independent Sector Placements,Services,11/04/2016,30069672,"6,429.60",Revenue,SOCIAL CARE SOLUTIONS LTD,Home Care
Peterborough City Council,Adult Services & Communities - Adults,Independent Sector Placements,Services,11/04/2016,30069996,780,Revenue,SOCIAL CARE SOLUTIONS LTD,Home Care
Peterborough City Council,Adult Services & Communities - Adults,Independent Sector Placements,Services,11/04/2016,30069998,"4,463.20",Revenue,SOCIAL CARE SOLUTIONS LTD,Home Care
Peterborough City Council,Adult Services & Communities - Adults,Independent Sector Placements,Services,11/04/2016,30069999,"7,509.60",Revenue,SOCIAL CARE SOLUTIONS LTD,Home Care
Peterborough City Council,Adult Services & Communities - Adults,Independent Sector Placements,Services,11/04/2016,30070000,"3,903.20",Revenue,SOCIAL CARE SOLUTIONS LTD,Home Care
Peterborough City Council,Numerous,Numerous,Services,11/04/2016,30070007,"1,982.30",Revenue,Whistl London Ltd,Postage
Peterborough City Council,Adult Services & Communities - Adults,Independent Sector Placements,Services,11/04/2016,30070030,"6,400.00",Revenue,Community Care Solutions Ltd,Residential Care
Peterborough City Council,Adults and Communities - Communities,Housing and Health,Services,11/04/2016,30070185,731,Revenue,M M Heating & Plumbing,Contractors
Peterborough City Council,Business Management and Commercial Operations,Commissioning,Services,11/04/2016,30070194,"2,520.00",Revenue,Spurgeons,Hired Services
Peterborough City Council,Children's & Safeguarding,Children's Social Care,Agency Staff,11/04/2016,30070203,"1,602.85",Revenue,Pulse,External Temporary Staff
Peterborough City Council,Children's & Safeguarding,Access to Resources & Specialist Commissioning,Services,11/04/2016,30070284,"5,156.54",Revenue,Families First Ltd,Boarding - Out Allowances
Peterborough City Council,Adult Services & Communities - Adults,Day Opportunities / In House,Agency Staff,11/04/2016,30070554,"1,287.75",Revenue,Pulse,External Temporary Staff
Peterborough City Council,Children's & Safeguarding,Access to Resources & Specialist Commissioning,Services,11/04/2016,30070565,"3,003.57",Revenue,Sunbeam Fostering,Boarding - Out Allowances
Peterborough City Council,Corporate,Corporate,Non Revenue,11/04/2016,30070767,"11,731.88",Capital,ThyssenKrupp Encasa,Grant Payment
Peterborough City Council,Children's & Safeguarding,Children's Social Care,Agency Staff,11/04/2016,30070797,"1,512.45",Revenue,Eden Brown Ltd,External Temporary Staff
Peterborough City Council,Education,Special Educational Needs / Inclusion,Services,11/04/2016,30070831,"1,045.08",Revenue,Ewing Foundation,Education Expenses
Peterborough City Council,Children's & Safeguarding,CSC Quality Assurance,Services,11/04/2016,30070962,"2,040.65",Revenue,J C Associates,Consultants Fees
Peterborough City Council,Vivacity/Cultural Services,Cultural Services,Services,11/04/2016,30070963,"1,250.00",Revenue,Redacted Personal Data,Hired Services
Peterborough City Council,Legal & Democratic,Legal Services,Services,11/04/2016,30071164,"1,227.50",Revenue,Jane Bennington,Legal Costs
Peterborough City Council,City Servs & Communications,"Markets, Tourism & Events",Services,11/04/2016,30071408,"7,801.97",Revenue,National Express Ltd,Contractors
Peterborough City Council,Amey Peterborough & Waste Management,Waste & Operational Svs Mgmt,Third Party Payment,11/04/2016,30071474,"382,676.62",Revenue,Enterprise Managed Services Limited,Third Party Payments - Contract
Peterborough City Council,Amey Peterborough & Waste Management,Waste & Operational Svs Mgmt,Services,11/04/2016,30071519,"2,000.00",Revenue,Dial Peterborough,Recycling
Peterborough City Council,Business Management and Commercial Operations,Early Years & Quality Improvement,Services,11/04/2016,30071536,"2,152.80",Revenue,Redacted Personal Data,Grant Payment
Peterborough City Council,Business Management and Commercial Operations,Early Years & Quality Improvement,Services,11/04/2016,30071557,538,Revenue,Redacted Personal Data,Grant Payment
Peterborough City Council,Business Management and Commercial Operations,Early Years & Quality Improvement,Services,11/04/2016,30071563,"1,534.06",Revenue,Busy Bunnies Nursery,Grant Payment
Peterborough City Council,Adults and Communities - Communities,Housing and Health,Services,11/04/2016,30071574,"1,150.00",Revenue,English Estates Property Agents,Financial Assistance
Peterborough City Council,Business Management and Commercial Operations,Early Years & Quality Improvement,Services,11/04/2016,30071575,"1,853.35",Revenue,Anna-Ca-Soo Day Nursery,Grant Payment
Peterborough City Council,Corporate,Corporate,Non Revenue,11/04/2016,30071599,"249,120.25",Capital,Carillion Building,Building And Site Works
Peterborough City Council,Business Management and Commercial Operations,Business Management and Commercial Operations,Contract Hire and Operating Leases,11/04/2016,8000060102,534,Revenue,Redacted Personal Data,Hired Transport
Peterborough City Council,Business Management and Commercial Operations,Business Management and Commercial Operations,Contract Hire and Operating Leases,11/04/2016,8000060103,521.25,Revenue,Redacted Personal Data,Hired Transport
Peterborough City Council,Business Management and Commercial Operations,Business Management and Commercial Operations,Contract Hire and Operating Leases,11/04/2016,8000060106,814.87,Revenue,Redacted Personal Data,Hired Transport
Peterborough City Council,Business Management and Commercial Operations,Business Management and Commercial Operations,Contract Hire and Operating Leases,11/04/2016,8000060107,"1,008.00",Revenue,Redacted Personal Data,Hired Transport
Peterborough City Council,Business Management and Commercial Operations,Business Management and Commercial Operations,Contract Hire and Operating Leases,11/04/2016,8000060108,"1,265.87",Revenue,Redacted Personal Data,Hired Transport
Peterborough City Council,Business Management and Commercial Operations,Business Management and Commercial Operations,Contract Hire and Operating Leases,11/04/2016,8000060109,720.75,Revenue,Redacted Personal Data,Hired Transport
Peterborough City Council,Business Management and Commercial Operations,Business Management and Commercial Operations,Contract Hire and Operating Leases,11/04/2016,8000060110,967.5,Revenue,Redacted Personal Data,Hired Transport
Peterborough City Council,Business Management and Commercial Operations,Business Management and Commercial Operations,Contract Hire and Operating Leases,11/04/2016,8000060111,654.25,Revenue,Redacted Personal Data,Hired Transport
Peterborough City Council,Business Management and Commercial Operations,Business Management and Commercial Operations,Contract Hire and Operating Leases,11/04/2016,8000060114,916.87,Revenue,Redacted Personal Data,Hired Transport
Peterborough City Council,Business Management and Commercial Operations,Business Management and Commercial Operations,Contract Hire and Operating Leases,11/04/2016,8000060116,"1,483.17",Revenue,Redacted Personal Data,Hired Transport
Peterborough City Council,Children's & Safeguarding,Access to Resources & Specialist Commissioning,Services,13/04/2016,30052741,"5,766.75",Revenue,IAS TACT,Boarding - Out Allowances
Peterborough City Council,Children's & Safeguarding,Access to Resources & Specialist Commissioning,Services,13/04/2016,30054425,"1,376.52",Revenue,Foster Care Associates Ltd FCA,Boarding - Out Allowances
Peterborough City Council,Children's & Safeguarding,Access to Resources & Specialist Commissioning,Services,13/04/2016,30057535,"3,556.01",Revenue,Foster Care Associates Ltd FCA,Boarding - Out Allowances
Peterborough City Council,Children's & Safeguarding,Access to Resources & Specialist Commissioning,Services,13/04/2016,30057960,"3,554.46",Revenue,Fostering Solutions,Boarding - Out Allowances
Peterborough City Council,Children's & Safeguarding,Access to Resources & Specialist Commissioning,Services,13/04/2016,30065246,"3,000.94",Revenue,Fostering Solutions,Boarding - Out Allowances
Peterborough City Council,Children's & Safeguarding,Child Health,Services,13/04/2016,30065367,956.44,Revenue,Sahara Community Care Services,Hired Services
Peterborough City Council,Children's & Safeguarding,Access to Resources & Specialist Commissioning,Services,13/04/2016,30065922,"3,321.43",Revenue,Sunbeam Fostering,Boarding - Out Allowances
Peterborough City Council,Children's & Safeguarding,Access to Resources & Specialist Commissioning,Services,13/04/2016,30066242,785.71,Revenue,Trax Care Ltd,Boarding - Out Allowances
Peterborough City Council,Public Health,Business Management and Commercial Operations - Public Health,Third Party Payment,13/04/2016,30067276,"5,939.50",Revenue,Frontier Medical,Third Party Payments - Contract
Peterborough City Council,Children's & Safeguarding,Access to Resources & Specialist Commissioning,Services,13/04/2016,30067319,891.44,Revenue,National Fostering Agency,Boarding - Out Allowances
Peterborough City Council,Corporate,Corporate,Non Revenue,13/04/2016,30067853,"1,001.94",Capital,Honeywell Control Systems Ltd,Building And Site Works
Peterborough City Council,Children's & Safeguarding,Access to Resources & Specialist Commissioning,Services,13/04/2016,30068217,"1,618.70",Revenue,PC Homes,Boarding - Out Allowances
Peterborough City Council,Children's & Safeguarding,Access to Resources & Specialist Commissioning,Services,13/04/2016,30068218,"1,413.00",Revenue,PC Homes,Boarding - Out Allowances
Peterborough City Council,Peterborough Highway Services,Network and Traffic Management,Services,13/04/2016,30068772,"1,393.66",Revenue,Telent Technology Services Ltd,Contractors
Peterborough City Council,Children's & Safeguarding,Access to Resources & Specialist Commissioning,Services,13/04/2016,30068819,"5,156.54",Revenue,Families First Ltd,Boarding - Out Allowances
Peterborough City Council,Children's & Safeguarding,Access to Resources & Specialist Commissioning,Services,13/04/2016,30068900,"2,391.65",Revenue,Foster Care Associates Ltd FCA,Boarding - Out Allowances
Peterborough City Council,Corporate,Corporate,Non Revenue,13/04/2016,30068937,"3,997.88",Capital,Honeywell Control Systems Ltd,Building And Site Works
Peterborough City Council,Business Management and Commercial Operations,Clare Lodge,Agency Staff,13/04/2016,30068977,545.71,Revenue,Reed Specialist Recruitment,External Temporary Staff
Peterborough City Council,Adult Services & Communities - Adults,Strategic Commissioning - Management,Services,13/04/2016,30069330,"18,500.00",Revenue,Adults Supporting Adults,Professional Services
Peterborough City Council,Children's & Safeguarding,Children's Social Care,Agency Staff,13/04/2016,30069338,"1,581.75",Revenue,Sanctuary Personnel Ltd,External Temporary Staff
Peterborough City Council,Children's & Safeguarding,Children's Social Care,Agency Staff,13/04/2016,30069346,925,Revenue,Sanctuary Personnel Ltd,External Temporary Staff
Peterborough City Council,Children's & Safeguarding,Children's Social Care,Agency Staff,13/04/2016,30069351,"1,500.00",Revenue,Sanctuary Personnel Ltd,External Temporary Staff
Peterborough City Council,Business Management and Commercial Operations,Business Management and Commercial Operations,Agency Staff,13/04/2016,30069354,700,Revenue,Sanctuary Personnel Ltd,External Temporary Staff
Peterborough City Council,Peterborough Highway Services,Transport & Infrastructure Commissioning,Energy Costs,13/04/2016,30069372,"1,141.58",Revenue,British Gas Business,Electricity
Peterborough City Council,Children's & Safeguarding,Children's Social Care,Agency Staff,13/04/2016,30069374,"1,332.00",Revenue,Sanctuary Personnel Ltd,External Temporary Staff
Peterborough City Council,Business Management and Commercial Operations,Commissioning,Services,13/04/2016,30069389,"32,397.80",Revenue,DRINKSENSE,Hired Services
Peterborough City Council,Children's & Safeguarding,Child Health,Services,13/04/2016,30069390,"15,356.25",Revenue,DRINKSENSE,Purchased Social Care Services
Peterborough City Council,Peterborough Highway Services,Transport & Infrastructure Commissioning,Energy Costs,13/04/2016,30069431,581.63,Revenue,British Gas Business,Electricity
Peterborough City Council,Corporate Property,Commercial Propety,Services,13/04/2016,30069440,"1,320.00",Revenue,Barker Storey Matthews,Surveys
Peterborough City Council,Adult Services & Communities - Adults,Community Team,Agency Staff,13/04/2016,30069446,"2,000.00",Revenue,Caritas Recruitment,External Temporary Staff
Peterborough City Council,Adult Services & Communities - Adults,Day Opportunities / In House,Agency Staff,13/04/2016,30069447,"1,295.00",Revenue,Caritas Recruitment,External Temporary Staff
Peterborough City Council,Adult Services & Communities - Adults,Day Opportunities / In House,Agency Staff,13/04/2016,30069449,"1,078.00",Revenue,Caritas Recruitment,External Temporary Staff
Peterborough City Council,Adult Services & Communities - Adults,Day Opportunities / In House,Agency Staff,13/04/2016,30069452,"1,260.00",Revenue,Caritas Recruitment,External Temporary Staff
Peterborough City Council,Adult Services & Communities - Adults,Day Opportunities / In House,Agency Staff,13/04/2016,30069453,"1,295.00",Revenue,Caritas Recruitment,External Temporary Staff
Peterborough City Council,Adult Services & Communities - Adults,Day Opportunities / In House,Agency Staff,13/04/2016,30069454,"1,050.00",Revenue,Caritas Recruitment,External Temporary Staff
Peterborough City Council,Adult Services & Communities - Adults,Day Opportunities / In House,Agency Staff,13/04/2016,30069456,"1,295.00",Revenue,Caritas Recruitment,External Temporary Staff
Peterborough City Council,Adult Services & Communities - Adults,Day Opportunities / In House,Agency Staff,13/04/2016,30069462,"1,310.75",Revenue,Caritas Recruitment,External Temporary Staff
Peterborough City Council,Adult Services & Communities - Adults,Community Team,Agency Staff,13/04/2016,30069463,"1,295.00",Revenue,Caritas Recruitment,External Temporary Staff
Peterborough City Council,Business Management and Commercial Operations,Commissioning,Services,13/04/2016,30069500,"2,760.00",Revenue,Cambridge Clinical Psychology Services Ltd (CCPS LTD),Hired Services
Peterborough City Council,"Cemeteries, Cremation & Registrars",Bereavement Service,Services,13/04/2016,30069535,"1,000.00",Revenue,Ashdown Supplies,Items For Resale
Peterborough City Council,Education,Pupil Referral Unit,Services,13/04/2016,30069548,720,Revenue,Top Class Tutors,Education Expenses
Peterborough City Council,Corporate,Corporate,Non Revenue,13/04/2016,30069550,"128,500.00",Capital,Cloud Technology Solutions,Computer Software
Peterborough City Council,Corporate,Corporate,Non Revenue,13/04/2016,30069554,"9,115.00",Capital,Dolphin Mobility East Midlands Ltd,Grant Payment
Peterborough City Council,Corporate,Corporate,Non Revenue,13/04/2016,30069555,"2,970.00",Capital,Dolphin Mobility East Midlands Ltd,Grant Payment
Peterborough City Council,Corporate,Corporate,Non Revenue,13/04/2016,30069557,"4,750.00",Capital,Allworks Home Improvements Ltd,Grant Payment
Peterborough City Council,Corporate,Corporate,Non Revenue,13/04/2016,30069559,"1,347.44",Capital,Bloom & Wake Ltd,Grant Payment
Peterborough City Council,Corporate,Corporate,Non Revenue,13/04/2016,30069561,"3,379.00",Capital,A W Morley T/A Morley Building Services,Grant Payment
Peterborough City Council,Corporate,Corporate,Non Revenue,13/04/2016,30069563,"1,527.97",Capital,Bloom & Wake Ltd,Grant Payment
Peterborough City Council,Corporate,Corporate,Non Revenue,13/04/2016,30069566,"17,016.00",Capital,M J Greaves,Grant Payment
Peterborough City Council,Corporate,Corporate,Non Revenue,13/04/2016,30069567,"12,663.60",Capital,M J Greaves,Grant Payment
Peterborough City Council,Corporate,Corporate,Non Revenue,13/04/2016,30069568,"4,204.50",Capital,Warics Ltd,Grant Payment
Peterborough City Council,Corporate,Corporate,Non Revenue,13/04/2016,30069569,"2,334.67",Capital,P F S Builders & Contractors,Grant Payment
Peterborough City Council,Corporate,Corporate,Non Revenue,13/04/2016,30069570,"6,757.12",Capital,InBuild,Grant Payment
Peterborough City Council,Corporate,Corporate,Non Revenue,13/04/2016,30069571,"2,909.19",Capital,Trevor Benton Construction Ltd,Grant Payment
Peterborough City Council,Children's & Safeguarding,Access to Resources & Specialist Commissioning,Services,13/04/2016,30069600,"3,210.71",Revenue,Sunbeam Fostering,Boarding - Out Allowances
Peterborough City Council,Children's & Safeguarding,Access to Resources & Specialist Commissioning,Services,13/04/2016,30069602,"3,321.43",Revenue,Sunbeam Fostering,Boarding - Out Allowances
Peterborough City Council,Adult Services & Communities - Adults,Mental Capacity Act & DoLs,Third Party Payment,13/04/2016,30069607,"1,319.00",Revenue,Raj Medical Consultancy Limited,Third Party Payments - Contract
Peterborough City Council,Education,Pupil Referral Unit,Agency Staff,13/04/2016,30069640,"3,003.00",Revenue,Vision for Education Ltd,Supply Teachers
Peterborough City Council,City Servs & Communications,"Markets, Tourism & Events",Services,13/04/2016,30069707,"1,625.00",Revenue,England Athletics Ltd,Conferences/Events
Peterborough City Council,Corporate,Corporate,Non Revenue,13/04/2016,30069794,"1,567.39",Capital,Bloom & Wake Ltd,Grant Payment
Peterborough City Council,Corporate,Corporate,Non Revenue,13/04/2016,30069796,"2,061.10",Capital,Bloom & Wake Ltd,Grant Payment
Peterborough City Council,Corporate,Corporate,Non Revenue,13/04/2016,30069824,"1,167.36",Capital,Bloom & Wake Ltd,Grant Payment
Peterborough City Council,Corporate,Corporate,Non Revenue,13/04/2016,30069833,"4,987.00",Capital,Casbon Building Services,Grant Payment
Peterborough City Council,Corporate,Corporate,Non Revenue,13/04/2016,30070120,"4,821.00",Capital,Gaswise Services Ltd,Grant Payment
Peterborough City Council,Corporate,Corporate,Non Revenue,13/04/2016,30070150,"2,570.00",Capital,Richard Masham Building Services,Grant Payment
Peterborough City Council,Children's & Safeguarding,Access to Resources & Specialist Commissioning,Services,13/04/2016,30070159,"7,130.00",Revenue,Sixteen Plus Limited,Boarding - Out Allowances
Peterborough City Council,Children's & Safeguarding,Access to Resources & Specialist Commissioning,Services,13/04/2016,30070160,"3,144.28",Revenue,Sixteen Plus Limited,Boarding - Out Allowances
Peterborough City Council,Children's & Safeguarding,Access to Resources & Specialist Commissioning,Services,13/04/2016,30070161,"2,344.27",Revenue,Sixteen Plus Limited,Boarding - Out Allowances
Peterborough City Council,Performance & Information,Performance & Information,Agency Staff,13/04/2016,30070167,"2,000.00",Revenue,Number 10 Interim Ltd,External Temporary Staff
Peterborough City Council,Peterborough Highway Services,Highway & Drainage Control,Grounds Maintenance,13/04/2016,30070183,"2,982.32",Revenue,Environment Agency,Trees/Landscaping Materials
Peterborough City Council,Adult Services & Communities - Adults,Therapy/Reablement/Community Equipment,Services,13/04/2016,30070201,"1,375.00",Revenue,P F S Builders & Contractors,Assistive Technology
Peterborough City Council,Children's & Safeguarding,Child Health,Services,13/04/2016,30070204,"9,638.50",Revenue,Vivacity Culture and Leisure,Purchased Social Care Services
Peterborough City Council,Adult Services & Communities - Adults,Therapy/Reablement/Community Equipment,"Tools, Equipment, Furniture & Materials",13/04/2016,30070206,793,Revenue,P F S Builders & Contractors,Occupational Therapy Equipment
Peterborough City Council,Adult Services & Communities - Adults,Therapy/Reablement/Community Equipment,"Tools, Equipment, Furniture & Materials",13/04/2016,30070210,"1,890.00",Revenue,P F S Builders & Contractors,Occupational Therapy Equipment
Peterborough City Council,Adult Services & Communities - Adults,Therapy/Reablement/Community Equipment,"Tools, Equipment, Furniture & Materials",13/04/2016,30070214,"1,825.00",Revenue,P F S Builders & Contractors,Occupational Therapy Equipment
Peterborough City Council,Corporate,Corporate,Non Revenue,13/04/2016,30070218,"3,658.20",Capital,Trevor Benton Construction Ltd,Grant Payment
Peterborough City Council,Corporate,Corporate,Non Revenue,13/04/2016,30070220,"6,100.94",Capital,Trevor Benton Construction Ltd,Grant Payment
Peterborough City Council,Adult Services & Communities - Adults,Therapy/Reablement/Community Equipment,"Tools, Equipment, Furniture & Materials",13/04/2016,30070221,984,Revenue,P F S Builders & Contractors,Occupational Therapy Equipment
Peterborough City Council,Adult Services & Communities - Adults,Therapy/Reablement/Community Equipment,"Tools, Equipment, Furniture & Materials",13/04/2016,30070222,"2,070.00",Revenue,P F S Builders & Contractors,Occupational Therapy Equipment
Peterborough City Council,Corporate Property,Commercial Propety,Third Party Payment,13/04/2016,30070257,"57,145.60",Revenue,Homes & Communities Agency,Contributions
Peterborough City Council,Adult Services & Communities - Adults,Day Opportunities / In House,Agency Staff,13/04/2016,30070289,710.4,Revenue,Medicare First,External Temporary Staff
Peterborough City Council,Children's & Safeguarding,Children's Social Care,Agency Staff,13/04/2016,30070290,"1,400.00",Revenue,Medicare First,External Temporary Staff
Peterborough City Council,Adult Services & Communities - Adults,Day Opportunities / In House,Agency Staff,13/04/2016,30070301,"1,221.00",Revenue,Medicare First,External Temporary Staff
Peterborough City Council,Vivacity/Cultural Services,Cultural Services,Services,13/04/2016,30070307,"3,000.00",Revenue,Phace CIC,Hired Services
Peterborough City Council,Vivacity/Cultural Services,Cultural Services,Services,13/04/2016,30070308,"7,000.00",Revenue,Phace CIC,Hired Services
Peterborough City Council,Vivacity/Cultural Services,Cultural Services,Services,13/04/2016,30070309,"2,600.00",Revenue,Phace CIC,Hired Services
Peterborough City Council,Business Management and Commercial Operations,Clare Lodge,Services,13/04/2016,30070311,"6,800.75",Revenue,DRINKSENSE,Hired Services
Peterborough City Council,Westcombe Engineering,Westcombe Engineering,Services,13/04/2016,30070312,"1,602.64",Revenue,Westland Casting Company Ltd,Items For Resale
Peterborough City Council,Adult Services & Communities - Adults,Independent Sector Placements,Services,13/04/2016,30070319,"1,065.98",Revenue,Barchester Healthcare (Werrington Lodge),Residential Care
Peterborough City Council,Business Management and Commercial Operations,Clare Lodge,Agency Staff,13/04/2016,30070379,500,Revenue,Wrixon Care Services,External Temporary Staff
Peterborough City Council,Commercial Group,Strategic Client Services,Services,13/04/2016,30070417,"1,396.59",Revenue,Royal Mail,Postage
Peterborough City Council,Children's & Safeguarding,Access to Resources & Specialist Commissioning,Services,13/04/2016,30070442,"8,745.00",Revenue,Lincolnshire County Council,Out Of Area Education Costs
Peterborough City Council,Children's & Safeguarding,Children's Social Care,Agency Staff,13/04/2016,30070444,"1,337.90",Revenue,Eden Brown Ltd,External Temporary Staff
Peterborough City Council,Children's & Safeguarding,Children's Social Care,Agency Staff,13/04/2016,30070445,"1,554.75",Revenue,Eden Brown Ltd,External Temporary Staff
Peterborough City Council,Children's & Safeguarding,Access to Resources & Specialist Commissioning,Services,13/04/2016,30070521,"3,210.71",Revenue,Pride Fostering,Boarding - Out Allowances
Peterborough City Council,Children's & Safeguarding,Access to Resources & Specialist Commissioning,Services,13/04/2016,30070522,"3,210.71",Revenue,Pride Fostering,Boarding - Out Allowances
Peterborough City Council,Legal & Democratic,Legal Services,Services,13/04/2016,30070534,"1,395.00",Revenue,"Elliott, Ms Margot",Legal Costs
Peterborough City Council,Adult Services & Communities - Adults,Day Opportunities / In House,Agency Staff,13/04/2016,30070537,"1,287.75",Revenue,Pulse,External Temporary Staff
Peterborough City Council,Adult Services & Communities - Adults,Day Opportunities / In House,Agency Staff,13/04/2016,30070538,"1,287.75",Revenue,Pulse,External Temporary Staff
Peterborough City Council,Children's & Safeguarding,Access to Resources & Specialist Commissioning,Services,13/04/2016,30070564,"3,107.14",Revenue,Sunbeam Fostering,Boarding - Out Allowances
Peterborough City Council,Adult Services & Communities - Adults,Independent Sector Placements,Services,13/04/2016,30070585,"6,343.20",Revenue,SOCIAL CARE SOLUTIONS LTD,Home Care
Peterborough City Council,Adult Services & Communities - Adults,Independent Sector Placements,Services,13/04/2016,30070587,"1,932.00",Revenue,SOCIAL CARE SOLUTIONS LTD,Home Care
Peterborough City Council,Adult Services & Communities - Adults,Independent Sector Placements,Services,13/04/2016,30070588,"8,060.80",Revenue,SOCIAL CARE SOLUTIONS LTD,Home Care
Peterborough City Council,Children's & Safeguarding,Adult & Children Safeguarding Board,Services,13/04/2016,30070606,"5,600.00",Revenue,RJW Associates Ltd,Hired Services
Peterborough City Council,Westcombe Engineering,Westcombe Engineering,Services,13/04/2016,30070614,549.85,Revenue,Safetykleen UK Ltd,Hired Services
Peterborough City Council,Adult Services & Communities - Adults,Therapy/Reablement/Community Equipment,"Tools, Equipment, Furniture & Materials",13/04/2016,30070617,"1,129.00",Revenue,Tansor Assessment Centre,Occupational Therapy Equipment
Peterborough City Council,City Servs & Communications,Regulatory Services,Services,13/04/2016,30070619,"6,040.00",Revenue,Firth Consultants Ltd,Consultants Fees
Peterborough City Council,City Servs & Communications,Marketing & Communications,Services,13/04/2016,30070624,"1,641.00",Revenue,NLA Media Access,Licences
Peterborough City Council,City Servs & Communications,Marketing & Communications,Services,13/04/2016,30070683,"1,080.00",Revenue,Twenty8Design,Printing
Peterborough City Council,Children's & Safeguarding,Child Health,Services,13/04/2016,30070688,"13,900.00",Revenue,Barnardos,Grant Payment
Peterborough City Council,Corporate Property,Office Accomodation,Premises Insurances,13/04/2016,30070692,"1,616.76",Revenue,Alps Group Ltd,Insurance - Premises
Peterborough City Council,Children's & Safeguarding,Child Health,"Tools, Equipment, Furniture & Materials",13/04/2016,30070707,"1,236.00",Revenue,G & S Smirthwaite Ltd,Occupational Therapy Equipment
Peterborough City Council,Adult Services & Communities - Adults,Finance,Repair & Maintenance of Buildings,13/04/2016,30070745,"16,779.78",Revenue,NHS property Services Ltd,Service Charges - Premises
Peterborough City Council,Financial Services,Finance,Agency Staff,13/04/2016,30070821,926.04,Revenue,Reed Specialist Recruitment,External Temporary Staff
Peterborough City Council,Children's & Safeguarding,Access to Resources & Specialist Commissioning,Services,13/04/2016,30070833,"1,720.65",Revenue,Foster Care Associates Ltd FCA,Boarding - Out Allowances
Peterborough City Council,Business Management and Commercial Operations,Clare Lodge,Interview & Training Expenses,13/04/2016,30071063,990,Revenue,Harm-ed  Ltd,Training
Peterborough City Council,Adult Services & Communities - Adults,Independent Sector Placements,Services,13/04/2016,30071163,"1,848.00",Revenue,Augusta Care Ltd,Home Care
Peterborough City Council,Adult Services & Communities - Adults,Therapy/Reablement/Community Equipment,Agency Staff,13/04/2016,30071257,935,Revenue,Sanctuary Personnel Ltd,External Temporary Staff
Peterborough City Council,Children's & Safeguarding,Access to Resources & Specialist Commissioning,Services,13/04/2016,30071296,"15,500.00",Revenue,Barford Children's Services,Boarding - Out Allowances
Peterborough City Council,City Servs & Communications,Parking Services,Services,13/04/2016,30071327,"1,337.04",Revenue,Loomis UK Ltd,Cash Collection Services
Peterborough City Council,Corporate,Corporate,Non Revenue,13/04/2016,30071382,"4,241.25",Capital,Barker Storey Matthews,Consultants Fees
Peterborough City Council,Children's & Safeguarding,Child Health,Services,13/04/2016,30071431,829.77,Revenue,Redacted Personal Data,Financial Assistance
Peterborough City Council,Westcombe Engineering,Westcombe Engineering,Services,13/04/2016,30071472,537.1,Revenue,Ceandess (Wolverhampton) Ltd,Items For Resale
Peterborough City Council,Corporate,Corporate,Non Revenue,13/04/2016,30071534,"6,540.34",Capital,GPR Gas Services,Grant Payment
Peterborough City Council,Westcombe Engineering,Westcombe Engineering,Services,13/04/2016,30071541,"1,561.00",Revenue,Data Interchange,Licences
Peterborough City Council,Corporate,Corporate,Non Revenue,13/04/2016,30071571,960,Capital,Peterborough BMX Club,Grant Payment
Peterborough City Council,Corporate,Corporate,Non Revenue,13/04/2016,30071576,"12,963.50",Capital,Richards Carpentry & Construction,Grant Payment
Peterborough City Council,Public Health,Business Management and Commercial Operations - Public Health,Third Party Payment,13/04/2016,30071581,"1,628.50",Revenue,ASDA PHARMACY PETERBOROUGH,Third Party Payments - Contract
Peterborough City Council,HR,HR,Services,13/04/2016,30071592,"25,866.10",Revenue,Edenred,Childcare
Peterborough City Council,Vivacity/Cultural Services,Cultural Services,Third Party Payment,13/04/2016,30071596,"3,697.48",Revenue,Vivacity Culture and Leisure,Contributions
Peterborough City Council,Performance & Information,Performance & Information,Services,13/04/2016,30071615,"2,610.00",Revenue,Coroners Service (Imprest),Removal Of Bodies
Peterborough City Council,Adult Services & Communities - Adults,Independent Sector Placements,Services,13/04/2016,30071616,"1,808.40",Revenue,Augusta Care Ltd,Home Care
Peterborough City Council,Adult Services & Communities - Adults,Independent Sector Placements,Services,13/04/2016,30071617,"5,090.40",Revenue,Augusta Care Ltd,Home Care
Peterborough City Council,Adult Services & Communities - Adults,Independent Sector Placements,Services,13/04/2016,30071618,"-2,181.77",Revenue,Augusta Care Ltd,Home Care
Peterborough City Council,Adult Services & Communities - Adults,Independent Sector Placements,Services,13/04/2016,30071619,"5,090.40",Revenue,Augusta Care Ltd,Home Care
Peterborough City Council,Corporate,Corporate,Non Revenue,13/04/2016,30071621,500,Capital,Peterborough & Cambs Nappy Library,Grant Payment
Peterborough City Council,Children's & Safeguarding,Access to Resources & Specialist Commissioning,Services,13/04/2016,30071631,"28,146.59",Revenue,Park House School,Boarding - Out Allowances
Peterborough City Council,Children's & Safeguarding,Access to Resources & Specialist Commissioning,Services,13/04/2016,30071632,"28,114.52",Revenue,Park House School,Boarding - Out Allowances
Peterborough City Council,Children's & Safeguarding,Access to Resources & Specialist Commissioning,Services,13/04/2016,30071637,"19,766.69",Revenue,Park House School,Boarding - Out Allowances
Peterborough City Council,Children's & Safeguarding,Access to Resources & Specialist Commissioning,Services,13/04/2016,30071642,"20,317.60",Revenue,Park House School,Boarding - Out Allowances
Peterborough City Council,Children's & Safeguarding,Access to Resources & Specialist Commissioning,Services,13/04/2016,30071645,"25,451.07",Revenue,Park House School,Boarding - Out Allowances
Peterborough City Council,Children's & Safeguarding,Access to Resources & Specialist Commissioning,Services,13/04/2016,30071646,"17,570.25",Revenue,Park House School,Boarding - Out Allowances
Peterborough City Council,Children's & Safeguarding,Access to Resources & Specialist Commissioning,Services,13/04/2016,30071647,"19,766.69",Revenue,Park House School,Boarding - Out Allowances
Peterborough City Council,Adult Services & Communities - Adults,Independent Sector Placements,Services,13/04/2016,30071648,"1,182.18",Revenue,THE CLAIR FRANCIS RETIREMENT HOME,Residential Care
Peterborough City Council,Adult Services & Communities - Adults,Independent Sector Placements,Services,13/04/2016,30071649,"1,230.24",Revenue,THE CLAIR FRANCIS RETIREMENT HOME,Residential Care
Peterborough City Council,Adult Services & Communities - Adults,Independent Sector Placements,Services,13/04/2016,30071650,"1,316.68",Revenue,THE CLAIR FRANCIS RETIREMENT HOME,Residential Care
Peterborough City Council,Children's & Safeguarding,Access to Resources & Specialist Commissioning,Services,13/04/2016,30071651,"19,265.67",Revenue,Park House School,Boarding - Out Allowances
Peterborough City Council,Adult Services & Communities - Adults,Independent Sector Placements,Services,13/04/2016,30071652,"1,260.00",Revenue,THE CLAIR FRANCIS RETIREMENT HOME,Residential Care
Peterborough City Council,Adult Services & Communities - Adults,Independent Sector Placements,Services,13/04/2016,30071653,953.36,Revenue,THE CLAIR FRANCIS RETIREMENT HOME,Residential Care
Peterborough City Council,Adult Services & Communities - Adults,Independent Sector Placements,Services,13/04/2016,30071655,"1,043.04",Revenue,THE CLAIR FRANCIS RETIREMENT HOME,Residential Care
Peterborough City Council,Adult Services & Communities - Adults,Independent Sector Placements,Services,13/04/2016,30071656,"1,189.52",Revenue,THE CLAIR FRANCIS RETIREMENT HOME,Residential Care
Peterborough City Council,Adult Services & Communities - Adults,Independent Sector Placements,Services,13/04/2016,30071658,"1,071.04",Revenue,THE CLAIR FRANCIS RETIREMENT HOME,Residential Care
Peterborough City Council,Adult Services & Communities - Adults,Independent Sector Placements,Services,13/04/2016,30071659,"1,316.68",Revenue,THE CLAIR FRANCIS RETIREMENT HOME,Residential Care
Peterborough City Council,Adult Services & Communities - Adults,Independent Sector Placements,Services,13/04/2016,30071662,"1,305.40",Revenue,THE CLAIR FRANCIS RETIREMENT HOME,Residential Care
Peterborough City Council,Adult Services & Communities - Adults,Independent Sector Placements,Services,13/04/2016,30071663,"1,821.88",Revenue,THE CLAIR FRANCIS RETIREMENT HOME,Residential Care
Peterborough City Council,Adult Services & Communities - Adults,Independent Sector Placements,Services,13/04/2016,30071665,"-1,069.59",Revenue,THE TUDORS,Residential Care
Peterborough City Council,Adult Services & Communities - Adults,Independent Sector Placements,Services,13/04/2016,30071666,"1,576.24",Revenue,THE TUDORS,Residential Care
Peterborough City Council,Adult Services & Communities - Adults,Independent Sector Placements,Services,13/04/2016,30071686,"5,090.40",Revenue,Augusta Care Ltd,Home Care
Peterborough City Council,Adult Services & Communities - Adults,Independent Sector Placements,Services,13/04/2016,30071687,"1,234.80",Revenue,Avery Homes (Nelson) Ltd,Residential Care
Peterborough City Council,Adult Services & Communities - Adults,Independent Sector Placements,Services,13/04/2016,30071715,584.1,Revenue,Cozy Care,Home Care
Peterborough City Council,Adult Services & Communities - Adults,Independent Sector Placements,Services,13/04/2016,30071716,"1,173.52",Revenue,Avery Homes (Nelson) Ltd,Residential Care
Peterborough City Council,"Director, OP & JV",Growth HoS,Services,13/04/2016,30071729,"417,586.00",Revenue,Skanska Construction UK Ltd,Third Party Payments - Contract
Peterborough City Council,Corporate,Corporate,Non Revenue,13/04/2016,30071744,"5,254.67",Balance Sheet,The Prudential Assurance Company Ltd,Pensions
Peterborough City Council,Corporate,Corporate,Non Revenue,13/04/2016,30071749,"2,698.13",Balance Sheet,The Prudential Assurance Company Ltd,Pensions
Peterborough City Council,Numerous,Numerous,Services,13/04/2016,30071772,"5,541.35",Revenue,Loomis UK Ltd,Cash Collection Services
Peterborough City Council,Adult Services & Communities - Adults,Independent Sector Placements,Services,13/04/2016,30071773,"4,649.86",Revenue,THE TUDORS,Residential Care
Peterborough City Council,Adult Services & Communities - Adults,Independent Sector Placements,Services,13/04/2016,30071798,937.5,Revenue,Midco Care Limited,Home Care
Peterborough City Council,Adult Services & Communities - Adults,Independent Sector Placements,Services,13/04/2016,30071806,"1,470.00",Revenue,Midco Care Limited,Home Care
Peterborough City Council,Adult Services & Communities - Adults,Independent Sector Placements,Services,13/04/2016,30071816,540,Revenue,Midco Care Limited,Home Care
Peterborough City Council,Adult Services & Communities - Adults,Independent Sector Placements,Services,13/04/2016,30071821,"1,890.00",Revenue,Midco Care Limited,Home Care
Peterborough City Council,Adult Services & Communities - Adults,Independent Sector Placements,Services,13/04/2016,30071823,739.2,Revenue,Mencap,Home Care
Peterborough City Council,Adult Services & Communities - Adults,Independent Sector Placements,Services,13/04/2016,30071825,716.25,Revenue,Midco Care Limited,Home Care
Peterborough City Council,Children's & Safeguarding,Access to Resources & Specialist Commissioning,Services,13/04/2016,30071847,-688.26,Revenue,Foster Care Associates Ltd FCA,Boarding - Out Allowances
Peterborough City Council,Education,School Improvement,Services,13/04/2016,30071850,735,Revenue,Families First Ltd,Grant Payment
